Workbook

Sheet 上期 表紙
B7: 北海道観光入込客数調査
B12: 令和５年度（2023年度）上期
F18: 資料編
B25: 《観光入込客数関係》
B26: １ 圏域別・月別観光入込客数（延べ人数） | L26: 1頁
B27: ２ 市町村別・月別観光入込客数（延べ人数） | L27: 2頁
B29: 《訪日外国人来道者数関係》
B30: ３ 圏域別・国別訪日外国人宿泊者数（延べ人数） | L30: 25頁
B31: ４ 市町村別・国別訪日外国人宿泊者数（延べ人数） | L31: 26頁
B41: 令和６年（２０２４年）３月
B44: 北海道経済部観光局観光振興課
Z67: =Z2 -> 0
Z132: =Z67 -> 0
Z197: =Z132 -> 0
Z262: =Z197 -> 0
Z327: =Z262 -> 0
Z392: =Z327 -> 0

Sheet 上期 表紙裏

Sheet 上期 1頁
A1: １ 令和５年度（2023年度）上期 圏域別・月別観光入込客数（延べ人数）
Q2: 単位：入込総数→千人、宿泊客延数→千人泊、対前年比→％
A3: 圏 域 | B3: 区 分 | C3: ４ 月 | D3: ５ 月 | E3: ６ 月 | F3: ７ 月 | G3: ８ 月 | H3: ９ 月 | I3: １０月 | J3: １１月 | K3: １２月 | L3: １ 月 | M3: ２ 月 | N3: ３ 月 | O3: 合計 | P3: R4年度上期 | Q3: 対前年比 | S3: 合計
A4: 北海道計 | B4: 入込総数 | C4: =C10+C16+C22+C28+C34+C40 -> 8850.341 | D4: 14914.969 | E4: 13933.878 | F4: 19525.717 | G4: 20468.199 | H4: 16342.141 | O4: =O10+O16+O22+O28+O34+O40 -> 94035.245 | P4: =P10+P16+P22+P28+P34+P40 -> 75705.7 | Q4: =IF(O4=0,"－",O4/P4*100) -> 124.2115785 | S4: 86181.9
B5: 内道外客 | C5: 2043.171 | D5: 3450.288 | E5: 4124.978 | F5: 5944.528 | G5: 5899.238 | H5: 4364.929 | O5: 25827.132 | P5: 17169.07 | Q5: =IF(O5=0,"－",O5/P5*100) -> 150.4282527 | S5: 25465.10041
B6: 内道内客 | C6: 6807.17 | D6: 11464.681 | E6: 9808.9 | F6: 13581.189 | G6: 14568.961 | H6: 11977.212 | O6: 68208.113 | P6: 58536.63 | Q6: 116.5221042 | S6: 60716.79959
B7: 内日帰客 | C7: 7406.412 | D7: 12882.594 | E7: 11628.668 | F7: 16652.777 | G7: 17530.316 | H7: 13909.948 | O7: 80010.715 | P7: 64721.8 | Q7: 123.622512 | S7: 72044.9
B8: 内宿泊客 | C8: 1443.929 | D8: 2032.375 | E8: 2305.21 | F8: 2872.94 | G8: 2937.883 | H8: 2432.193 | O8: 14024.53 | P8: 10983.9 | Q8: 127.6826082 | S8: 14137
B9: 宿泊客延数 | C9: 2088.684 | D9: 2740.09 | E9: 2967.191 | F9: 4089.284 | G9: 4333.802 | H9: 3552.427 | O9: 19771.478 | P9: 16356.9 | Q9: 120.8754593 | S9: 18238.8
A10: 道央圏域計 | B10: 入込総数 | C10: ='上期 2-24頁'!E10 -> 5547.9 | D10: ='上期 2-24頁'!F10 -> 8582.6 | E10: ='上期 2-24頁'!G10 -> 7823.5 | F10: ='上期 2-24頁'!H10 -> 10445.4 | G10: ='上期 2-24頁'!I10 -> 11240.6 | H10: ='上期 2-24頁'!J10 -> 9139.8 | O10: =SUM(C10:H10) -> 52779.8 | P10: ='上期 2-24頁'!R10 -> 39807.9 | Q10: 132.5862454 | S10: 45389.5
B11: 内道外客 | C11: ='上期 2-24頁'!E11 -> 1145 | D11: ='上期 2-24頁'!F11 -> 1623.2 | E11: ='上期 2-24頁'!G11 -> 1849.5 | F11: ='上期 2-24頁'!H11 -> 2310.6 | G11: ='上期 2-24頁'!I11 -> 2563.7 | H11: ='上期 2-24頁'!J11 -> 1914.6 | O11: =SUM(C11:H11) -> 11406.6 | P11: ='上期 2-24頁'!R11 -> 6595.27 | Q11: 172.9512211 | S11: 10330.70041
B12: 内道内客 | C12: ='上期 2-24頁'!E12 -> 4402.9 | D12: ='上期 2-24頁'!F12 -> 6959.4 | E12: ='上期 2-24頁'!G12 -> 5974 | F12: ='上期 2-24頁'!H12 -> 8134.8 | G12: ='上期 2-24頁'!I12 -> 8676.9 | H12: ='上期 2-24頁'!J12 -> 7225.2 | O12: 41373.2 | P12: ='上期 2-24頁'!R12 -> 33212.63 | Q12: 124.5706829 | S12: 35058.79959
B13: 内日帰客 | C13: ='上期 2-24頁'!E13 -> 4724.7 | D13: ='上期 2-24頁'!F13 -> 7482.8 | E13: ='上期 2-24頁'!G13 -> 6557.9 | F13: ='上期 2-24頁'!H13 -> 8941 | G13: ='上期 2-24頁'!I13 -> 9752.6 | H13: ='上期 2-24頁'!J13 -> 7799.6 | O13: 45258.6 | P13: ='上期 2-24頁'!R13 -> 34350.8 | Q13: 131.7541367 | S13: 38486.5
B14: 内宿泊客 | C14: ='上期 2-24頁'!E14 -> 823.2 | D14: ='上期 2-24頁'!F14 -> 1099.8 | E14: ='上期 2-24頁'!G14 -> 1265.6 | F14: ='上期 2-24頁'!H14 -> 1504.4 | G14: ='上期 2-24頁'!I14 -> 1488 | H14: ='上期 2-24頁'!J14 -> 1340.2 | O14: 7521.2 | P14: ='上期 2-24頁'!R14 -> 5457.1 | Q14: 137.824119 | S14: 6903
B15: 宿泊客延数 | C15: ='上期 2-24頁'!E15 -> 1317.655 | D15: ='上期 2-24頁'!F15 -> 1609.37 | E15: ='上期 2-24頁'!G15 -> 1690.987 | F15: ='上期 2-24頁'!H15 -> 2386.729 | G15: ='上期 2-24頁'!I15 -> 2525.714 | H15: ='上期 2-24頁'!J15 -> 2215.51 | O15: 11745.965 | P15: ='上期 2-24頁'!R15 -> 9445.9 | Q15: 124.3498767 | S15: 9889.7
A16: 道南圏域計 | B16: 入込総数 | C16: ='上期 2-24頁'!E490 -> 1156.05 | D16: ='上期 2-24頁'!F490 -> 1548.13 | E16: ='上期 2-24頁'!G490 -> 1123.87 | F16: ='上期 2-24頁'!H490 -> 1385.79 | G16: ='上期 2-24頁'!I490 -> 1685.7 | H16: ='上期 2-24頁'!J490 -> 1245.22 | O16: =SUM(C16:H16) -> 8144.76 | P16: ='上期 2-24頁'!R490 -> 7049.7 | Q16: 115.533427 | S16: 7763.1
B17: 内道外客 | C17: ='上期 2-24頁'!E491 -> 430.23 | D17: ='上期 2-24頁'!F491 -> 547.28 | E17: ='上期 2-24頁'!G491 -> 464.81 | F17: ='上期 2-24頁'!H491 -> 569.57 | G17: ='上期 2-24頁'!I491 -> 660.82 | H17: ='上期 2-24頁'!J491 -> 516.47 | O17: 3189.18 | P17: ='上期 2-24頁'!R491 -> 2409.1 | Q17: 132.3805571 | S17: 3442.8
B18: 内道内客 | C18: ='上期 2-24頁'!E492 -> 725.82 | D18: ='上期 2-24頁'!F492 -> 1000.85 | E18: ='上期 2-24頁'!G492 -> 659.06 | F18: ='上期 2-24頁'!H492 -> 816.22 | G18: ='上期 2-24頁'!I492 -> 1024.88 | H18: ='上期 2-24頁'!J492 -> 728.75 | O18: 4955.58 | P18: ='上期 2-24頁'!R492 -> 4640.6 | Q18: 106.7874844 | S18: 4320.3
B19: 内日帰客 | C19: ='上期 2-24頁'!E493 -> 858.74 | D19: ='上期 2-24頁'!F493 -> 1223.98 | E19: ='上期 2-24頁'!G493 -> 816.09 | F19: ='上期 2-24頁'!H493 -> 968.32 | G19: ='上期 2-24頁'!I493 -> 1214.4 | H19: ='上期 2-24頁'!J493 -> 924.25 | O19: 6005.78 | P19: ='上期 2-24頁'!R493 -> 5340.9 | Q19: 112.4488382 | S19: 5461.2
B20: 内宿泊客 | C20: ='上期 2-24頁'!E494 -> 297.31 | D20: ='上期 2-24頁'!F494 -> 324.15 | E20: ='上期 2-24頁'!G494 -> 307.78 | F20: ='上期 2-24頁'!H494 -> 417.47 | G20: ='上期 2-24頁'!I494 -> 471.3 | H20: ='上期 2-24頁'!J494 -> 320.97 | O20: 2138.98 | P20: ='上期 2-24頁'!R494 -> 1708.8 | Q20: 125.1743914 | S20: 2301.9
B21: 宿泊客延数 | C21: ='上期 2-24頁'!E495 -> 367.5 | D21: ='上期 2-24頁'!F495 -> 396.16 | E21: ='上期 2-24頁'!G495 -> 386.43 | F21: ='上期 2-24頁'!H495 -> 540.73 | G21: ='上期 2-24頁'!I495 -> 595.83 | H21: ='上期 2-24頁'!J495 -> 396.46 | O21: 2683.11 | P21: ='上期 2-24頁'!R495 -> 2171.7 | Q21: 123.5488327 | S21: 2594
A22: 道北圏域計 | B22: 入込総数 | C22: ='上期 2-24頁'!E622 -> 695.291 | D22: ='上期 2-24頁'!F622 -> 1729.339 | E22: ='上期 2-24頁'!G622 -> 2298.308 | F22: ='上期 2-24頁'!H622 -> 3739.927 | G22: ='上期 2-24頁'!I622 -> 3192.699 | H22: ='上期 2-24頁'!J622 -> 2491.421 | O22: =SUM(C22:H22) -> 14146.985 | P22: ='上期 2-24頁'!R622 -> 12123.3 | Q22: 116.692526 | S22: 15199
B23: 内道外客 | C23: ='上期 2-24頁'!E623 -> 182.641 | D23: ='上期 2-24頁'!F623 -> 540.808 | E23: ='上期 2-24頁'!G623 -> 989.868 | F23: ='上期 2-24頁'!H623 -> 1763.758 | G23: ='上期 2-24頁'!I623 -> 1286.318 | H23: ='上期 2-24頁'!J623 -> 919.459 | O23: 5682.852 | P23: ='上期 2-24頁'!R623 -> 3733.1 | Q23: 152.2287643 | S23: 5570.1
B24: 内道内客 | C24: ='上期 2-24頁'!E624 -> 512.65 | D24: ='上期 2-24頁'!F624 -> 1188.531 | E24: ='上期 2-24頁'!G624 -> 1308.44 | F24: ='上期 2-24頁'!H624 -> 1976.169 | G24: ='上期 2-24頁'!I624 -> 1906.381 | H24: ='上期 2-24頁'!J624 -> 1571.962 | O24: 8464.133 | P24: ='上期 2-24頁'!R624 -> 8390.2 | Q24: 100.8811828 | S24: 9628.9
B25: 内日帰客 | C25: ='上期 2-24頁'!E625 -> 587.172 | D25: ='上期 2-24頁'!F625 -> 1492.714 | E25: ='上期 2-24頁'!G625 -> 1967.078 | F25: ='上期 2-24頁'!H625 -> 3271.557 | G25: ='上期 2-24頁'!I625 -> 2751.216 | H25: ='上期 2-24頁'!J625 -> 2170.598 | O25: 12240.335 | P25: ='上期 2-24頁'!R625 -> 10547.7 | Q25: 116.0474321 | S25: 13083.2
B26: 内宿泊客 | C26: ='上期 2-24頁'!E626 -> 108.119 | D26: ='上期 2-24頁'!F626 -> 236.625 | E26: ='上期 2-24頁'!G626 -> 331.23 | F26: ='上期 2-24頁'!H626 -> 468.37 | G26: ='上期 2-24頁'!I626 -> 441.483 | H26: ='上期 2-24頁'!J626 -> 320.823 | O26: 1906.65 | P26: ='上期 2-24頁'!R626 -> 1575.6 | Q26: 121.0110434 | S26: 2115.8
B27: 宿泊客延数 | C27: ='上期 2-24頁'!E627 -> 135.729 | D27: ='上期 2-24頁'!F627 -> 289.16 | E27: ='上期 2-24頁'!G627 -> 406.374 | F27: ='上期 2-24頁'!H627 -> 581.225 | G27: ='上期 2-24頁'!I627 -> 568.258 | H27: ='上期 2-24頁'!J627 -> 396.557 | O27: 2377.303 | P27: ='上期 2-24頁'!R627 -> 2010.5 | Q27: 118.2443671 | S27: 2593.2
A28: オホーツク圏域計 | B28: 入込総数 | C28: ='上期 2-24頁'!E907 -> 379.8 | D28: ='上期 2-24頁'!F907 -> 1065.9 | E28: ='上期 2-24頁'!G907 -> 791.3 | F28: ='上期 2-24頁'!H907 -> 1181.8 | G28: ='上期 2-24頁'!I907 -> 1360.7 | H28: ='上期 2-24頁'!J907 -> 966.4 | O28: =SUM(C28:H28) -> 5745.9 | P28: ='上期 2-24頁'!R907 -> 5298.1 | Q28: 108.4520866 | S28: 5756
B29: 内道外客 | C29: ='上期 2-24頁'!E908 -> 87.9 | D29: ='上期 2-24頁'!F908 -> 294.8 | E29: ='上期 2-24頁'!G908 -> 285.3 | F29: ='上期 2-24頁'!H908 -> 420 | G29: ='上期 2-24頁'!I908 -> 490.9 | H29: ='上期 2-24頁'!J908 -> 354.3 | O29: 1933.2 | P29: ='上期 2-24頁'!R908 -> 1649.5 | Q29: 117.1991513 | S29: 2323.8
B30: 内道内客 | C30: ='上期 2-24頁'!E909 -> 291.9 | D30: ='上期 2-24頁'!F909 -> 771.1 | E30: ='上期 2-24頁'!G909 -> 506 | F30: ='上期 2-24頁'!H909 -> 761.8 | G30: ='上期 2-24頁'!I909 -> 869.8 | H30: ='上期 2-24頁'!J909 -> 612.1 | O30: 3812.7 | P30: ='上期 2-24頁'!R909 -> 3648.6 | Q30: 104.4976155 | S30: 3432.2
B31: 内日帰客 | C31: ='上期 2-24頁'!E910 -> 313.7 | D31: ='上期 2-24頁'!F910 -> 943.6 | E31: ='上期 2-24頁'!G910 -> 657.4 | F31: ='上期 2-24頁'!H910 -> 1018.5 | G31: ='上期 2-24頁'!I910 -> 1175 | H31: ='上期 2-24頁'!J910 -> 818.7 | O31: 4926.9 | P31: ='上期 2-24頁'!R910 -> 4552 | Q31: 108.2359402 | S31: 4808.2
B32: 内宿泊客 | C32: ='上期 2-24頁'!E911 -> 66.1 | D32: ='上期 2-24頁'!F911 -> 122.3 | E32: ='上期 2-24頁'!G911 -> 133.9 | F32: ='上期 2-24頁'!H911 -> 163.3 | G32: ='上期 2-24頁'!I911 -> 185.7 | H32: ='上期 2-24頁'!J911 -> 147.7 | O32: 819 | P32: ='上期 2-24頁'!R911 -> 746.1 | Q32: 109.7708082 | S32: 947.8
B33: 宿泊客延数 | C33: ='上期 2-24頁'!E912 -> 79.9 | D33: ='上期 2-24頁'!F912 -> 140.8 | E33: ='上期 2-24頁'!G912 -> 154.4 | F33: ='上期 2-24頁'!H912 -> 186.9 | G33: ='上期 2-24頁'!I912 -> 208.1 | H33: ='上期 2-24頁'!J912 -> 167.4 | O33: 937.5 | P33: ='上期 2-24頁'!R912 -> 873.2 | Q33: 107.3637197 | S33: 1024.2
A34: 十勝圏域計 | B34: 入込総数 | C34: ='上期 2-24頁'!E1036 -> 609.7 | D34: ='上期 2-24頁'!F1036 -> 1189 | E34: ='上期 2-24頁'!G1036 -> 1067.8 | F34: ='上期 2-24頁'!H1036 -> 1725.9 | G34: ='上期 2-24頁'!I1036 -> 1810.8 | H34: ='上期 2-24頁'!J1036 -> 1305.8 | O34: =SUM(C34:H34) -> 7709 | P34: ='上期 2-24頁'!R1036 -> 6927.7 | Q34: 111.2779133 | S34: 6706.3
B35: 内道外客 | C35: ='上期 2-24頁'!E1037 -> 89.5 | D35: ='上期 2-24頁'!F1037 -> 208.7 | E35: ='上期 2-24頁'!G1037 -> 221.7 | F35: ='上期 2-24頁'!H1037 -> 484.1 | G35: ='上期 2-24頁'!I1037 -> 458.7 | H35: ='上期 2-24頁'!J1037 -> 237.6 | O35: 1700.3 | P35: ='上期 2-24頁'!R1037 -> 1263.4 | Q35: 134.5812886 | S35: 1707.9
B36: 内道内客 | C36: ='上期 2-24頁'!E1038 -> 520.2 | D36: ='上期 2-24頁'!F1038 -> 980.3 | E36: ='上期 2-24頁'!G1038 -> 846.1 | F36: ='上期 2-24頁'!H1038 -> 1241.8 | G36: ='上期 2-24頁'!I1038 -> 1352.1 | H36: ='上期 2-24頁'!J1038 -> 1068.2 | O36: 6008.7 | P36: ='上期 2-24頁'!R1038 -> 5664.3 | Q36: 106.0801864 | S36: 4998.4
B37: 内日帰客 | C37: ='上期 2-24頁'!E1039 -> 529.2 | D37: ='上期 2-24頁'!F1039 -> 1062.4 | E37: ='上期 2-24頁'!G1039 -> 937.7 | F37: ='上期 2-24頁'!H1039 -> 1564.9 | G37: ='上期 2-24頁'!I1039 -> 1634.6 | H37: ='上期 2-24頁'!J1039 -> 1154.8 | O37: 6883.6 | P37: ='上期 2-24頁'!R1039 -> 6143.3 | Q37: 112.0505266 | S37: 5773.3
B38: 内宿泊客 | C38: ='上期 2-24頁'!E1040 -> 80.5 | D38: ='上期 2-24頁'!F1040 -> 126.6 | E38: ='上期 2-24頁'!G1040 -> 130.1 | F38: ='上期 2-24頁'!H1040 -> 161 | G38: ='上期 2-24頁'!I1040 -> 176.2 | H38: ='上期 2-24頁'!J1040 -> 151 | O38: 825.4 | P38: ='上期 2-24頁'!R1040 -> 784.4 | Q38: 105.226925 | S38: 933
B39: 宿泊客延数 | C39: ='上期 2-24頁'!E1041 -> 104.4 | D39: ='上期 2-24頁'!F1041 -> 158.3 | E39: ='上期 2-24頁'!G1041 -> 166 | F39: ='上期 2-24頁'!H1041 -> 202.6 | G39: ='上期 2-24頁'!I1041 -> 223.7 | H39: ='上期 2-24頁'!J1041 -> 191.3 | O39: 1046.3 | P39: ='上期 2-24頁'!R1041 -> 918 | Q39: 113.9760349 | S39: 1102.3
A40: 釧路・根室圏域計 | B40: 入込総数 | C40: ='上期 2-24頁'!E1168 -> 461.6 | D40: ='上期 2-24頁'!F1168 -> 800 | E40: ='上期 2-24頁'!G1168 -> 829.1 | F40: ='上期 2-24頁'!H1168 -> 1046.9 | G40: ='上期 2-24頁'!I1168 -> 1177.7 | H40: ='上期 2-24頁'!J1168 -> 1193.5 | O40: =SUM(C40:H40) -> 5508.8 | P40: ='上期 2-24頁'!R1168 -> 4499 | Q40: 122.4449878 | S40: 5368
B41: 内道外客 | C41: ='上期 2-24頁'!E1169 -> 107.9 | D41: ='上期 2-24頁'!F1169 -> 235.5 | E41: ='上期 2-24頁'!G1169 -> 313.8 | F41: ='上期 2-24頁'!H1169 -> 396.5 | G41: ='上期 2-24頁'!I1169 -> 438.8 | H41: ='上期 2-24頁'!J1169 -> 422.5 | O41: 1915 | P41: ='上期 2-24頁'!R1169 -> 1518.7 | Q41: 126.0946862 | S41: 2089.8
B42: 内道内客 | C42: ='上期 2-24頁'!E1170 -> 353.7 | D42: ='上期 2-24頁'!F1170 -> 564.5 | E42: ='上期 2-24頁'!G1170 -> 515.3 | F42: ='上期 2-24頁'!H1170 -> 650.4 | G42: ='上期 2-24頁'!I1170 -> 738.9 | H42: ='上期 2-24頁'!J1170 -> 771 | O42: 3593.8 | P42: ='上期 2-24頁'!R1170 -> 2980.3 | Q42: 120.585176 | S42: 3278.2
B43: 内日帰客 | C43: ='上期 2-24頁'!E1171 -> 392.9 | D43: ='上期 2-24頁'!F1171 -> 677.1 | E43: ='上期 2-24頁'!G1171 -> 692.5 | F43: ='上期 2-24頁'!H1171 -> 888.5 | G43: ='上期 2-24頁'!I1171 -> 1002.5 | H43: ='上期 2-24頁'!J1171 -> 1042 | O43: 4695.5 | P43: ='上期 2-24頁'!R1171 -> 3787.1 | Q43: 123.9866917 | S43: 4432.5
B44: 内宿泊客 | C44: ='上期 2-24頁'!E1172 -> 68.7 | D44: ='上期 2-24頁'!F1172 -> 122.9 | E44: ='上期 2-24頁'!G1172 -> 136.6 | F44: ='上期 2-24頁'!H1172 -> 158.4 | G44: ='上期 2-24頁'!I1172 -> 175.2 | H44: ='上期 2-24頁'!J1172 -> 151.5 | O44: 813.3 | P44: ='上期 2-24頁'!R1172 -> 711.9 | Q44: 114.2435735 | S44: 935.5
B45: 宿泊客延数 | C45: ='上期 2-24頁'!E1173 -> 83.5 | D45: ='上期 2-24頁'!F1173 -> 146.3 | E45: ='上期 2-24頁'!G1173 -> 163 | F45: ='上期 2-24頁'!H1173 -> 191.1 | G45: ='上期 2-24頁'!I1173 -> 212.2 | H45: ='上期 2-24頁'!J1173 -> 185.2 | O45: 981.3 | P45: ='上期 2-24頁'!R1173 -> 937.6 | Q45: 104.6608362 | S45: 1035.4
Z67: =Z2 -> 0
Z132: =Z67 -> 0
Z197: =Z132 -> 0
Z262: =Z197 -> 0
Z327: =Z262 -> 0
Z392: =Z327 -> 0

Sheet 上期 2-24頁
A1: １ 令和５年度（2023年度）上期 市町村別・月別観光入込客数
S2: 単位：入込総数→千人、宿泊客延数→千人泊、対前年比→％
A3: 圏 域 | B3: 振興局 | C3: 市町村名 | D3: 区 分 | E3: ４ 月 | F3: ５ 月 | G3: ６ 月 | H3: ７ 月 | I3: ８ 月 | J3: ９ 月 | K3: １０月 | L3: １１月 | M3: １２月 | N3: １ 月 | O3: ２ 月 | P3: ３ 月 | Q3: 合計 | R3: R4年度上期 | S3: 対前年比
A4: 全道計 | D4: 入込総数 | E4: =+E10+E490+E622+E907+E1036+E1168 -> 8850.341 | F4: 14914.969 | G4: 13933.878 | H4: 19525.717 | I4: 20468.199 | J4: 16342.141 | K4: 0 | L4: 0 | M4: 0 | N4: 0 | O4: 0 | P4: 0 | Q4: =+Q10+Q490+Q622+Q907+Q1036+Q1168 -> 94035.245 | R4: =+R10+R490+R622+R907+R1036+R1168 -> 75705.7 | S4: =IF(Q4=0,"－",Q4/R4*100) -> 124.2115785
D5: 内道外客 | E5: 2043.171 | F5: 3450.288 | G5: 4124.978 | H5: 5944.528 | I5: 5899.238 | J5: 4364.929 | K5: 0 | L5: 0 | M5: 0 | N5: 0 | O5: 0 | P5: 0 | Q5: 25827.132 | R5: 17169.07 | S5: 150.4282527
D6: 内道内客 | E6: 6807.17 | F6: 11464.681 | G6: 9808.9 | H6: 13581.189 | I6: 14568.961 | J6: 11977.212 | K6: 0 | L6: 0 | M6: 0 | N6: 0 | O6: 0 | P6: 0 | Q6: 68208.113 | R6: 58536.63 | S6: 116.5221042
D7: 内日帰客 | E7: 7406.412 | F7: 12882.594 | G7: 11628.668 | H7: 16652.777 | I7: 17530.316 | J7: 13909.948 | K7: 0 | L7: 0 | M7: 0 | N7: 0 | O7: 0 | P7: 0 | Q7: 80010.715 | R7: 64721.8 | S7: 123.622512
D8: 内宿泊客 | E8: 1443.929 | F8: 2032.375 | G8: 2305.21 | H8: 2872.94 | I8: 2937.883 | J8: 2432.193 | K8: 0 | L8: 0 | M8: 0 | N8: 0 | O8: 0 | P8: 0 | Q8: 14024.53 | R8: 10983.9 | S8: 127.6826082
D9: 宿泊客延数 | E9: 2088.684 | F9: 2740.09 | G9: 2967.191 | H9: 4089.284 | I9: 4333.802 | J9: 3552.427 | K9: 0 | L9: 0 | M9: 0 | N9: 0 | O9: 0 | P9: 0 | Q9: 19771.478 | R9: 16356.9 | S9: 120.8754593
A10: 道央圏域計 | D10: 入込総数 | E10: =+E16+E175+E232+E364+E439 -> 5547.9 | F10: 8582.6 | G10: 7823.5 | H10: 10445.4 | I10: 11240.6 | J10: 9139.8 | K10: 0 | L10: 0 | M10: 0 | N10: 0 | O10: 0 | P10: 0 | Q10: 52779.8 | R10: 39807.9 | S10: 132.5862454
D11: 内道外客 | E11: 1145 | F11: 1623.2 | G11: 1849.5 | H11: 2310.6 | I11: 2563.7 | J11: 1914.6 | K11: 0 | L11: 0 | M11: 0 | N11: 0 | O11: 0 | P11: 0 | Q11: 11406.6 | R11: =+R17+R176+R233+R365+R440 -> 6595.27 | S11: 172.9512211
D12: 内道内客 | E12: 4402.9 | F12: 6959.4 | G12: 5974 | H12: 8134.8 | I12: 8676.9 | J12: 7225.2 | K12: 0 | L12: 0 | M12: 0 | N12: 0 | O12: 0 | P12: 0 | Q12: 41373.2 | R12: =+R18+R177+R234+R366+R441 -> 33212.63 | S12: 124.5706829
D13: 内日帰客 | E13: 4724.7 | F13: 7482.8 | G13: 6557.9 | H13: 8941 | I13: 9752.6 | J13: 7799.6 | K13: 0 | L13: 0 | M13: 0 | N13: 0 | O13: 0 | P13: 0 | Q13: 45258.6 | R13: =+R19+R178+R235+R367+R442 -> 34350.8 | S13: 131.7541367
D14: 内宿泊客 | E14: 823.2 | F14: 1099.8 | G14: 1265.6 | H14: 1504.4 | I14: 1488 | J14: 1340.2 | K14: 0 | L14: 0 | M14: 0 | N14: 0 | O14: 0 | P14: 0 | Q14: 7521.2 | R14: =+R20+R179+R236+R368+R443 -> 5457.1 | S14: 137.824119
D15: 宿泊客延数 | E15: 1317.655 | F15: 1609.37 | G15: 1690.987 | H15: 2386.729 | I15: 2525.714 | J15: 2215.51 | K15: 0 | L15: 0 | M15: 0 | N15: 0 | O15: 0 | P15: 0 | Q15: 11745.965 | R15: =+R21+R180+R237+R369+R444 -> 9445.9 | S15: 124.3498767
B16: 空知総合振興局計 | D16: 入込総数 | E16: =+E22+E28+E34+E40+E46+E52+E61+E67+E73+E79+E85+E91+E97+E103+E109+E118+E124+E130+E136+E142+E148+E154+E160+E166 -> 759.7 | F16: 1495 | G16: 1228.1 | H16: 1784.2 | I16: 1910.8 | J16: 1384.8 | K16: 0 | L16: 0 | M16: 0 | N16: 0 | O16: 0 | P16: 0 | Q16: 8562.6 | R16: =+R22+R28+R34+R40+R46+R52+R61+R67+R73+R79+R85+R91+R97+R103+R109+R118+R124+R130+R136+R142+R148+R154+R160+R166 -> 7666.7 | S16: 111.6856014
D17: 内道外客 | E17: 58.2 | F17: 109.5 | G17: 98.1 | H17: 158.2 | I17: 207.8 | J17: 99 | K17: 0 | L17: 0 | M17: 0 | N17: 0 | O17: 0 | P17: 0 | Q17: 730.8 | R17: 537.47 | S17: 135.9703797
D18: 内道内客 | E18: 701.5 | F18: 1385.5 | G18: 1130 | H18: 1626 | I18: 1703 | J18: 1285.8 | K18: 0 | L18: 0 | M18: 0 | N18: 0 | O18: 0 | P18: 0 | Q18: 7831.8 | R18: 7129.23 | S18: 109.854781
D19: 内日帰客 | E19: 740 | F19: 1459.5 | G19: 1191.2 | H19: 1729.6 | I19: 1850.2 | J19: 1341 | K19: 0 | L19: 0 | M19: 0 | N19: 0 | O19: 0 | P19: 0 | Q19: 8311.5 | R19: 7435.9 | S19: 111.7753063
D20: 内宿泊客 | E20: 19.7 | F20: 35.5 | G20: 36.9 | H20: 54.6 | I20: 60.6 | J20: 43.8 | K20: 0 | L20: 0 | M20: 0 | N20: 0 | O20: 0 | P20: 0 | Q20: 251.1 | R20: 230.8 | S20: 108.7954939
D21: 宿泊客延数 | E21: 20 | F21: 36.8 | G21: 38.5 | H21: 57.1 | I21: 64.3 | J21: 45.8 | K21: 0 | L21: 0 | M21: 0 | N21: 0 | O21: 0 | P21: 0 | Q21: 262.5 | R21: 244.8 | S21: 107.2303922
C22: 夕張市 | D22: 入込総数 | E22: 11.1 | F22: 21.8 | G22: 30.8 | H22: 41.5 | I22: 30.1 | J22: 18.3 | Q22: =SUM(E22:P22) -> 153.6 | R22: 141.9 | S22: 108.2452431 | U22: 新型コロナウイルス感染症による制限緩和および市内イベントの復活による入込客数の増加。
D23: 内道外客 | E23: 0.6 | F23: 1.4 | G23: 1.9 | H23: 2.7 | I23: 1.9 | J23: 1.2 | Q23: 9.7 | R23: 9 | S23: 107.7777778
D24: 内道内客 | E24: =+E22-E23 -> 10.5 | F24: =+F22-F23 -> 20.4 | G24: 28.9 | H24: 38.8 | I24: 28.2 | J24: 17.1 | K24: 0 | L24: 0 | M24: 0 | N24: 0 | O24: 0 | P24: 0 | Q24: 143.9 | R24: 132.9 | S24: 108.2768999
D25: 内日帰客 | E25: =+E22-E26 -> 11.1 | F25: =+F22-F26 -> 21.5 | G25: 30.3 | H25: 40.4 | I25: 29.1 | J25: 17.7 | K25: 0 | L25: 0 | M25: 0 | N25: 0 | O25: 0 | P25: 0 | Q25: 150.1 | R25: 140.3 | S25: 106.9850321
D26: 内宿泊客 | E26: 0 | F26: 0.3 | G26: 0.5 | H26: 1.1 | I26: 1 | J26: 0.6 | Q26: 3.5 | R26: 1.6 | S26: 218.75
D27: 宿泊客延数 | E27: 0 | F27: 0.3 | G27: 0.6 | H27: 1.2 | I27: 1.1 | J27: 0.6 | Q27: =SUM(E27:P27) -> 3.8 | R27: 1.6 | S27: 237.5
C28: 岩見沢市 | D28: 入込総数 | E28: 40.6 | F28: 99.6 | G28: 85.3 | H28: 157.3 | I28: 119.2 | J28: 107.2 | Q28: 609.2 | R28: 586.6 | S28: 103.8527105 | U28: 新型コロナウイルス感染症の５類への引き下げに伴うイベント通常開催による来場者の増
D29: 内道外客 | E29: 2.1 | F29: 3.8 | G29: 3.9 | H29: 7.3 | I29: 4.5 | J29: 4 | Q29: 25.6 | R29: 19.9 | S29: 128.6432161
D30: 内道内客 | E30: =+E28-E29 -> 38.5 | F30: =+F28-F29 -> 95.8 | G30: 81.4 | H30: 150 | I30: 114.7 | J30: 103.2 | K30: 0 | L30: 0 | M30: 0 | N30: 0 | O30: 0 | P30: 0 | Q30: =+Q28-Q29 -> 583.6 | R30: 566.7 | S30: 102.9821775
D31: 内日帰客 | E31: =+E28-E32 -> 36.4 | F31: =+F28-F32 -> 94.7 | G31: 79.3 | H31: 150.2 | I31: 112.5 | J31: 101.4 | K31: 0 | L31: 0 | M31: 0 | N31: 0 | O31: 0 | P31: 0 | Q31: =+Q28-Q32 -> 574.5 | R31: 559.7 | S31: 102.6442737
D32: 内宿泊客 | E32: 4.2 | F32: 4.9 | G32: 6 | H32: 7.1 | I32: 6.7 | J32: 5.8 | Q32: =SUM(E32:P32) -> 34.7 | R32: 26.9 | S32: 128.9962825
D33: 宿泊客延数 | E33: 4.4 | F33: 5.1 | G33: 6.3 | H33: 7.4 | I33: 7 | J33: 6 | Q33: =SUM(E33:J33) -> 36.2 | R33: 34.5 | S33: 104.9275362
C34: 美唄市 | D34: 入込総数 | E34: 44.6 | F34: 35.1 | G34: 29.8 | H34: 31.7 | I34: 37 | J34: 36.4 | Q34: =SUM(E34:P34) -> 214.6 | R34: 170 | S34: 126.2352941 | U34: イベントが通常開催となり、前年と比較すると、約2.8万人の増となった、 また、各施設において、観光客等の利用者増となったことから、全体的に入込客数の増加につながった。 | V34: 1
D35: 内道外客 | E35: 0.4 | F35: 1.8 | G35: 2.4 | H35: 2.2 | I35: 2 | J35: 1.7 | Q35: 10.5 | R35: 7.1 | S35: 147.8873239
D36: 内道内客 | E36: =+E34-E35 -> 44.2 | F36: =+F34-F35 -> 33.3 | G36: 27.4 | H36: 29.5 | I36: 35 | J36: 34.7 | K36: 0 | L36: 0 | M36: 0 | N36: 0 | O36: 0 | P36: 0 | Q36: =+Q34-Q35 -> 204.1 | R36: 162.9 | S36: 125.2915899
D37: 内日帰客 | E37: =+E34-E38 -> 43.4 | F37: =+F34-F38 -> 33.1 | G37: 27.2 | H37: 28.5 | I37: 33.8 | J37: 33.9 | K37: 0 | L37: 0 | M37: 0 | N37: 0 | O37: 0 | P37: 0 | Q37: =+Q34-Q38 -> 199.9 | R37: 157.6 | S37: 126.8401015
D38: 内宿泊客 | E38: 1.2 | F38: 2 | G38: 2.6 | H38: 3.2 | I38: 3.2 | J38: 2.5 | Q38: 14.7 | R38: 12.4 | S38: 118.5483871
D39: 宿泊客延数 | E39: 1.2 | F39: 2 | G39: 2.6 | H39: 3.2 | I39: 3.2 | J39: 2.5 | Q39: 14.7 | R39: 12.4 | S39: 118.5483871
C40: 芦別市 | D40: 入込総数 | E40: 48.1 | F40: 120 | G40: 115.1 | H40: 183.9 | I40: 168.4 | J40: 120.7 | Q40: 756.2 | R40: 601.4 | S40: 125.7399401 | U40: 新型コロナウイルス感染症法上の位置付けが５類感染症に移行された事に伴い、イベントが再開されたことや旅行需要の拡大により、本市の観光施設である道の駅やスターライトホテル等の健民センターエリアへの入込客数が増加したことによるもの。
D41: 内道外客 | E41: 0.4 | F41: 1.6 | G41: 2.7 | H41: 8.2 | I41: 4.5 | J41: 1.9 | Q41: 19.3 | R41: 16.9 | S41: 114.2011834
D42: 内道内客 | E42: =+E40-E41 -> 47.7 | F42: =+F40-F41 -> 118.4 | G42: 112.4 | H42: 175.7 | I42: 163.9 | J42: 118.8 | K42: 0 | L42: 0 | M42: 0 | N42: 0 | O42: 0 | P42: 0 | Q42: =+Q40-Q41 -> 736.9 | R42: 584.5 | S42: 126.0735672
D43: 内日帰客 | E43: =+E40-E44 -> 44.9 | F43: =+F40-F44 -> 114.5 | G43: 109.1 | H43: 175.7 | I43: 159.5 | J43: 114.5 | K43: 0 | L43: 0 | M43: 0 | N43: 0 | O43: 0 | P43: 0 | Q43: =+Q40-Q44 -> 718.2 | R43: 566.8 | S43: 126.711362
D44: 内宿泊客 | E44: 3.2 | F44: 5.5 | G44: 6 | H44: 8.2 | I44: 8.9 | J44: 6.2 | Q44: 38 | R44: 34.6 | S44: 109.8265896
D45: 宿泊客延数 | E45: 3.2 | F45: 5.6 | G45: 6.1 | H45: 8.4 | I45: 9.2 | J45: 6.3 | Q45: 38.8 | R45: 35.3 | S45: 109.9150142
C46: 赤平市 | D46: 入込総数 | E46: 18.2 | F46: 19.2 | G46: 17.2 | H46: 55.8 | I46: 30.5 | J46: 24.1 | Q46: 165 | R46: 137.1 | S46: 120.3501094 | U46: 新型コロナウィルスが５類に移行され、多くの方が来訪した。４月は４年ぶりにらんフェスタ赤平が開催され、７月はあかびら火まつりが２日間の日程に戻り、最終日は市民花火大会も開催されたこともあり、増加となった。
D47: 内道外客 | E47: 0 | F47: 0 | G47: 0 | H47: 0 | I47: 0 | J47: 0 | Q47: 0 | R47: 0 | S47: －
D48: 内道内客 | E48: =+E46-E47 -> 18.2 | F48: =+F46-F47 -> 19.2 | G48: 17.2 | H48: 55.8 | I48: 30.5 | J48: 24.1 | K48: 0 | L48: 0 | M48: 0 | N48: 0 | O48: 0 | P48: 0 | Q48: =+Q46-Q47 -> 165 | R48: 137.1 | S48: 120.3501094
D49: 内日帰客 | E49: =+E46-E50 -> 17.8 | F49: =+F46-F50 -> 17.9 | G49: 15.8 | H49: 53 | I49: 26.7 | J49: 22.3 | K49: 0 | L49: 0 | M49: 0 | N49: 0 | O49: 0 | P49: 0 | Q49: =+Q46-Q50 -> 153.5 | R49: 125.4 | S49: 122.4082935
D50: 内宿泊客 | E50: 0.4 | F50: 1.3 | G50: 1.4 | H50: 2.8 | I50: 3.8 | J50: 1.8 | Q50: 11.5 | R50: 11.7 | S50: 98.29059829
D51: 宿泊客延数 | E51: 0.4 | F51: 1.3 | G51: 1.4 | H51: 2.8 | I51: 3.8 | J51: 1.8 | Q51: 11.5 | R51: 11.7 | S51: 98.29059829
C52: 三笠市 | D52: 入込総数 | E52: 69.7 | F52: 116.1 | G52: 93.8 | H52: 117.8 | I52: 158.7 | J52: 108.2 | Q52: 664.3 | R52: 641 | S52: 103.6349454 | U52: 新型コロナウイルス感染症が5類に移行したことにより、日本人旅行者や訪日外国人旅行者が増加し、市内の各施設の来客数が増加した。
D53: 内道外客 | E53: 4.9 | F53: 8.1 | G53: 6.6 | H53: 8.2 | I53: 11.1 | J53: 7.6 | Q53: 46.5 | R53: 44.87 | S53: 103.6327167
D54: 内道内客 | E54: =+E52-E53 -> 64.8 | F54: =+F52-F53 -> 108 | G54: 87.2 | H54: 109.6 | I54: 147.6 | J54: 100.6 | K54: 0 | L54: 0 | M54: 0 | N54: 0 | O54: 0 | P54: 0 | Q54: =+Q52-Q53 -> 617.8 | R54: 596.13 | S54: 103.6351131
D55: 内日帰客 | E55: =+E52-E56 -> 68.3 | F55: =+F52-F56 -> 114.1 | G55: 91.7 | H55: 115.2 | I55: 155.9 | J55: 106 | K55: 0 | L55: 0 | M55: 0 | N55: 0 | O55: 0 | P55: 0 | Q55: =+Q52-Q56 -> 651.2 | R55: 631.2 | S55: 103.1685678
D56: 内宿泊客 | E56: 1.4 | F56: 2 | G56: 2.1 | H56: 2.6 | I56: 2.8 | J56: 2.2 | Q56: 13.1 | R56: 9.8 | S56: 133.6734694
D57: 宿泊客延数 | E57: 1.4 | F57: 2 | G57: 2.1 | H57: 2.6 | I57: 2.8 | J57: 2.2 | Q57: 13.1 | R57: 9.8 | S57: 133.6734694
A58: =A1 -> １ 令和５年度（2023年度）上期 市町村別・月別観光入込客数
S59: 単位：入込総数→千人、宿泊客延数→千人泊、対前年比→％
A60: 圏 域 | B60: 振興局 | C60: 市町村名 | D60: 区 分 | E60: ４ 月 | F60: ５ 月 | G60: ６ 月 | H60: ７ 月 | I60: ８ 月 | J60: ９ 月 | K60: １０月 | L60: １１月 | M60: １２月 | N60: １ 月 | O60: ２ 月 | P60: ３ 月 | Q60: 合計 | R60: =$R$3 -> R4年度上期 | S60: 対前年比
C61: 滝川市 | D61: 入込総数 | E61: 39.9 | F61: 138.1 | G61: 63.7 | H61: 72.3 | I61: 88.8 | J61: 61.7 | Q61: =SUM(E61:P61) -> 464.5 | R61: 431.1 | S61: =IF(Q61=0,"－",Q61/R61*100) -> 107.7476224 | U61: 令和５年度上期は前年比107.7％（33583人増）と前年よりも増加した。 要因としては、道外客の前年比が171.0％であることから、新型コロナウイルス感染症が５類感染症に移行したことにより、旅行需要が高まったことが影響と考えられる。
D62: 内道外客 | E62: 4.5 | F62: 11 | G62: 6.7 | H62: 8 | I62: 9.3 | J62: 7 | Q62: 46.5 | R62: 27.2 | S62: 170.9558824
A63: 道 央 | B63: 空 知 | D63: 内道内客 | E63: =+E61-E62 -> 35.4 | F63: =+F61-F62 -> 127.1 | G63: 57 | H63: 64.3 | I63: 79.5 | J63: 54.7 | K63: 0 | L63: 0 | M63: 0 | N63: 0 | O63: 0 | P63: 0 | Q63: =+Q61-Q62 -> 418 | R63: 403.9 | S63: 103.4909631
D64: 内日帰客 | E64: =+E61-E65 -> 39.1 | F64: =+F61-F65 -> 136.2 | G64: 61.9 | H64: 68.8 | I64: 84.3 | J64: 59.1 | K64: 0 | L64: 0 | M64: 0 | N64: 0 | O64: 0 | P64: 0 | Q64: =+Q61-Q65 -> 449.4 | R64: 414.5 | S64: 108.4197829
D65: 内宿泊客 | E65: 0.8 | F65: 1.9 | G65: 1.8 | H65: 3.5 | I65: 4.5 | J65: 2.6 | Q65: 15.1 | R65: 16.6 | S65: 90.96385542
D66: 宿泊客延数 | E66: 0.8 | F66: 2.3 | G66: 2.4 | H66: 4.2 | I66: 5.6 | J66: 3.7 | Q66: 19 | R66: 18.9 | S66: 100.5291005
C67: 砂川市 | D67: 入込総数 | E67: 75.9 | F67: 179.1 | G67: 140.1 | H67: 205.5 | I67: 224.9 | J67: 146.7 | Q67: 972.2 | R67: 750.2 | S67: 129.5921088 | U67: 前年と比べハイウェイオアシス館や北海道子どもの国、砂川オアシスパークで入込客数が大きく増加し、菓子店舗などでも入込が増えた地点があることから全体的に入込客数が増加した。 | V67: 1
D68: 内道外客 | E68: 13.1 | F68: 31 | G68: 26 | H68: 31.9 | I68: 39.1 | J68: 26.8 | Q68: 167.9 | R68: 142.6 | S68: 117.7419355
D69: 内道内客 | E69: =+E67-E68 -> 62.8 | F69: =+F67-F68 -> 148.1 | G69: 114.1 | H69: =+H67-H68 -> 173.6 | I69: 185.8 | J69: 119.9 | K69: 0 | L69: 0 | M69: 0 | N69: 0 | O69: 0 | P69: 0 | Q69: =+Q67-Q68 -> 804.3 | R69: 607.6 | S69: 132.3732719
D70: 内日帰客 | E70: =+E67-E71 -> 75.4 | F70: =+F67-F71 -> 178.7 | G70: 139.2 | H70: 203.6 | I70: 223 | J70: 145.9 | K70: 0 | L70: 0 | M70: 0 | N70: 0 | O70: 0 | P70: 0 | Q70: =+Q67-Q71 -> 965.8 | R70: 746 | S70: 129.463807
D71: 内宿泊客 | E71: 0.5 | F71: 0.4 | G71: 0.9 | H71: 1.9 | I71: 1.9 | J71: 0.8 | Q71: 6.4 | R71: 4.2 | S71: 152.3809524
D72: 宿泊客延数 | E72: 0.5 | F72: 0.4 | G72: 0.9 | H72: 2.2 | I72: 2 | J72: 0.8 | Q72: 6.8 | R72: 4.5 | S72: 151.1111111
C73: 歌志内市 | D73: 入込総数 | E73: 12.9 | F73: 18.1 | G73: 14 | H73: 18.1 | I73: 18.9 | J73: 15 | Q73: 97 | R73: 85.8 | S73: 113.0536131 | U73: 新型コロナウイルス感染症の第五類への移行の影響もあり、観光入込客数が増加していると考えられる。
D74: 内道外客 | E74: 0 | F74: 0 | G74: 0 | H74: 0 | I74: 0 | J74: 0 | Q74: 0 | R74: 0.4 | S74: －
D75: 内道内客 | E75: =+E73-E74 -> 12.9 | F75: =+F73-F74 -> 18.1 | G75: 14 | H75: 18.1 | I75: 18.9 | J75: 15 | K75: 0 | L75: 0 | M75: 0 | N75: 0 | O75: 0 | P75: 0 | Q75: =+Q73-Q74 -> 97 | R75: 85.4 | S75: 113.5831382
D76: 内日帰客 | E76: =+E73-E77 -> 12.7 | F76: =+F73-F77 -> 17.7 | G76: 13.6 | H76: 17.5 | I76: 17.9 | J76: 14.5 | K76: 0 | L76: 0 | M76: 0 | N76: 0 | O76: 0 | P76: 0 | Q76: =+Q73-Q77 -> 93.9 | R76: 83.1 | S76: 112.9963899
D77: 内宿泊客 | E77: 0.2 | F77: 0.4 | G77: 0.4 | H77: 0.6 | I77: 1 | J77: 0.5 | Q77: 3.1 | R77: 2.7 | S77: 114.8148148
D78: 宿泊客延数 | E78: 0.2 | F78: 0.4 | G78: 0.4 | H78: 0.6 | I78: 1 | J78: 0.5 | Q78: 3.1 | R78: 2.7 | S78: 114.8148148
C79: 深川市 | D79: 入込総数 | E79: 81 | F79: 121.9 | G79: 104.8 | H79: 170.7 | I79: 126.6 | J79: 96.3 | Q79: 701.3 | R79: 678.4 | S79: 103.3755896 | U79: 新型コロナが5類感染症に変更され、全国的に人の動きが活発化しており、本市への入込客数も増加し、観光需要が回復してきているものと考えられる。 | V79: 1
D80: 内道外客 | E80: 7.1 | F80: 10.6 | G80: 9.1 | H80: 12.6 | I80: 11.8 | J80: 9.6 | Q80: 60.8 | R80: 62.7 | S80: 96.96969697
D81: 内道内客 | E81: =+E79-E80 -> 73.9 | F81: =+F79-F80 -> 111.3 | G81: 95.7 | H81: 158.1 | I81: 114.8 | J81: 86.7 | K81: 0 | L81: 0 | M81: 0 | N81: 0 | O81: 0 | P81: 0 | Q81: =+Q79-Q80 -> 640.5 | R81: 615.7 | S81: 104.0279357
D82: 内日帰客 | E82: =+E79-E83 -> 79.4 | F82: =+F79-F83 -> 117.9 | G82: 102.5 | H82: 166.9 | I82: 121 | J82: 92.8 | K82: 0 | L82: 0 | M82: 0 | N82: 0 | O82: 0 | P82: 0 | Q82: =+Q79-Q83 -> 680.5 | R82: 657.2 | S82: 103.5453439
D83: 内宿泊客 | E83: 1.6 | F83: 4 | G83: 2.3 | H83: 3.8 | I83: 5.6 | J83: 3.5 | Q83: 20.8 | R83: 21.2 | S83: 98.11320755
D84: 宿泊客延数 | E84: 1.6 | F84: 4.4 | G84: 2.5 | H84: 4.4 | I84: 7.1 | J84: 3.9 | Q84: 23.9 | R84: 22.8 | S84: 104.8245614
C85: 南幌町 | D85: 入込総数 | E85: 20.6 | F85: 53.1 | G85: 41.7 | H85: 45.5 | I85: 52.4 | J85: 39.8 | Q85: 253.1 | R85: 145.4 | S85: 174.0715268 | U85: 新たな観光施設が１箇所増えた（子供屋内遊戯施設が5/3にオープン）ことに加え、新型コロナウイルスが5月に5類へ移行したことによる人流の回復によるものと考えられる。 | V85: 1
D86: 内道外客 | E86: 0 | F86: 0 | G86: 0 | H86: 0 | I86: 0 | J86: 0 | Q86: 0 | R86: 0 | S86: －
D87: 内道内客 | E87: =+E85-E86 -> 20.6 | F87: =+F85-F86 -> 53.1 | G87: 41.7 | H87: 45.5 | I87: 52.4 | J87: 39.8 | K87: 0 | L87: 0 | M87: 0 | N87: 0 | O87: 0 | P87: 0 | Q87: =+Q85-Q86 -> 253.1 | R87: 145.4 | S87: 174.0715268
D88: 内日帰客 | E88: =+E85-E89 -> 20 | F88: =+F85-F89 -> 51.1 | G88: 39.8 | H88: 42.9 | I88: 49.6 | J88: 37.1 | K88: 0 | L88: 0 | M88: 0 | N88: 0 | O88: 0 | P88: 0 | Q88: =+Q85-Q89 -> 240.5 | R88: 133 | S88: 180.8270677
D89: 内宿泊客 | E89: 0.6 | F89: 2 | G89: 1.9 | H89: 2.6 | I89: 2.8 | J89: 2.7 | Q89: 12.6 | R89: 12.4 | S89: 101.6129032
D90: 宿泊客延数 | E90: 0.6 | F90: 2 | G90: 1.9 | H90: 2.6 | I90: 2.8 | J90: 2.7 | Q90: 12.6 | R90: 12.4 | S90: 101.6129032
C91: 奈井江町 | D91: 入込総数 | E91: 13 | F91: 22.2 | G91: 17.5 | H91: 19.8 | I91: 27.3 | J91: 20.1 | Q91: 119.9 | R91: 104.3 | S91: 114.9568552 | U91: 新型コロナウイルス感染拡大防止のための行動制限もなくなり、また、感染に対する危機感も薄れたため、行動範囲が広くなり、結果として、入込客数の増加につながった。 | V91: 1
D92: 内道外客 | E92: 0.1 | F92: 0.2 | G92: 0.2 | H92: 0.2 | I92: 0.3 | J92: 0.2 | Q92: 1.2 | R92: 1 | S92: 120
D93: 内道内客 | E93: =+E91-E92 -> 12.9 | F93: =+F91-F92 -> 22 | G93: 17.3 | H93: 19.6 | I93: 27 | J93: 19.9 | K93: 0 | L93: 0 | M93: 0 | N93: 0 | O93: 0 | P93: 0 | Q93: =+Q91-Q92 -> 118.7 | R93: 103.3 | S93: 114.9080348
D94: 内日帰客 | E94: =+E91-E95 -> 13 | F94: =+F91-F95 -> 22.2 | G94: 17.5 | H94: 19.8 | I94: 27.3 | J94: 20.1 | K94: 0 | L94: 0 | M94: 0 | N94: 0 | O94: 0 | P94: 0 | Q94: =+Q91-Q95 -> 119.9 | R94: 104.3 | S94: 114.9568552
D95: 内宿泊客 | Q95: 0 | R95: 0 | S95: －
D96: 宿泊客延数 | Q96: 0 | R96: 0 | S96: －
C97: 上砂川町 | D97: 入込総数 | E97: 6.6 | F97: 6.8 | G97: 7.3 | H97: 7.9 | I97: 13.1 | J97: 7.2 | Q97: 48.9 | R97: 46.8 | S97: 104.4871795 | U97: 上期を通して昨年より観光入込客数は微増の傾向がみられるが、コロナウイルス流行前の客足には及ばず、いまだコロナの影響が尾を引いていると考えられる。 また、８月は仮装盆踊りが2年連続での開催となり、3年ぶりの開催であった去年と比べ観光客数が減少した。 | V97: 1
D98: 内道外客 | E98: 0.1 | F98: 0.1 | G98: 0.1 | H98: 0.2 | I98: 0.2 | J98: 0.1 | Q98: 0.8 | R98: 1 | S98: 80
D99: 内道内客 | E99: =+E97-E98 -> 6.5 | F99: =+F97-F98 -> 6.7 | G99: 7.2 | H99: 7.7 | I99: 12.9 | J99: 7.1 | K99: 0 | L99: 0 | M99: 0 | N99: 0 | O99: 0 | P99: 0 | Q99: =+Q97-Q98 -> 48.1 | R99: 45.8 | S99: 105.0218341
D100: 内日帰客 | E100: =+E97-E101 -> 6.3 | F100: =+F97-F101 -> 6.3 | G100: 6.5 | H100: 7.2 | I100: 12.4 | J100: 6.7 | K100: 0 | L100: 0 | M100: 0 | N100: 0 | O100: 0 | P100: 0 | Q100: =+Q97-Q101 -> 45.4 | R100: 43.7 | S100: 103.8901602
D101: 内宿泊客 | E101: 0.3 | F101: 0.5 | G101: 0.8 | H101: 0.7 | I101: 0.7 | J101: 0.5 | Q101: 3.5 | R101: 3.1 | S101: 112.9032258
D102: 宿泊客延数 | E102: 0.4 | F102: 0.6 | G102: 1 | H102: 0.8 | I102: 0.8 | J102: 0.6 | Q102: 4.2 | R102: 3.7 | S102: 113.5135135
C103: 由仁町 | D103: 入込総数 | E103: 19.8 | F103: 31.9 | G103: 31 | H103: 32.7 | I103: 28.4 | J103: 30.8 | Q103: 174.6 | R103: 185.9 | S103: 93.92146315 | U103: 夏の暑さが影響し、日帰り施設の客数が減少した。
D104: 内道外客 | E104: 19.4 | F104: 30.2 | G104: 28.1 | H104: 29.6 | I104: 26.2 | J104: 28.4 | Q104: 161.9 | R104: 4.9 | S104: 3304.081633
D105: 内道内客 | E105: =+E103-E104 -> 0.4 | F105: =+F103-F104 -> 1.7 | G105: 2.9 | H105: 3.1 | I105: 2.2 | J105: 2.4 | K105: 0 | L105: 0 | M105: 0 | N105: 0 | O105: 0 | P105: 0 | Q105: =+Q103-Q104 -> 12.7 | R105: 181 | S105: 7.016574586
D106: 内日帰客 | E106: =+E103-E107 -> 19.2 | F106: =+F103-F107 -> 30.6 | G106: 29.6 | H106: 30.9 | I106: 26.5 | J106: 29.2 | K106: 0 | L106: 0 | M106: 0 | N106: 0 | O106: 0 | P106: 0 | Q106: =+Q103-Q107 -> 166 | R106: 175.8 | S106: 94.4254835
D107: 内宿泊客 | E107: 0.6 | F107: 1.3 | G107: 1.4 | H107: 1.8 | I107: 1.9 | J107: 1.6 | Q107: 8.6 | R107: 10.1 | S107: 85.14851485
D108: 宿泊客延数 | E108: 0.6 | F108: 1.3 | G108: 1.4 | H108: 1.8 | I108: 1.9 | J108: 1.6 | Q108: 8.6 | R108: 10.1 | S108: 85.14851485
C109: 長沼町 | D109: 入込総数 | E109: 119.5 | F109: 293.3 | G109: 235.9 | H109: 268 | I109: 282.1 | J109: 241.6 | Q109: 1440.4 | R109: 1237.3 | S109: 116.4147741 | U109: コロナ禍が終わり様々な制限がなくなり町外から訪れる観光客が増加したこと、また、道の駅直売所等施設のリニューアルをしたことも増加の要因と考えられる。 | V109: 1
D110: 内道外客 | E110: 0.1 | F110: 0.3 | G110: 0.4 | H110: 0.7 | I110: 0.6 | J110: 1 | Q110: 3.1 | R110: 2 | S110: 155
D111: 内道内客 | E111: =+E109-E110 -> 119.4 | F111: =+F109-F110 -> 293 | G111: 235.5 | H111: 267.3 | I111: 281.5 | J111: 240.6 | K111: 0 | L111: 0 | M111: 0 | N111: 0 | O111: 0 | P111: 0 | Q111: =+Q109-Q110 -> 1437.3 | R111: 1235.3 | S111: 116.3523031
D112: 内日帰客 | E112: =+E109-E113 -> 118.8 | F112: =+F109-F113 -> 291.2 | G112: 233.8 | H112: 264.6 | I112: 277.9 | J112: 238.7 | K112: 0 | L112: 0 | M112: 0 | N112: 0 | O112: 0 | P112: 0 | Q112: =+Q109-Q113 -> 1425 | R112: 1219.9 | S112: 116.8128535
D113: 内宿泊客 | E113: 0.7 | F113: 2.1 | G113: 2.1 | H113: 3.4 | I113: 4.2 | J113: 2.9 | Q113: 15.4 | R113: 17.4 | S113: 88.50574713
D114: 宿泊客延数 | E114: 0.7 | F114: 2.2 | G114: 2.2 | H114: 3.6 | I114: 4.4 | J114: 3 | Q114: 16.1 | R114: 18.3 | S114: 87.97814208
A115: =A1 -> １ 令和５年度（2023年度）上期 市町村別・月別観光入込客数
S116: 単位：入込総数→千人、宿泊客延数→千人泊、対前年比→％
A117: 圏 域 | B117: 振興局 | C117: 市町村名 | D117: 区 分 | E117: ４ 月 | F117: ５ 月 | G117: ６ 月 | H117: ７ 月 | I117: ８ 月 | J117: ９ 月 | K117: １０月 | L117: １１月 | M117: １２月 | N117: １ 月 | O117: ２ 月 | P117: ３ 月 | Q117: 合計 | R117: =$R$3 -> R4年度上期 | S117: 対前年比
C118: 栗山町 | D118: 入込総数 | E118: 26 | F118: 27.4 | G118: 23.1 | H118: 36.4 | I118: 23.6 | J118: 126.5 | Q118: =SUM(E118:P118) -> 263 | R118: 195.8 | S118: =IF(Q118=0,"－",Q118/R118*100) -> 134.3207354 | U118: アフターコロナで団体客利用等が増えたため増加した。 | V118: 1
D119: 内道外客 | E119: 0.2 | F119: 0.3 | G119: 0.3 | H119: 0.3 | I119: 0.2 | J119: 0.3 | Q119: 1.6 | R119: 1.5 | S119: 106.6666667
A120: 道 央 | B120: 空 知 | D120: 内道内客 | E120: =+E118-E119 -> 25.8 | F120: =+F118-F119 -> 27.1 | G120: 22.8 | H120: 36.1 | I120: 23.4 | J120: 126.2 | K120: 0 | L120: 0 | M120: 0 | N120: 0 | O120: 0 | P120: 0 | Q120: =+Q118-Q119 -> 261.4 | R120: 194.3 | S120: 134.5342254
D121: 内日帰客 | E121: =+E118-E122 -> 25.7 | F121: =+F118-F122 -> 26.1 | G121: 21.6 | H121: 34.4 | I121: 21.7 | J121: 124.8 | K121: 0 | L121: 0 | M121: 0 | N121: 0 | O121: 0 | P121: 0 | Q121: =+Q118-Q122 -> 254.3 | R121: 191.4 | S121: 132.8631139
D122: 内宿泊客 | E122: 0.3 | F122: 1.3 | G122: 1.5 | H122: 2 | I122: 1.9 | J122: 1.7 | Q122: 8.7 | R122: 4.4 | S122: 197.7272727
D123: 宿泊客延数 | E123: 0.3 | F123: 1.3 | G123: 1.5 | H123: 2 | I123: 1.9 | J123: 1.7 | Q123: 8.7 | R123: 4.4 | S123: 197.7272727
C124: 月形町 | D124: 入込総数 | E124: 6.5 | F124: 10.5 | G124: 7.3 | H124: 20 | I124: 9.2 | J124: 9.6 | Q124: 63.1 | R124: 53.4 | S124: 118.164794 | U124: 月形温泉ホテル休館による減少 | V124: 1
D125: 内道外客 | E125: 0.3 | F125: 0.5 | G125: 0.4 | H125: 0.5 | I125: 0.5 | J125: 0.5 | Q125: 2.7 | R125: 2.7 | S125: 100
D126: 内道内客 | E126: =+E124-E125 -> 6.2 | F126: =+F124-F125 -> 10 | G126: 6.9 | H126: 19.5 | I126: 8.7 | J126: 9.1 | K126: 0 | L126: 0 | M126: 0 | N126: 0 | O126: 0 | P126: 0 | Q126: =+Q124-Q125 -> 60.4 | R126: 50.7 | S126: 119.1321499
D127: 内日帰客 | E127: =+E124-E128 -> 5.9 | F127: =+F124-F128 -> 9.9 | G127: 7.3 | H127: 20 | I127: 9.2 | J127: 9.6 | K127: 0 | L127: 0 | M127: 0 | N127: 0 | O127: 0 | P127: 0 | Q127: =+Q124-Q128 -> 61.9 | R127: 50.1 | S127: 123.5528942
D128: 内宿泊客 | E128: 0.6 | F128: 0.6 | G128: 0 | H128: 0 | I128: 0 | J128: 0 | Q128: 1.2 | R128: 3.3 | S128: 36.36363636
D129: 宿泊客延数 | E129: 0.6 | F129: 0.6 | G129: 0 | H129: 0 | I129: 0 | J129: 0 | Q129: 1.2 | R129: 3.3 | S129: 36.36363636
C130: 浦臼町 | D130: 入込総数 | E130: 8 | F130: 21.9 | G130: 15.1 | H130: 23.8 | I130: 35 | J130: 24.6 | Q130: 128.4 | R130: 160.6 | S130: 79.9501868 | U130: 道の駅内１店舗で、入込客数の集計方法を店舗利用者のみに変更したため、大きく減少したように見えるが、当該店舗を除くと、ほぼどの拠点も入込客数は微増している。また、R2より実施を見合わせていたイベントを通常開催としたことにより、前年度よりも入込客数は増加している。
D131: 内道外客 | E131: 0.1 | F131: 0.1 | G131: 0.1 | H131: 0.1 | I131: 0.1 | J131: 0.1 | Q131: 0.6 | R131: 0.6 | S131: 100
D132: 内道内客 | E132: =+E130-E131 -> 7.9 | F132: =+F130-F131 -> 21.8 | G132: 15 | H132: 23.7 | I132: 34.9 | J132: 24.5 | K132: 0 | L132: 0 | M132: 0 | N132: 0 | O132: 0 | P132: 0 | Q132: =+Q130-Q131 -> 127.8 | R132: 160 | S132: 79.875
D133: 内日帰客 | E133: =+E130-E134 -> 7.8 | F133: =+F130-F134 -> 20.9 | G133: 14.1 | H133: 22.2 | I133: 33.3 | J133: 22.8 | K133: 0 | L133: 0 | M133: 0 | N133: 0 | O133: 0 | P133: 0 | Q133: =+Q130-Q134 -> 121.1 | R133: 153.6 | S133: 78.84114583
D134: 内宿泊客 | E134: 0.2 | F134: 1 | G134: 1 | H134: 1.6 | I134: 1.7 | J134: 1.8 | Q134: 7.3 | R134: 7 | S134: 104.2857143
D135: 宿泊客延数 | E135: 0.2 | F135: 1 | G135: 1 | H135: 1.6 | I135: 1.7 | J135: 1.8 | Q135: 7.3 | R135: 7 | S135: 104.2857143
C136: 新十津川町 | D136: 入込総数 | E136: 9.3 | F136: 15.6 | G136: 19.7 | H136: 30.8 | I136: 19.3 | J136: 19.9 | Q136: 114.6 | R136: 59.3 | S136: 193.2546374 | U136: ふるさと公園リニューアルオープンに加え、新型ｺﾛﾅウィルスが5類に移行したことでｺﾛﾅ禍前と変わらない経済効果が得られたことによる増 | V136: 1
D137: 内道外客 | E137: 0.9 | F137: 1.6 | G137: 2 | H137: 3.1 | I137: 1.9 | J137: 2 | Q137: 11.5 | R137: 2.9 | S137: 396.5517241
D138: 内道内客 | E138: =+E136-E137 -> 8.4 | F138: =+F136-F137 -> 14 | G138: 17.7 | H138: 27.7 | I138: 17.4 | J138: 17.9 | K138: 0 | L138: 0 | M138: 0 | N138: 0 | O138: 0 | P138: 0 | Q138: =+Q136-Q137 -> 103.1 | R138: 56.4 | S138: 182.8014184
D139: 内日帰客 | E139: =+E136-E140 -> 8 | F139: =+F136-F140 -> 14.2 | G139: 18.1 | H139: 28.3 | I139: 16.3 | J139: 17.9 | K139: 0 | L139: 0 | M139: 0 | N139: 0 | O139: 0 | P139: 0 | Q139: =+Q136-Q140 -> 102.8 | R139: 49.4 | S139: 208.097166
D140: 内宿泊客 | E140: 1.3 | F140: 1.4 | G140: 1.6 | H140: 2.5 | I140: 3 | J140: 2 | Q140: 11.8 | R140: 9.9 | S140: 119.1919192
D141: 宿泊客延数 | E141: 1.3 | F141: 1.4 | G141: 1.6 | H141: 2.5 | I141: 3 | J141: 2 | Q141: 11.8 | R141: 9.9 | S141: 119.1919192
C142: 妹背牛町 | D142: 入込総数 | E142: 13.4 | F142: 8.2 | G142: 3.3 | H142: 9.3 | I142: 12.6 | J142: 3.3 | Q142: 50.1 | R142: 109.8 | S142: 45.6284153 | U142: 温泉施設リニューアル工事中。次年度まで宿泊施設のみの営業となっているため入込客数の減少となっている。 | V142: 1
D143: 内道外客 | E143: 0 | F143: 0 | G143: 0 | H143: 0 | I143: 0.1 | J143: 0 | Q143: 0.1 | R143: 0
D144: 内道内客 | E144: =+E142-E143 -> 13.4 | F144: =+F142-F143 -> 8.2 | G144: 3.3 | H144: 9.3 | I144: 12.5 | J144: 3.3 | K144: 0 | L144: 0 | M144: 0 | N144: 0 | O144: 0 | P144: 0 | Q144: =+Q142-Q143 -> 50 | R144: 109.8 | S144: 45.53734062
D145: 内日帰客 | E145: =+E142-E146 -> 13.2 | F145: =+F142-F146 -> 8 | G145: 3.2 | H145: 9 | I145: 12.1 | J145: 3 | K145: 0 | L145: 0 | M145: 0 | N145: 0 | O145: 0 | P145: 0 | Q145: =+Q142-Q146 -> 48.5 | R145: 108.5 | S145: 44.70046083
D146: 内宿泊客 | E146: 0.2 | F146: 0.2 | G146: 0.1 | H146: 0.3 | I146: 0.5 | J146: 0.3 | Q146: 1.6 | R146: 1.3 | S146: 123.0769231
D147: 宿泊客延数 | E147: 0.2 | F147: 0.2 | G147: 0.1 | H147: 0.3 | I147: 0.5 | J147: 0.3 | Q147: 1.6 | R147: 1.3 | S147: 123.0769231
C148: 秩父別町 | D148: 入込総数 | E148: 40.7 | F148: 73.4 | G148: 69.8 | H148: 89.8 | I148: 97.2 | J148: 64.7 | Q148: 435.6 | R148: 380.6 | S148: 114.4508671 | U148: アフターコロナとなり、町全体の観光客数がコロナ前の数値となりつつある。
D149: 内道外客 | E149: 2 | F149: 3.7 | G149: 3.5 | H149: 4.5 | I149: 4.9 | J149: 3.2 | Q149: 21.8 | R149: 18.9 | S149: 115.3439153
D150: 内道内客 | E150: =+E148-E149 -> 38.7 | F150: =+F148-F149 -> 69.7 | G150: 66.3 | H150: 85.3 | I150: 92.3 | J150: 61.5 | K150: 0 | L150: 0 | M150: 0 | N150: 0 | O150: 0 | P150: 0 | Q150: =+Q148-Q149 -> 413.8 | R150: 361.7 | S150: 114.4042024
D151: 内日帰客 | E151: =+E148-E152 -> 40.2 | F151: =+F148-F152 -> 72.3 | G151: 68.9 | H151: 88.5 | I151: 95.6 | J151: 63.2 | K151: 0 | L151: 0 | M151: 0 | N151: 0 | O151: 0 | P151: 0 | Q151: =+Q148-Q152 -> 428.7 | R151: 374.9 | S151: 114.3504935
D152: 内宿泊客 | E152: 0.5 | F152: 1.1 | G152: 0.9 | H152: 1.3 | I152: 1.6 | J152: 1.5 | Q152: 6.9 | R152: 5.7 | S152: 121.0526316
D153: 宿泊客延数 | E153: 0.5 | F153: 1.1 | G153: 0.9 | H153: 1.3 | I153: 1.6 | J153: 1.5 | Q153: 6.9 | R153: 5.7 | S153: 121.0526316
C154: 雨竜町 | D154: 入込総数 | E154: 15 | F154: 29 | G154: 26.8 | H154: 36.5 | I154: 40.8 | J154: 29.3 | Q154: 177.4 | R154: 187.2 | S154: 94.76495726 | U154: 昨年度と比較すると7.8月がやや減となっている。他はほぼ横ばいであり、減少した原因は、最も観光入込客が多い時期であり、雨竜沼湿原のシーズンに、猛暑や悪天候といった天候が多かったためと考えられる。 | V154: 1
D155: 内道外客 | E155: 0 | F155: 0 | G155: 0.1 | H155: 0.5 | I155: 0.1 | J155: 0.1 | Q155: 0.8 | R155: 1 | S155: 80
D156: 内道内客 | E156: =+E154-E155 -> 15 | F156: =+F154-F155 -> 29 | G156: 26.7 | H156: 36 | I156: 40.7 | J156: 29.2 | K156: 0 | L156: 0 | M156: 0 | N156: 0 | O156: 0 | P156: 0 | Q156: =+Q154-Q155 -> 176.6 | R156: 186.2 | S156: 94.84425349
D157: 内日帰客 | E157: =+E154-E158 -> 15 | F157: =+F154-F158 -> 29 | G157: 26.6 | H157: 35.6 | I157: 40.5 | J157: 28.8 | K157: 0 | L157: 0 | M157: 0 | N157: 0 | O157: 0 | P157: 0 | Q157: =+Q154-Q158 -> 175.5 | R157: 187.1 | S157: 93.80010689
D158: 内宿泊客 | E158: 0 | F158: 0 | G158: 0.2 | H158: 0.9 | I158: 0.3 | J158: 0.5 | Q158: 1.9 | R158: 0.1 | S158: 1900
D159: 宿泊客延数 | E159: 0 | F159: 0 | G159: 0.2 | H159: 0.9 | I159: 0.3 | J159: 0.5 | Q159: 1.9 | R159: 0.1 | S159: 1900
C160: 北竜町 | D160: 入込総数 | E160: 15 | F160: 24 | G160: 23 | H160: 88 | I160: 186 | J160: 24 | Q160: 360 | R160: 435.9 | S160: 82.58774948 | U160: ひまわりまつりにおいて、昨年度と比較し雨の日が多かったことと、猛暑だったため入込客数が減少した。 | V160: 1
D161: 内道外客 | E161: 1.2 | F161: 1.9 | G161: 1.8 | H161: 34.2 | I161: 76.4 | J161: 2 | Q161: 117.5 | R161: 149.2 | S161: 78.75335121
D162: 内道内客 | E162: =+E160-E161 -> 13.8 | F162: =+F160-F161 -> 22.1 | G162: 21.2 | H162: 53.8 | I162: 109.6 | J162: 22 | K162: 0 | L162: 0 | M162: 0 | N162: 0 | O162: 0 | P162: 0 | Q162: =+Q160-Q161 -> 242.5 | R162: 286.7 | S162: 84.583188
D163: 内日帰客 | E163: =+E160-E164 -> 14.7 | F163: =+F160-F164 -> 23.6 | G163: 22.6 | H163: 87.3 | I163: 185.2 | J163: 23.4 | K163: 0 | L163: 0 | M163: 0 | N163: 0 | O163: 0 | P163: 0 | Q163: =+Q160-Q164 -> 356.8 | R163: 433.1 | S163: 82.38282152
D164: 内宿泊客 | E164: 0.3 | F164: 0.4 | G164: 0.4 | H164: 0.7 | I164: 0.8 | J164: 0.6 | Q164: 3.2 | R164: 2.8 | S164: 114.2857143
D165: 宿泊客延数 | E165: 0.3 | F165: 0.4 | G165: 0.4 | H165: 0.7 | I165: 0.8 | J165: 0.6 | Q165: 3.2 | R165: 2.8 | S165: 114.2857143
C166: 沼田町 | D166: 入込総数 | E166: 4.3 | F166: 8.7 | G166: 12 | H166: 21.1 | I166: 80.7 | J166: 8.8 | Q166: 135.6 | R166: 140.9 | S166: 96.238467 | U166: 昨年とほぼ同水準で推移している（一部微減）。今年度より、ほろしん温泉ほたる館の指定管理者が変更となり、それに伴う休業期間の発生や、例年７月に開催しているほたる祭りを縮小して開催したこと等の影響によるものと見られる。 | V166: 1
D167: 内道外客 | E167: 0.7 | F167: 1.3 | G167: 1.8 | H167: 3.2 | I167: 12.1 | J167: 1.3 | Q167: 20.4 | R167: 21.1 | S167: 96.68246445
D168: 内道内客 | E168: =+E166-E167 -> 3.6 | F168: =+F166-F167 -> 7.4 | G168: 10.2 | H168: 17.9 | I168: 68.6 | J168: 7.5 | K168: 0 | L168: 0 | M168: 0 | N168: 0 | O168: 0 | P168: 0 | Q168: =+Q166-Q167 -> 115.2 | R168: 119.8 | S168: 96.16026711
D169: 内日帰客 | E169: =+E166-E170 -> 3.7 | F169: =+F166-F170 -> 7.8 | G169: 11 | H169: 19.1 | I169: 78.9 | J169: 7.6 | K169: 0 | L169: 0 | M169: 0 | N169: 0 | O169: 0 | P169: 0 | Q169: =+Q166-Q170 -> 128.1 | R169: 129.3 | S169: 99.07192575
D170: 内宿泊客 | E170: 0.6 | F170: 0.9 | G170: 1 | H170: 2 | I170: 1.8 | J170: 1.2 | Q170: 7.5 | R170: 11.6 | S170: 64.65517241
D171: 宿泊客延数 | E171: 0.6 | F171: 0.9 | G171: 1 | H171: 2 | I171: 1.8 | J171: 1.2 | Q171: 7.5 | R171: 11.6 | S171: 64.65517241
A172: =A1 -> １ 令和５年度（2023年度）上期 市町村別・月別観光入込客数
S173: 単位：入込総数→千人、宿泊客延数→千人泊、対前年比→％
A174: 圏 域 | B174: 振興局 | C174: 市町村名 | D174: 区 分 | E174: ４ 月 | F174: ５ 月 | G174: ６ 月 | H174: ７ 月 | I174: ８ 月 | J174: ９ 月 | K174: １０月 | L174: １１月 | M174: １２月 | N174: １ 月 | O174: ２ 月 | P174: ３ 月 | Q174: 合計 | R174: =$R$3 -> R4年度上期 | S174: 対前年比
B175: 石狩振興局計 | D175: 入込総数 | E175: =+E181+E187+E193+E199+E205+E211+E217+E223 -> 2267.3 | F175: 2916.9 | G175: 2871.7 | H175: 3668.7 | I175: 3990.7 | J175: 3699.5 | K175: 0 | L175: 0 | M175: 0 | N175: 0 | O175: 0 | P175: 0 | Q175: 19414.8 | R175: =+R181+R187+R193+R199+R205+R211+R217+R223 -> 13899.7 | S175: =IF(Q175=0,"－",Q175/R175*100) -> 139.6778348
D176: 内道外客 | E176: 439.7 | F176: 571.7 | G176: 705.7 | H176: 746.7 | I176: 766.4 | J176: 690.1 | K176: 0 | L176: 0 | M176: 0 | N176: 0 | O176: 0 | P176: 0 | Q176: 3920.3 | R176: 1824.6 | S176: 214.8580511
A177: 道 央 | D177: 内道内客 | E177: 1827.6 | F177: 2345.2 | G177: 2166 | H177: 2922 | I177: 3224.3 | J177: 3009.4 | K177: 0 | L177: 0 | M177: 0 | N177: 0 | O177: 0 | P177: 0 | Q177: 15494.5 | R177: 12075.1 | S177: 128.3177779
D178: 内日帰客 | E178: 1724.7 | F178: 2242.4 | G178: 2050.7 | H178: 2730.5 | I178: 3131.9 | J178: 2857.7 | K178: 0 | L178: 0 | M178: 0 | N178: 0 | O178: 0 | P178: 0 | Q178: 14737.9 | R178: 10843.8 | S178: 135.9108431
D179: 内宿泊客 | E179: 542.6 | F179: 674.5 | G179: 821 | H179: 938.2 | I179: 858.8 | J179: 841.8 | K179: 0 | L179: 0 | M179: 0 | N179: 0 | O179: 0 | P179: 0 | Q179: 4676.9 | R179: 3055.9 | S179: 153.0449295
D180: 宿泊客延数 | E180: 987.755 | F180: 1125.97 | G180: 1170.087 | H180: 1716.329 | I180: 1766.714 | J180: 1607.01 | K180: 0 | L180: 0 | M180: 0 | N180: 0 | O180: 0 | P180: 0 | Q180: 8373.865 | R180: 6674.8 | S180: 125.45492
C181: 札幌市 | D181: 入込総数 | E181: 1143 | F181: 1230 | G181: 1436 | H181: 1837 | I181: 1943 | J181: 1872 | Q181: 9461 | R181: 6864 | S181: 137.8350816 | U181: 昨年発令されていた緊急事態宣言やまん延防止等重点措置などの外出自粛要請がなく、国内の旅行需要が回復したことに加え、北海道の「どうみん割」、札幌市の「サッポロ割」や「＃さっぽろいきたいキャンペーン」などの効果により、全ての月で増加となった | V181: 1
D182: 内道外客 | E182: 301 | F182: 369 | G182: 481 | H182: 488 | I182: 478 | J182: 391 | Q182: 2508 | R182: 1208 | S182: 207.615894
D183: 内道内客 | E183: 842 | F183: 861 | G183: 955 | H183: 1349 | I183: 1465 | J183: 1481 | K183: =+K181-K182 -> 0 | L183: 0 | M183: 0 | N183: 0 | O183: 0 | P183: 0 | Q183: 6953 | R183: 5656 | S183: 122.9314003
D184: 内日帰客 | E184: 623 | F184: 594 | G184: 658 | H184: 954 | I184: 1145 | J184: 1075 | K184: =+K181-K185 -> 0 | L184: 0 | M184: 0 | N184: 0 | O184: 0 | P184: 0 | Q184: 5049 | R184: 4038 | S184: 125.0371471
D185: 内宿泊客 | E185: 520 | F185: 636 | G185: 778 | H185: 883 | I185: 798 | J185: 797 | Q185: 4412 | R185: 2826 | S185: 156.1217268
D186: 宿泊客延数 | E186: 961.255 | F186: 1077.47 | G186: 1115.387 | H186: 1647.129 | I186: 1689.914 | J186: 1550.41 | Q186: 8041.565 | R186: 6391.2 | S186: 125.822459
C187: 江別市 | D187: 入込総数 | E187: 145.5 | F187: 209.2 | G187: 181.8 | H187: 209 | I187: 196 | J187: 190 | Q187: =SUM(E187:P187) -> 1131.5 | R187: 1077.4 | S187: 105.0213477 | U187: 新型コロナウイルス感染症による影響が落ち着いたことによる外出需要の高まりにより増加した。
D188: 内道外客 | E188: 3.6 | F188: 6.5 | G188: 4.4 | H188: 7.2 | I188: 7.7 | J188: 5.5 | Q188: 34.9 | R188: 68 | S188: 51.32352941
D189: 内道内客 | E189: =+E187-E188 -> 141.9 | F189: =+F187-F188 -> 202.7 | G189: 177.4 | H189: 201.8 | I189: 188.3 | J189: 184.5 | K189: 0 | L189: 0 | M189: 0 | N189: 0 | O189: 0 | P189: 0 | Q189: =+Q187-Q188 -> 1096.6 | R189: 1009.4 | S189: 108.6387953
D190: 内日帰客 | E190: =+E187-E191 -> 144.2 | F190: =+F187-F191 -> 207.6 | G190: 179.8 | H190: 206.4 | I190: 193.3 | J190: 187.9 | K190: 0 | L190: 0 | M190: 0 | N190: 0 | O190: 0 | P190: 0 | Q190: =+Q187-Q191 -> 1119.2 | R190: 1068.1 | S190: 104.7841962
D191: 内宿泊客 | E191: 1.3 | F191: 1.6 | G191: 2 | H191: 2.6 | I191: 2.7 | J191: 2.1 | Q191: 12.3 | R191: 9.3 | S191: 132.2580645
D192: 宿泊客延数 | E192: 1.4 | F192: 1.7 | G192: 2.3 | H192: 2.8 | I192: 2.9 | J192: 2.2 | Q192: 13.3 | R192: 9.8 | S192: 135.7142857
C193: 千歳市 | D193: 入込総数 | E193: 109.1 | F193: 174.8 | G193: 173.5 | H193: 262.8 | I193: 218.7 | J193: 222.4 | Q193: 1161.3 | R193: 1090.5 | S193: 106.4924347 | U193: 全体的にはコロナ前の水準に戻りつつあるが、主要観光地点である道の駅が８月下旬まで一部休止していたことにより入込客数が前年の半分程度となったため、総じて減少した。 | V193: 1
D194: 内道外客 | E194: 22.2 | F194: 39 | G194: 43.8 | H194: 54.7 | I194: 62.1 | J194: 65.7 | Q194: 287.5 | R194: 310.5 | S194: 92.59259259
D195: 内道内客 | E195: =+E193-E194 -> 86.9 | F195: =+F193-F194 -> 135.8 | G195: 129.7 | H195: 208.1 | I195: 156.6 | J195: 156.7 | K195: 0 | L195: 0 | M195: 0 | N195: 0 | O195: 0 | P195: 0 | Q195: =+Q193-Q194 -> 873.8 | R195: 780 | S195: 112.025641
D196: 内日帰客 | E196: =+E193-E197 -> 93.1 | F196: =+F193-F197 -> 151.5 | G196: 146.5 | H196: 231.2 | I196: 185 | J196: 195.7 | K196: 0 | L196: 0 | M196: 0 | N196: 0 | O196: 0 | P196: 0 | Q196: =+Q193-Q197 -> 1003 | R196: 943 | S196: 106.3626723
D197: 内宿泊客 | E197: 16 | F197: 23.3 | G197: 27 | H197: 31.6 | I197: 33.7 | J197: 26.7 | Q197: 158.3 | R197: 147.5 | S197: 107.3220339
D198: 宿泊客延数 | E198: 19.7 | F198: 28.9 | G198: 34.2 | H198: 39.9 | I198: 43.1 | J198: 33.6 | Q198: 199.4 | R198: 185.8 | S198: 107.3196986
C199: 恵庭市 | D199: 入込総数 | E199: 133 | F199: 226.5 | G199: 198.6 | H199: 234.8 | I199: 232.5 | J199: 198.9 | Q199: 1224.3 | R199: 1378.2 | S199: 88.83326077 | U199: 全体的に入込総数は減少となったが、道外客数や宿泊客数は増加の傾向となった。 昨年度開催されたガーデンフェスタ北海道2022の影響やコロナの解消、今年度高校総体が恵庭市で開催されたことなどが要因であると考えられる。 | V199: 1
D200: 内道外客 | E200: 13.8 | F200: 25.2 | G200: 24.8 | H200: 46.6 | I200: 38.6 | J200: 32.9 | Q200: 181.9 | R200: 175.2 | S200: 103.8242009
... 1069 more rows

Sheet 上期 25頁
B1: ３ 令和５年度（2023年度）上期 圏域別・国別訪日外国人宿泊者数（延べ人数）
Y2: 単位：宿泊客数→人、宿泊客延数→人泊、対前年比→％
B3: 圏 域 | E3: 人 数 | F3: ア ジ ア | Q3: ヨ ー ロ ッ パ | U3: 北 米 | W3: オーストラリア | X3: その他 | Y3: 計
F4: 中 国 | G4: 韓 国 | H4: 台 湾 | I4: 香 港 | J4: シンガポール | K4: マレーシア | L4: タイ | M4: インド | N4: インドネシア | O4: フィリピン | P4: ベトナム | Q4: ロシア | R4: イギリス | S4: フランス | T4: ドイツ | U4: アメリカ | V4: カナダ
B5: 北海道計 | E5: 宿泊人数 | F5: =F11+F17+F23+F29+F35+F41 -> 80918 | G5: =G11+G17+G23+G29+G35+G41 -> 307712 | H5: 435463 | I5: 145330 | J5: 94823 | K5: 23832 | L5: 31817 | M5: 1446 | N5: 9126 | O5: 8495 | P5: 4011 | Q5: 689 | R5: 7825 | S5: 5701 | T5: 5917 | U5: 53248 | V5: 7223 | W5: 17222 | X5: 118618 | Y5: 1359416
E6: 宿泊延数 | F6: =F12+F18+F24+F30+F36+F42 -> 134845.139 | G6: 496041.8 | H6: 567301 | I6: 229947 | J6: 150683 | K6: 38594 | L6: 51321 | M6: 3788 | N6: 18091 | O6: 20467 | P6: 7151 | Q6: 1222 | R6: 15522 | S6: 9673 | T6: 9833 | U6: 98752 | V6: 14996 | W6: 33986 | X6: 174959 | Y6: 2077172.939
D7: ='上期 1頁'!P3 -> R4年度上期 | E7: 宿泊人数 | F7: 2702 | G7: 555 | H7: 786 | I7: 341 | J7: 216 | K7: 167 | L7: 328 | M7: 174 | N7: 201 | O7: 190 | P7: 1041 | Q7: 259 | R7: 374 | S7: 739 | T7: 365 | U7: 2335 | V7: 205 | W7: 313 | X7: 3119 | Y7: =SUM(F7:X7) -> 14410
E8: 宿泊延数 | F8: 4191 | G8: 888 | H8: 1340 | I8: 640 | J8: 406 | K8: 324 | L8: 753 | M8: 466 | N8: 392 | O8: 675 | P8: 1822 | Q8: 402 | R8: 668 | S8: 1102 | T8: 551 | U8: 3710 | V8: 307 | W8: 501 | X8: 5149 | Y8: =SUM(F8:X8) -> 24287
D9: 対前年比 | E9: 宿泊人数 | F9: =IF(F7=0,"- ",+F5/F7) -> 29.94744634 | G9: 554.436036 | H9: 554.024173 | I9: 426.1876833 | J9: 438.9953704 | K9: 142.7065868 | L9: 97.00304878 | M9: 8.310344828 | N9: =IF(N7=0,"- ",+N5/N7) -> 45.40298507 | O9: =IF(O7=0,"- ",+O5/O7) -> 44.71052632 | P9: 3.853025937 | Q9: 2.66023166 | R9: 20.92245989 | S9: 7.714479026 | T9: 16.2109589 | U9: 22.80428266 | V9: 35.23414634 | W9: 55.02236422 | X9: 38.0307791 | Y9: 94.33837613
E10: 宿泊延数 | F10: 32.17493176 | G10: 558.6056306 | H10: 423.3589552 | I10: 359.2921875 | J10: 371.1403941 | K10: 119.117284 | L10: 68.15537849 | M10: 8.128755365 | N10: 46.1505102 | O10: 30.32148148 | P10: 3.924807903 | Q10: 3.039800995 | R10: 23.23652695 | S10: 8.777676951 | T10: 17.84573503 | U10: 26.61778976 | V10: 48.84690554 | W10: 67.83632735 | X10: 33.97921927 | Y10: 85.52612258
B11: 道央圏域計 | E11: 宿泊人数 | F11: ='上期 26-32頁'!E6 -> 46989 | G11: ='上期 26-32頁'!F6 -> 243514 | H11: ='上期 26-32頁'!G6 -> 214474 | I11: ='上期 26-32頁'!H6 -> 75735 | J11: ='上期 26-32頁'!I6 -> 47396 | K11: ='上期 26-32頁'!J6 -> 13461 | L11: ='上期 26-32頁'!K6 -> 18603 | M11: ='上期 26-32頁'!L6 -> 791 | N11: ='上期 26-32頁'!M6 -> 5583 | O11: ='上期 26-32頁'!N6 -> 5038 | P11: ='上期 26-32頁'!O6 -> 2879 | Q11: ='上期 26-32頁'!P6 -> 314 | R11: ='上期 26-32頁'!Q6 -> 4484 | S11: ='上期 26-32頁'!R6 -> 2091 | T11: ='上期 26-32頁'!S6 -> 2262 | U11: ='上期 26-32頁'!T6 -> 30981 | V11: ='上期 26-32頁'!U6 -> 4193 | W11: ='上期 26-32頁'!V6 -> 9906 | X11: ='上期 26-32頁'!W6 -> 79389 | Y11: =SUM(F11:X11) -> 808083
E12: 宿泊延数 | F12: ='上期 26-32頁'!E7 -> 87192.43902 | G12: ='上期 26-32頁'!F7 -> 415671 | H12: ='上期 26-32頁'!G7 -> 320684 | I12: ='上期 26-32頁'!H7 -> 142979 | J12: ='上期 26-32頁'!I7 -> 90932 | K12: ='上期 26-32頁'!J7 -> 25911 | L12: ='上期 26-32頁'!K7 -> 34128 | M12: ='上期 26-32頁'!L7 -> 2803 | N12: ='上期 26-32頁'!M7 -> 13447 | O12: ='上期 26-32頁'!N7 -> 15697 | P12: ='上期 26-32頁'!O7 -> 5191 | Q12: ='上期 26-32頁'!P7 -> 661 | R12: ='上期 26-32頁'!Q7 -> 10169 | S12: ='上期 26-32頁'!R7 -> 4633 | T12: ='上期 26-32頁'!S7 -> 4860 | U12: ='上期 26-32頁'!T7 -> 67270 | V12: ='上期 26-32頁'!U7 -> 10486 | W12: ='上期 26-32頁'!V7 -> 23144 | X12: ='上期 26-32頁'!W7 -> 123639 | Y12: =SUM(F12:X12) -> 1399497.439
D13: =$D$7 -> R4年度上期 | E13: 宿泊人数 | F13: 1536 | G13: 307 | H13: 429 | I13: 267 | J13: 135 | K13: 104 | L13: 238 | M13: 136 | N13: 114 | O13: 102 | P13: 762 | Q13: 164 | R13: 248 | S13: 305 | T13: 182 | U13: 1718 | V13: 96 | W13: 158 | X13: 1425 | Y13: =SUM(F13:X13) -> 8426
E14: 宿泊延数 | F14: 2620 | G14: 606 | H14: 933 | I14: 510 | J14: 279 | K14: 257 | L14: 625 | M14: 322 | N14: 277 | O14: 272 | P14: 1170 | Q14: 299 | R14: 494 | S14: 539 | T14: 349 | U14: 2928 | V14: 184 | W14: 304 | X14: 2605 | Y14: =SUM(F14:X14) -> 15573
D15: 対前年比 | E15: 宿泊人数 | F15: =IF(F13=0,"- ",+F11/F13) -> 30.59179688 | G15: 793.2052117 | H15: 499.9393939 | I15: 283.6516854 | J15: 351.0814815 | K15: 129.4326923 | L15: 78.16386555 | M15: 5.816176471 | N15: 48.97368421 | O15: 49.39215686 | P15: 3.778215223 | Q15: 1.914634146 | R15: 18.08064516 | S15: 6.855737705 | T15: 12.42857143 | U15: 18.03317811 | V15: 43.67708333 | W15: 62.69620253 | X15: 55.71157895 | Y15: 95.90351294
E16: 宿泊延数 | F16: 33.27955688 | G16: 685.9257426 | H16: 343.7127546 | I16: 280.3509804 | J16: 325.921147 | K16: 100.8210117 | L16: 54.6048 | M16: 8.704968944 | N16: 48.54512635 | O16: 57.70955882 | P16: 4.436752137 | Q16: 2.210702341 | R16: 20.58502024 | S16: 8.59554731 | T16: 13.92550143 | U16: 22.97472678 | V16: 56.98913043 | W16: 76.13157895 | X16: 47.4621881 | Y16: 89.86691318
B17: 道南圏域計 | E17: 宿泊人数 | F17: ='上期 26-32頁'!E168 -> 8291 | G17: ='上期 26-32頁'!F168 -> 10305 | H17: ='上期 26-32頁'!G168 -> 87432 | I17: ='上期 26-32頁'!H168 -> 13423 | J17: ='上期 26-32頁'!I168 -> 11308 | K17: ='上期 26-32頁'!J168 -> 1896 | L17: ='上期 26-32頁'!K168 -> 4782 | M17: ='上期 26-32頁'!L168 -> 163 | N17: ='上期 26-32頁'!M168 -> 1459 | O17: ='上期 26-32頁'!N168 -> 1271 | P17: ='上期 26-32頁'!O168 -> 323 | Q17: ='上期 26-32頁'!P168 -> 78 | R17: ='上期 26-32頁'!Q168 -> 1101 | S17: ='上期 26-32頁'!R168 -> 850 | T17: ='上期 26-32頁'!S168 -> 1247 | U17: ='上期 26-32頁'!T168 -> 7510 | V17: ='上期 26-32頁'!U168 -> 1257 | W17: ='上期 26-32頁'!V168 -> 2939 | X17: ='上期 26-32頁'!W168 -> 7030 | Y17: =SUM(F17:X17) -> 162665
E18: 宿泊延数 | F18: ='上期 26-32頁'!E169 -> 13341 | G18: ='上期 26-32頁'!F169 -> 14336 | H18: ='上期 26-32頁'!G169 -> 95204 | I18: ='上期 26-32頁'!H169 -> 17473 | J18: ='上期 26-32頁'!I169 -> 14886 | K18: ='上期 26-32頁'!J169 -> 2973 | L18: ='上期 26-32頁'!K169 -> 7320 | M18: ='上期 26-32頁'!L169 -> 209 | N18: ='上期 26-32頁'!M169 -> 2053 | O18: ='上期 26-32頁'!N169 -> 2276 | P18: ='上期 26-32頁'!O169 -> 658 | Q18: ='上期 26-32頁'!P169 -> 92 | R18: ='上期 26-32頁'!Q169 -> 2399 | S18: ='上期 26-32頁'!R169 -> 1631 | T18: ='上期 26-32頁'!S169 -> 1952 | U18: ='上期 26-32頁'!T169 -> 12923 | V18: ='上期 26-32頁'!U169 -> 2223 | W18: ='上期 26-32頁'!V169 -> 5268 | X18: ='上期 26-32頁'!W169 -> 12327 | Y18: =SUM(F18:X18) -> 209544
D19: =$D$7 -> R4年度上期 | E19: 宿泊人数 | F19: 490 | G19: 82 | H19: 85 | I19: 9 | J19: 8 | K19: 27 | L19: 23 | M19: 9 | N19: 26 | O19: 62 | P19: 36 | Q19: 23 | R19: 23 | S19: 65 | T19: 44 | U19: 120 | V19: 33 | W19: 32 | X19: 448 | Y19: =SUM(F19:X19) -> 1645
E20: 宿泊延数 | F20: 678 | G20: 85 | H20: 85 | I20: 12 | J20: 9 | K20: 27 | L20: 38 | M20: 107 | N20: 26 | O20: 351 | P20: 142 | Q20: 27 | R20: 23 | S20: 100 | T20: 44 | U20: 180 | V20: 37 | W20: 32 | X20: 906 | Y20: =SUM(F20:X20) -> 2909
D21: 対前年比 | E21: 宿泊人数 | F21: =IF(F19=0,"- ",+F17/F19) -> 16.92040816 | G21: 125.6707317 | H21: 1028.611765 | I21: 1491.444444 | J21: 1413.5 | K21: 70.22222222 | L21: 207.9130435 | M21: 18.11111111 | N21: 56.11538462 | O21: 20.5 | P21: 8.972222222 | Q21: 3.391304348 | R21: 47.86956522 | S21: 13.07692308 | T21: 28.34090909 | U21: 62.58333333 | V21: 38.09090909 | W21: 91.84375 | X21: 15.69196429 | Y21: 98.88449848
E22: 宿泊延数 | F22: 19.67699115 | G22: 168.6588235 | H22: 1120.047059 | I22: 1456.083333 | J22: 1654 | K22: 110.1111111 | L22: 192.6315789 | M22: 1.953271028 | N22: 78.96153846 | O22: 6.484330484 | P22: 4.633802817 | Q22: 3.407407407 | R22: 104.3043478 | S22: 16.31 | T22: 44.36363636 | U22: 71.79444444 | V22: 60.08108108 | W22: 164.625 | X22: 13.60596026 | Y22: 72.03300103
B23: 道北圏域計 | E23: 宿泊人数 | F23: ='上期 26-32頁'!E215 -> 14162 | G23: ='上期 26-32頁'!F215 -> 44522 | H23: ='上期 26-32頁'!G215 -> 77483 | I23: ='上期 26-32頁'!H215 -> 32601 | J23: ='上期 26-32頁'!I215 -> 22915 | K23: ='上期 26-32頁'!J215 -> 4688 | L23: ='上期 26-32頁'!K215 -> 6702 | M23: ='上期 26-32頁'!L215 -> 410 | N23: ='上期 26-32頁'!M215 -> 1747 | O23: ='上期 26-32頁'!N215 -> 2021 | P23: ='上期 26-32頁'!O215 -> 544 | Q23: ='上期 26-32頁'!P215 -> 201 | R23: ='上期 26-32頁'!Q215 -> 1247 | S23: ='上期 26-32頁'!R215 -> 1065 | T23: ='上期 26-32頁'!S215 -> 1092 | U23: ='上期 26-32頁'!T215 -> 8661 | V23: ='上期 26-32頁'!U215 -> 1113 | W23: ='上期 26-32頁'!V215 -> 2598 | X23: ='上期 26-32頁'!W215 -> 21874 | Y23: =SUM(F23:X23) -> 245646
E24: 宿泊延数 | F24: ='上期 26-32頁'!E216 -> 20613 | G24: ='上期 26-32頁'!F216 -> 54434 | H24: ='上期 26-32頁'!G216 -> 92631 | I24: ='上期 26-32頁'!H216 -> 43306 | J24: ='上期 26-32頁'!I216 -> 30483 | K24: ='上期 26-32頁'!J216 -> 5758 | L24: ='上期 26-32頁'!K216 -> 7930 | M24: ='上期 26-32頁'!L216 -> 652 | N24: ='上期 26-32頁'!M216 -> 2025 | O24: ='上期 26-32頁'!N216 -> 2279 | P24: ='上期 26-32頁'!O216 -> 658 | Q24: ='上期 26-32頁'!P216 -> 331 | R24: ='上期 26-32頁'!Q216 -> 1633 | S24: ='上期 26-32頁'!R216 -> 1414 | T24: ='上期 26-32頁'!S216 -> 1409 | U24: ='上期 26-32頁'!T216 -> 11368 | V24: ='上期 26-32頁'!U216 -> 1537 | W24: ='上期 26-32頁'!V216 -> 3489 | X24: ='上期 26-32頁'!W216 -> 26983 | Y24: =SUM(F24:X24) -> 308933
D25: =$D$7 -> R4年度上期 | E25: 宿泊人数 | F25: 337 | G25: 75 | H25: 165 | I25: 37 | J25: 48 | K25: 28 | L25: 42 | M25: 22 | N25: 33 | O25: 15 | P25: 114 | Q25: 26 | R25: 40 | S25: 136 | T25: 69 | U25: 216 | V25: 41 | W25: 87 | X25: 606 | Y25: =SUM(F25:X25) -> 2137
E26: 宿泊延数 | F26: 474 | G26: 98 | H26: 213 | I26: 86 | J26: 83 | K26: 31 | L26: 54 | M26: 30 | N26: 39 | O26: 31 | P26: 170 | Q26: 30 | R26: 52 | S26: 201 | T26: 85 | U26: 298 | V26: 50 | W26: 122 | X26: 922 | Y26: =SUM(F26:X26) -> 3069
D27: 対前年比 | E27: 宿泊人数 | F27: =IF(F25=0,"- ",+F23/F25) -> 42.02373887 | G27: 593.6266667 | H27: 469.5939394 | I27: 881.1081081 | J27: 477.3958333 | K27: 167.4285714 | L27: 159.5714286 | M27: 18.63636364 | N27: 52.93939394 | O27: 134.7333333 | P27: 4.771929825 | Q27: 7.730769231 | R27: 31.175 | S27: 7.830882353 | T27: 15.82608696 | U27: 40.09722222 | V27: 27.14634146 | W27: 29.86206897 | X27: 36.09570957 | Y27: 114.9489939
E28: 宿泊延数 | F28: 43.48734177 | G28: 555.4489796 | H28: 434.8873239 | I28: 503.5581395 | J28: 367.2650602 | K28: 185.7419355 | L28: 146.8518519 | M28: 21.73333333 | N28: 51.92307692 | O28: 73.51612903 | P28: 3.870588235 | Q28: 11.03333333 | R28: 31.40384615 | S28: 7.034825871 | T28: 16.57647059 | U28: 38.14765101 | V28: 30.74 | W28: 28.59836066 | X28: 29.26572668 | Y28: 100.6624308
B29: オホーツク圏域計 | E29: 宿泊人数 | F29: ='上期 26-32頁'!E310 -> 3769 | G29: ='上期 26-32頁'!F310 -> 2238 | H29: ='上期 26-32頁'!G310 -> 12674 | I29: ='上期 26-32頁'!H310 -> 10140 | J29: ='上期 26-32頁'!I310 -> 6942 | K29: ='上期 26-32頁'!J310 -> 1466 | L29: ='上期 26-32頁'!K310 -> 772 | M29: ='上期 26-32頁'!L310 -> 23 | N29: ='上期 26-32頁'!M310 -> 75 | O29: ='上期 26-32頁'!N310 -> 89 | P29: ='上期 26-32頁'!O310 -> 26 | Q29: ='上期 26-32頁'!P310 -> 14 | R29: ='上期 26-32頁'!Q310 -> 435 | S29: ='上期 26-32頁'!R310 -> 793 | T29: ='上期 26-32頁'!S310 -> 639 | U29: ='上期 26-32頁'!T310 -> 2579 | V29: ='上期 26-32頁'!U310 -> 248 | W29: ='上期 26-32頁'!V310 -> 779 | X29: ='上期 26-32頁'!W310 -> 3096 | Y29: =SUM(F29:X29) -> 46797
E30: 宿泊延数 | F30: ='上期 26-32頁'!E311 -> 4199.7 | G30: ='上期 26-32頁'!F311 -> 2784.8 | H30: ='上期 26-32頁'!G311 -> 13465 | I30: ='上期 26-32頁'!H311 -> 10696 | J30: ='上期 26-32頁'!I311 -> 7375 | K30: ='上期 26-32頁'!J311 -> 1523 | L30: ='上期 26-32頁'!K311 -> 821 | M30: ='上期 26-32頁'!L311 -> 35 | N30: ='上期 26-32頁'!M311 -> 180 | O30: ='上期 26-32頁'!N311 -> 133 | P30: ='上期 26-32頁'!O311 -> 46 | Q30: ='上期 26-32頁'!P311 -> 16 | R30: ='上期 26-32頁'!Q311 -> 488 | S30: ='上期 26-32頁'!R311 -> 857 | T30: ='上期 26-32頁'!S311 -> 734 | U30: ='上期 26-32頁'!T311 -> 2932 | V30: ='上期 26-32頁'!U311 -> 278 | W30: ='上期 26-32頁'!V311 -> 856 | X30: ='上期 26-32頁'!W311 -> 3450 | Y30: =SUM(F30:X30) -> 50869.5
D31: =$D$7 -> R4年度上期 | E31: 宿泊人数 | F31: 96 | G31: 9 | H31: 49 | I31: 4 | J31: 18 | K31: 2 | L31: 12 | M31: 0 | N31: 6 | O31: 7 | P31: 47 | Q31: 12 | R31: 33 | S31: 90 | T31: 39 | U31: 113 | V31: 17 | W31: 15 | X31: 158 | Y31: =SUM(F31:X31) -> 727
E32: 宿泊延数 | F32: 108 | G32: 10 | H32: 50 | I32: 4 | J32: 26 | K32: 2 | L32: 16 | M32: 0 | N32: 6 | O32: 17 | P32: 85 | Q32: 12 | R32: 60 | S32: 93 | T32: 41 | U32: 118 | V32: 18 | W32: 20 | X32: 189 | Y32: =SUM(F32:X32) -> 875
D33: 対前年比 | E33: 宿泊人数 | F33: =IF(F31=0,"- ",+F29/F31) -> 39.26041667 | G33: 248.6666667 | H33: 258.6530612 | I33: 2535 | J33: 385.6666667 | K33: 733 | L33: 64.33333333 | M33: - | N33: 12.5 | O33: 12.71428571 | P33: 0.5531914894 | Q33: 1.166666667 | R33: 13.18181818 | S33: 8.811111111 | T33: 16.38461538 | U33: 22.82300885 | V33: 14.58823529 | W33: 51.93333333 | X33: 19.59493671 | Y33: 64.37001376
E34: 宿泊延数 | F34: 38.88611111 | G34: 278.48 | H34: 269.3 | I34: 2674 | J34: 283.6538462 | K34: 761.5 | L34: 51.3125 | M34: - | N34: 30 | O34: 7.823529412 | P34: 0.5411764706 | Q34: 1.333333333 | R34: 8.133333333 | S34: 9.215053763 | T34: 17.90243902 | U34: 24.84745763 | V34: 15.44444444 | W34: 42.8 | X34: 18.25396825 | Y34: 58.13657143
B35: 十勝圏域計 | E35: 宿泊人数 | F35: ='上期 26-32頁'!E355 -> 2616 | G35: ='上期 26-32頁'!F355 -> 4669 | H35: ='上期 26-32頁'!G355 -> 21364 | I35: ='上期 26-32頁'!H355 -> 6134 | J35: ='上期 26-32頁'!I355 -> 1540 | K35: ='上期 26-32頁'!J355 -> 717 | L35: ='上期 26-32頁'!K355 -> 320 | M35: ='上期 26-32頁'!L355 -> 24 | N35: ='上期 26-32頁'!M355 -> 119 | O35: ='上期 26-32頁'!N355 -> 14 | P35: ='上期 26-32頁'!O355 -> 156 | Q35: ='上期 26-32頁'!P355 -> 12 | R35: ='上期 26-32頁'!Q355 -> 169 | S35: ='上期 26-32頁'!R355 -> 149 | T35: ='上期 26-32頁'!S355 -> 154 | U35: ='上期 26-32頁'!T355 -> 1215 | V35: ='上期 26-32頁'!U355 -> 151 | W35: ='上期 26-32頁'!V355 -> 257 | X35: ='上期 26-32頁'!W355 -> 1255 | Y35: =SUM(F35:X35) -> 41035
E36: 宿泊延数 | F36: ='上期 26-32頁'!E356 -> 3107 | G36: ='上期 26-32頁'!F356 -> 5845 | H36: ='上期 26-32頁'!G356 -> 21980 | I36: ='上期 26-32頁'!H356 -> 7406 | J36: ='上期 26-32頁'!I356 -> 1780 | K36: ='上期 26-32頁'!J356 -> 767 | L36: ='上期 26-32頁'!K356 -> 398 | M36: ='上期 26-32頁'!L356 -> 25 | N36: ='上期 26-32頁'!M356 -> 182 | O36: ='上期 26-32頁'!N356 -> 16 | P36: ='上期 26-32頁'!O356 -> 464 | Q36: ='上期 26-32頁'!P356 -> 14 | R36: ='上期 26-32頁'!Q356 -> 248 | S36: ='上期 26-32頁'!R356 -> 174 | T36: ='上期 26-32頁'!S356 -> 170 | U36: ='上期 26-32頁'!T356 -> 1523 | V36: ='上期 26-32頁'!U356 -> 168 | W36: ='上期 26-32頁'!V356 -> 284 | X36: ='上期 26-32頁'!W356 -> 1673 | Y36: =SUM(F36:X36) -> 46224
D37: =$D$7 -> R4年度上期 | E37: 宿泊人数 | F37: 79 | G37: 118 | H37: 27 | I37: 64 | J37: 11 | K37: 46 | L37: 40 | M37: 8 | N37: 1 | O37: 7 | P37: 25 | Q37: 1 | R37: 11 | S37: 9 | T37: 63 | U37: 166 | V37: 17 | W37: 50 | X37: 147 | Y37: =SUM(F37:X37) -> 890
E38: 宿泊延数 | F38: 136 | G38: 189 | H38: 45 | I38: 78 | J38: 17 | K38: 51 | L38: 54 | M38: 13 | N38: 3 | O38: 10 | P38: 38 | Q38: 1 | R38: 15 | S38: 24 | T38: 83 | U38: 796 | V38: 26 | W38: 50 | X38: 195 | Y38: =SUM(F38:X38) -> 1824
D39: 対前年比 | E39: 宿泊人数 | F39: =IF(F37=0,"- ",+F35/F37) -> 33.11392405 | G39: 39.56779661 | H39: 791.2592593 | I39: 95.84375 | J39: 140 | K39: 15.58695652 | L39: 8 | M39: 3 | N39: 119 | O39: 2 | P39: 6.24 | Q39: 12 | R39: 15.36363636 | S39: 16.55555556 | T39: 2.444444444 | U39: 7.319277108 | V39: 8.882352941 | W39: 5.14 | X39: 8.537414966 | Y39: 46.10674157
E40: 宿泊延数 | F40: 22.84558824 | G40: 30.92592593 | H40: 488.4444444 | I40: 94.94871795 | J40: 104.7058824 | K40: 15.03921569 | L40: 7.37037037 | M40: 1.923076923 | N40: 60.66666667 | O40: 1.6 | P40: 12.21052632 | Q40: 14 | R40: 16.53333333 | S40: 7.25 | T40: 2.048192771 | U40: 1.913316583 | V40: 6.461538462 | W40: 5.68 | X40: 8.579487179 | Y40: 25.34210526
B41: 釧路・根室圏域計 | E41: 宿泊人数 | F41: ='上期 26-32頁'!E402 -> 5091 | G41: ='上期 26-32頁'!F402 -> 2464 | H41: ='上期 26-32頁'!G402 -> 22036 | I41: ='上期 26-32頁'!H402 -> 7297 | J41: ='上期 26-32頁'!I402 -> 4722 | K41: ='上期 26-32頁'!J402 -> 1604 | L41: ='上期 26-32頁'!K402 -> 638 | M41: ='上期 26-32頁'!L402 -> 35 | N41: ='上期 26-32頁'!M402 -> 143 | O41: ='上期 26-32頁'!N402 -> 62 | P41: ='上期 26-32頁'!O402 -> 83 | Q41: ='上期 26-32頁'!P402 -> 70 | R41: ='上期 26-32頁'!Q402 -> 389 | S41: ='上期 26-32頁'!R402 -> 753 | T41: ='上期 26-32頁'!S402 -> 523 | U41: ='上期 26-32頁'!T402 -> 2302 | V41: ='上期 26-32頁'!U402 -> 261 | W41: ='上期 26-32頁'!V402 -> 743 | X41: ='上期 26-32頁'!W402 -> 5974 | Y41: =SUM(F41:X41) -> 55190
E42: 宿泊延数 | F42: ='上期 26-32頁'!E403 -> 6392 | G42: ='上期 26-32頁'!F403 -> 2971 | H42: ='上期 26-32頁'!G403 -> 23337 | I42: ='上期 26-32頁'!H403 -> 8087 | J42: ='上期 26-32頁'!I403 -> 5227 | K42: ='上期 26-32頁'!J403 -> 1662 | L42: ='上期 26-32頁'!K403 -> 724 | M42: ='上期 26-32頁'!L403 -> 64 | N42: ='上期 26-32頁'!M403 -> 204 | O42: ='上期 26-32頁'!N403 -> 66 | P42: ='上期 26-32頁'!O403 -> 134 | Q42: ='上期 26-32頁'!P403 -> 108 | R42: ='上期 26-32頁'!Q403 -> 585 | S42: ='上期 26-32頁'!R403 -> 964 | T42: ='上期 26-32頁'!S403 -> 708 | U42: ='上期 26-32頁'!T403 -> 2736 | V42: ='上期 26-32頁'!U403 -> 304 | W42: ='上期 26-32頁'!V403 -> 945 | X42: ='上期 26-32頁'!W403 -> 6887 | Y42: =SUM(F42:X42) -> 62105
D43: =$D$7 -> R4年度上期 | E43: 宿泊人数 | F43: 180 | G43: 68 | H43: 35 | I43: 12 | J43: 3 | K43: 3 | L43: 8 | M43: 5 | N43: 14 | O43: 2 | P43: 59 | Q43: 32 | R43: 18 | S43: 124 | T43: 22 | U43: 118 | V43: 16 | W43: 14 | X43: 423 | Y43: 1156
E44: 宿泊延数 | F44: 237 | G44: 74 | H44: 35 | I44: 13 | J44: 5 | K44: 3 | L44: 14 | M44: 5 | N44: 34 | O44: 2 | P44: 231 | Q44: 32 | R44: 26 | S44: 145 | T44: 22 | U44: 128 | V44: 16 | W44: 14 | X44: 456 | Y44: 1492
D45: 対前年比 | E45: 宿泊人数 | F45: =IF(F43=0,"- ",+F41/F43) -> 28.28333333 | G45: 36.23529412 | H45: 629.6 | I45: 608.0833333 | J45: 1574 | K45: 534.6666667 | L45: 79.75 | M45: 7 | N45: 10.21428571 | O45: 31 | P45: 1.406779661 | Q45: 2.1875 | R45: 21.61111111 | S45: 6.072580645 | T45: 23.77272727 | U45: 19.50847458 | V45: 16.3125 | W45: 53.07142857 | X45: 14.12293144 | Y45: 47.74221453
E46: 宿泊延数 | F46: 26.97046414 | G46: 40.14864865 | H46: 666.7714286 | I46: 622.0769231 | J46: 1045.4 | K46: 554 | L46: 51.71428571 | M46: 12.8 | N46: 6 | O46: 33 | P46: 0.5800865801 | Q46: 3.375 | R46: 22.5 | S46: 6.648275862 | T46: 32.18181818 | U46: 21.375 | V46: 19 | W46: 67.5 | X46: 15.10307018 | Y46: 41.62533512
H47: ※本表の29年度上期欄は、29年度報告による数値であるため、４表の29年度上期欄と一致しないことがある。
Z67: =Z2 -> 0
Z132: =Z67 -> 0
Z197: =Z132 -> 0
Z262: =Z197 -> 0
Z327: =Z262 -> 0
Z392: =Z327 -> 0

Sheet 上期 26-32頁
A1: ４ 令和５年度（2023年度）上期 市町村別・国別訪日外国人宿泊者数
Z2: 単位：宿泊客数→人、宿泊客延数→人泊、対前年比→％ | AC2: 29年度から上期分集計 | AD2: 29年度上期報告 | AG2: 27年度から上期分集計 | AH2: 27年度上期報告
A3: 圏 域 | B3: 振興局 | C3: 市町村名 | D3: 区 分 | E3: 中国 | F3: 韓国 | G3: 台湾 | H3: 香港 | I3: シンガポール | J3: マレーシア | K3: タイ | L3: インド | M3: インドネシア | N3: フィリピン | O3: ベトナム | P3: ロシア | Q3: イギリス | R3: フランス | S3: ドイツ | T3: アメリカ | U3: カナダ | V3: オーストラリア | W3: その他 | X3: 計 | Y3: ='上期 1頁'!P3 -> R4年度上期 | Z3: 対前年比 | AC3: 上 期 計 | AD3: 上 期 計 | AG3: 27年度上期 | AH3: 計
A4: 全道計 | D4: 宿泊客数 | E4: =E6+E168+E215+E310+E355+E402 -> 80918 | F4: 307712 | G4: 435463 | H4: 145330 | I4: 94823 | J4: 23832 | K4: 31817 | L4: 1446 | M4: 9126 | N4: 8495 | O4: 4011 | P4: 689 | Q4: 7825 | R4: 5701 | S4: 5917 | T4: 53248 | U4: 7223 | V4: 17222 | W4: 118618 | X4: 1359416 | Y4: =Y6+Y168+Y215+Y310+Y355+Y402 -> 31772 | Z4: =IF(Y4=0,"－",X4/Y4*100) -> 4278.660456 | AB4: =Y4-AC4 -> -2602215 | AC4: 2633987 | AD4: 2633959 | AE4: =Y4-AD4 -> -2602187
D5: 宿泊客延数 | E5: 134845.139 | F5: 496041.8 | G5: 567301 | H5: 229947 | I5: 150683 | J5: 38594 | K5: 51321 | L5: 3788 | M5: 18091 | N5: 20467 | O5: 7151 | P5: 1222 | Q5: 15522 | R5: 9673 | S5: 9833 | T5: 98752 | U5: 14996 | V5: 33986 | W5: 174959 | X5: 2077172.939 | Y5: =Y7+Y169+Y216+Y311+Y356+Y403 -> 57559 | Z5: =IF(Y5=0,"－",X5/Y5*100) -> 3608.771763 | AB5: =Y5-AC5 -> -2988850 | AC5: 3046409 | AD5: 3046210 | AE5: =Y5-AD5 -> -2988651
A6: 道央圏域計 | D6: 宿泊客数 | E6: =E8+E58+E81+E123+E152 -> 46989 | F6: =F8+F58+F81+F123+F152 -> 243514 | G6: 214474 | H6: 75735 | I6: 47396 | J6: 13461 | K6: 18603 | L6: 791 | M6: 5583 | N6: 5038 | O6: 2879 | P6: 314 | Q6: 4484 | R6: 2091 | S6: 2262 | T6: 30981 | U6: 4193 | V6: 9906 | W6: 79389 | X6: =X8+X58+X81+X123+X152 -> 808083 | Y6: =Y8+Y58+Y81+Y123+Y152 -> 19565 | Z6: 4130.247892 | AB6: -1855433 | AC6: 1874998 | AD6: 1874965 | AE6: -1855400
D7: 宿泊客延数 | E7: =E9+E59+E82+E124+E153 -> 87192.43902 | F7: 415671 | G7: 320684 | H7: 142979 | I7: 90932 | J7: 25911 | K7: 34128 | L7: 2803 | M7: 13447 | N7: 15697 | O7: 5191 | P7: 661 | Q7: 10169 | R7: 4633 | S7: 4860 | T7: 67270 | U7: 10486 | V7: 23144 | W7: 123639 | X7: =X9+X59+X82+X124+X153 -> 1399497.439 | Y7: =Y9+Y59+Y82+Y124+Y153 -> 39157 | Z7: 3574.067061 | AB7: -2141279 | AC7: 2180436 | AD7: 2180397 | AE7: -2141240
B8: 空知総合振興局計 | D8: 宿泊客数 | E8: =E10+E12+E14+E16+E18+E20+E22+E24+E26+E28+E30+E32+E34+E36+E38+E40+E42+E44+E46+E48+E50+E52+E54+E56 -> 382 | F8: =F10+F12+F14+F16+F18+F20+F22+F24+F26+F28+F30+F32+F34+F36+F38+F40+F42+F44+F46+F48+F50+F52+F54+F56 -> 1513 | G8: 184 | H8: 306 | I8: 67 | J8: 62 | K8: 52 | L8: 2 | M8: 4 | N8: 4 | O8: 23 | P8: 0 | Q8: 5 | R8: 6 | S8: 10 | T8: 78 | U8: 9 | V8: 23 | W8: 314 | X8: =X10+X12+X14+X16+X18+X20+X22+X24+X26+X28+X30+X32+X34+X36+X38+X40+X42+X44+X46+X48+X50+X52+X54+X56 -> 3044 | Y8: =Y10+Y12+Y14+Y16+Y18+Y20+Y22+Y24+Y26+Y28+Y30+Y32+Y34+Y36+Y38+Y40+Y42+Y44+Y46+Y48+Y50+Y52+Y54+Y56 -> 96 | Z8: 3170.833333 | AB8: -26680 | AC8: 26776 | AD8: 26782 | AE8: -26686
D9: 宿泊客延数 | E9: =E11+E13+E15+E17+E19+E21+E23+E25+E27+E29+E31+E33+E35+E37+E39+E41+E43+E45+E47+E49+E51+E53+E55+E57 -> 412 | F9: 1951 | G9: 196 | H9: 315 | I9: 67 | J9: 62 | K9: 52 | L9: 2 | M9: 14 | N9: 4 | O9: 23 | P9: 0 | Q9: 5 | R9: 6 | S9: 10 | T9: 81 | U9: 11 | V9: 30 | W9: 370 | X9: =X11+X13+X15+X17+X19+X21+X23+X25+X27+X29+X31+X33+X35+X37+X39+X41+X43+X45+X47+X49+X51+X53+X55+X57 -> 3611 | Y9: =Y11+Y13+Y15+Y17+Y19+Y21+Y23+Y25+Y27+Y29+Y31+Y33+Y35+Y37+Y39+Y41+Y43+Y45+Y47+Y49+Y51+Y53+Y55+Y57 -> 97 | Z9: 3722.680412 | AB9: -27613 | AC9: 27710 | AD9: 27713 | AE9: -27616
C10: 夕張市 | D10: 宿泊客数 | E10: 0 | F10: 0 | G10: 0 | H10: 0 | I10: 0 | J10: 0 | K10: 0 | L10: 0 | M10: 0 | N10: 0 | O10: 0 | P10: 0 | Q10: 0 | R10: 0 | S10: 0 | T10: 0 | U10: 0 | V10: 0 | W10: 0 | X10: 0 | Y10: 0 | Z10: － | AB10: -22553 | AC10: 22553 | AD10: 22553 | AE10: -22553
D11: 宿泊客延数 | E11: 0 | F11: 0 | G11: 0 | H11: 0 | I11: 0 | J11: 0 | K11: 0 | L11: 0 | M11: 0 | N11: 0 | O11: 0 | P11: 0 | Q11: 0 | R11: 0 | S11: 0 | T11: 0 | U11: 0 | V11: 0 | W11: 0 | X11: 0 | Y11: 0 | Z11: － | AB11: -22553 | AC11: 22553 | AD11: 22553 | AE11: -22553
C12: 岩見沢市 | D12: 宿泊客数 | E12: 132 | F12: 229 | G12: 70 | H12: 113 | I12: 10 | J12: 30 | K12: 13 | L12: 1 | M12: 1 | N12: 1 | O12: 1 | P12: 0 | Q12: 4 | R12: 0 | S12: 2 | T12: 14 | U12: 8 | V12: 6 | W12: 12 | X12: 647 | Y12: 12 | Z12: 5391.666667 | AB12: -293 | AC12: 305 | AD12: 305 | AE12: -293
D13: 宿泊客延数 | E13: 155 | F13: 633 | G13: 70 | H13: 117 | I13: 10 | J13: 30 | K13: 13 | L13: 1 | M13: 1 | N13: 1 | O13: 1 | P13: 0 | Q13: 4 | R13: 0 | S13: 2 | T13: 17 | U13: 10 | V13: 12 | W13: 13 | X13: 1090 | Y13: 12 | Z13: 9083.333333 | AB13: -352 | AC13: 364 | AD13: 364 | AE13: -352
C14: 美唄市 | D14: 宿泊客数 | E14: 16 | F14: 103 | G14: 22 | H14: 58 | I14: 5 | J14: 30 | K14: 0 | L14: 0 | M14: 0 | N14: 0 | O14: 0 | P14: 0 | Q14: 0 | R14: 0 | S14: 0 | T14: 2 | U14: 0 | V14: 3 | W14: 246 | X14: 485 | Y14: 30 | Z14: 1616.666667 | AB14: -284 | AC14: 314 | AD14: 314 | AE14: -284
D15: 宿泊客延数 | E15: 16 | F15: 103 | G15: 22 | H15: 58 | I15: 5 | J15: 30 | K15: 0 | L15: 0 | M15: 0 | N15: 0 | O15: 0 | P15: 0 | Q15: 0 | R15: 0 | S15: 0 | T15: 2 | U15: 0 | V15: 3 | W15: 246 | X15: 485 | Y15: 30 | Z15: 1616.666667 | AB15: -284 | AC15: 314 | AD15: 314 | AE15: -284
C16: 芦別市 | D16: 宿泊客数 | E16: 8 | F16: 30 | G16: 63 | H16: 108 | I16: 42 | J16: 0 | K16: 0 | L16: 0 | M16: 1 | N16: 0 | O16: 0 | P16: 0 | Q16: 0 | R16: 0 | S16: 0 | T16: 9 | U16: 0 | V16: 2 | W16: 5 | X16: 268 | Y16: 0 | Z16: － | AB16: -205 | AC16: 205 | AD16: 205 | AE16: -205
D17: 宿泊客延数 | E17: 13 | F17: 30 | G17: 63 | H17: 108 | I17: 42 | J17: 0 | K17: 0 | L17: 0 | M17: 11 | N17: 0 | O17: 0 | P17: 0 | Q17: 0 | R17: 0 | S17: 0 | T17: 9 | U17: 0 | V17: 2 | W17: 5 | X17: 283 | Y17: 0 | Z17: － | AB17: -247 | AC17: 247 | AD17: 247 | AE17: -247
C18: 赤平市 | D18: 宿泊客数 | E18: 0 | F18: 0 | G18: 0 | H18: 0 | I18: 0 | J18: 0 | K18: 0 | L18: 0 | M18: 0 | N18: 0 | O18: 0 | P18: 0 | Q18: 0 | R18: 0 | S18: 0 | T18: 0 | U18: 0 | V18: 0 | W18: 0 | X18: 0 | Y18: 0 | Z18: － | AB18: 0 | AC18: 0 | AD18: 0 | AE18: 0
D19: 宿泊客延数 | E19: 0 | F19: 0 | G19: 0 | H19: 0 | I19: 0 | J19: 0 | K19: 0 | L19: 0 | M19: 0 | N19: 0 | O19: 0 | P19: 0 | Q19: 0 | R19: 0 | S19: 0 | T19: 0 | U19: 0 | V19: 0 | W19: 0 | X19: 0 | Y19: 0 | Z19: － | AB19: 0 | AC19: 0 | AD19: 0 | AE19: 0
C20: 三笠市 | D20: 宿泊客数 | E20: 157 | F20: 43 | G20: 0 | H20: 0 | I20: 4 | J20: 0 | K20: 2 | L20: 0 | M20: 0 | N20: 0 | O20: 0 | P20: 0 | Q20: 0 | R20: 0 | S20: 0 | T20: 2 | U20: 0 | V20: 4 | W20: 0 | X20: 212 | Y20: 0 | Z20: － | AB20: -497 | AC20: 497 | AD20: 497 | AE20: -497
D21: 宿泊客延数 | E21: 157 | F21: 43 | G21: 0 | H21: 0 | I21: 4 | J21: 0 | K21: 2 | L21: 0 | M21: 0 | N21: 0 | O21: 0 | P21: 0 | Q21: 0 | R21: 0 | S21: 0 | T21: 2 | U21: 0 | V21: 4 | W21: 0 | X21: 212 | Y21: 0 | Z21: － | AB21: -497 | AC21: 497 | AD21: 497 | AE21: -497
C22: 滝川市 | D22: 宿泊客数 | E22: 32 | F22: 7 | G22: 15 | H22: 6 | I22: 6 | J22: 2 | K22: 9 | L22: 0 | M22: 2 | N22: 3 | O22: 19 | P22: 0 | Q22: 0 | R22: 2 | S22: 8 | T22: 42 | U22: 0 | V22: 1 | W22: 32 | X22: 186 | Y22: 39 | Z22: 476.9230769 | AB22: -308 | AC22: 347 | AD22: 347 | AE22: -308
D23: 宿泊客延数 | E23: 32 | F23: 7 | G23: 19 | H23: 11 | I23: 6 | J23: 2 | K23: 9 | L23: 0 | M23: 2 | N23: 3 | O23: 19 | P23: 0 | Q23: 0 | R23: 2 | S23: 8 | T23: 42 | U23: 0 | V23: 1 | W23: 62 | X23: 225 | Y23: 40 | Z23: 562.5 | AB23: -1073 | AC23: 1113 | AD23: 1113 | AE23: -1073
C24: 砂川市 | D24: 宿泊客数 | E24: 2 | F24: 0 | G24: 0 | H24: 0 | I24: 0 | J24: 0 | K24: 0 | L24: 1 | M24: 0 | N24: 0 | O24: 0 | P24: 0 | Q24: 0 | R24: 0 | S24: 0 | T24: 0 | U24: 1 | V24: 4 | W24: 7 | X24: 15 | Y24: 6 | Z24: 250 | AB24: -5 | AC24: 11 | AD24: 11 | AE24: -5
D25: 宿泊客延数 | E25: 4 | F25: 0 | G25: 0 | H25: 0 | I25: 0 | J25: 0 | K25: 0 | L25: 1 | M25: 0 | N25: 0 | O25: 0 | P25: 0 | Q25: 0 | R25: 0 | S25: 0 | T25: 0 | U25: 1 | V25: 5 | W25: 28 | X25: 39 | Y25: 6 | Z25: 650 | AB25: -7 | AC25: 13 | AD25: 13 | AE25: -7
C26: 歌志内市 | D26: 宿泊客数 | E26: 0 | F26: 0 | G26: 0 | H26: 0 | I26: 0 | J26: 0 | K26: 0 | L26: 0 | M26: 0 | N26: 0 | O26: 0 | P26: 0 | Q26: 0 | R26: 0 | S26: 0 | T26: 0 | U26: 0 | V26: 0 | W26: 0 | X26: 0 | Y26: 0 | Z26: － | AB26: -78 | AC26: 78 | AD26: 78 | AE26: -78
D27: 宿泊客延数 | E27: 0 | F27: 0 | G27: 0 | H27: 0 | I27: 0 | J27: 0 | K27: 0 | L27: 0 | M27: 0 | N27: 0 | O27: 0 | P27: 0 | Q27: 0 | R27: 0 | S27: 0 | T27: 0 | U27: 0 | V27: 0 | W27: 0 | X27: 0 | Y27: 0 | Z27: － | AB27: -110 | AC27: 110 | AD27: 110 | AE27: -110
C28: 深川市 | D28: 宿泊客数 | E28: 6 | F28: 3 | G28: 2 | H28: 0 | I28: 0 | J28: 0 | K28: 0 | L28: 0 | M28: 0 | N28: 0 | O28: 3 | P28: 0 | Q28: 0 | R28: 4 | S28: 0 | T28: 4 | U28: 0 | V28: 0 | W28: 0 | X28: 22 | Y28: 2 | Z28: 1100 | AB28: -55 | AC28: 57 | AD28: 57 | AE28: -55
D29: 宿泊客延数 | E29: 6 | F29: 3 | G29: 2 | H29: 0 | I29: 0 | J29: 0 | K29: 0 | L29: 0 | M29: 0 | N29: 0 | O29: 3 | P29: 0 | Q29: 0 | R29: 4 | S29: 0 | T29: 4 | U29: 0 | V29: 0 | W29: 0 | X29: 22 | Y29: 2 | Z29: 1100 | AB29: -70 | AC29: 72 | AD29: 72 | AE29: -70
C30: 南幌町 | D30: 宿泊客数 | E30: 0 | F30: 29 | G30: 0 | H30: 0 | I30: 0 | J30: 0 | K30: 0 | L30: 0 | M30: 0 | N30: 0 | O30: 0 | P30: 0 | Q30: 0 | R30: 0 | S30: 0 | T30: 0 | U30: 0 | V30: 0 | W30: 0 | X30: 29 | Y30: 0 | Z30: － | AB30: -50 | AC30: 50 | AD30: 50 | AE30: -50
D31: 宿泊客延数 | E31: 0 | F31: 29 | G31: 0 | H31: 0 | I31: 0 | J31: 0 | K31: 0 | L31: 0 | M31: 0 | N31: 0 | O31: 0 | P31: 0 | Q31: 0 | R31: 0 | S31: 0 | T31: 0 | U31: 0 | V31: 0 | W31: 0 | X31: 29 | Y31: 0 | Z31: － | AB31: -52 | AC31: 52 | AD31: 52 | AE31: -52
C32: 奈井江町 | D32: 宿泊客数 | E32: 0 | F32: 0 | G32: 0 | H32: 0 | I32: 0 | J32: 0 | K32: 0 | L32: 0 | M32: 0 | N32: 0 | O32: 0 | P32: 0 | Q32: 0 | R32: 0 | S32: 0 | T32: 0 | U32: 0 | V32: 0 | W32: 0 | X32: 0 | Y32: 0 | Z32: － | AB32: 0 | AC32: 0 | AD32: 0 | AE32: 0
D33: 宿泊客延数 | E33: 0 | F33: 0 | G33: 0 | H33: 0 | I33: 0 | J33: 0 | K33: 0 | L33: 0 | M33: 0 | N33: 0 | O33: 0 | P33: 0 | Q33: 0 | R33: 0 | S33: 0 | T33: 0 | U33: 0 | V33: 0 | W33: 0 | X33: 0 | Y33: 0 | Z33: － | AB33: 0 | AC33: 0 | AD33: 0 | AE33: 0
C34: 上砂川町 | D34: 宿泊客数 | E34: 0 | F34: 0 | G34: 0 | H34: 0 | I34: 0 | J34: 0 | K34: 0 | L34: 0 | M34: 0 | N34: 0 | O34: 0 | P34: 0 | Q34: 0 | R34: 0 | S34: 0 | T34: 0 | U34: 0 | V34: 0 | W34: 0 | X34: 0 | Y34: 0 | Z34: － | AB34: 0 | AC34: 0 | AD34: 0 | AE34: 0
D35: 宿泊客延数 | E35: 0 | F35: 0 | G35: 0 | H35: 0 | I35: 0 | J35: 0 | K35: 0 | L35: 0 | M35: 0 | N35: 0 | O35: 0 | P35: 0 | Q35: 0 | R35: 0 | S35: 0 | T35: 0 | U35: 0 | V35: 0 | W35: 0 | X35: 0 | Y35: 0 | Z35: － | AB35: 0 | AC35: 0 | AD35: 0 | AE35: 0
C36: 由仁町 | D36: 宿泊客数 | E36: 19 | F36: 42 | G36: 12 | H36: 21 | I36: 0 | J36: 0 | K36: 0 | L36: 0 | M36: 0 | N36: 0 | O36: 0 | P36: 0 | Q36: 0 | R36: 0 | S36: 0 | T36: 5 | U36: 0 | V36: 0 | W36: 6 | X36: 105 | Y36: 0 | Z36: － | AB36: -160 | AC36: 160 | AD36: 163 | AE36: -163
D37: 宿泊客延数 | E37: 19 | F37: 76 | G37: 20 | H37: 21 | I37: 0 | J37: 0 | K37: 0 | L37: 0 | M37: 0 | N37: 0 | O37: 0 | P37: 0 | Q37: 0 | R37: 0 | S37: 0 | T37: 5 | U37: 0 | V37: 0 | W37: 10 | X37: 151 | Y37: 0 | Z37: － | AB37: -172 | AC37: 172 | AD37: 172 | AE37: -172
C38: 長沼町 | D38: 宿泊客数 | E38: 0 | F38: 0 | G38: 0 | H38: 0 | I38: 0 | J38: 0 | K38: 0 | L38: 0 | M38: 0 | N38: 0 | O38: 0 | P38: 0 | Q38: 0 | R38: 0 | S38: 0 | T38: 0 | U38: 0 | V38: 0 | W38: 0 | X38: 0 | Y38: 0 | Z38: － | AB38: 0 | AC38: 0 | AD38: 0 | AE38: 0
D39: 宿泊客延数 | E39: 0 | F39: 0 | G39: 0 | H39: 0 | I39: 0 | J39: 0 | K39: 0 | L39: 0 | M39: 0 | N39: 0 | O39: 0 | P39: 0 | Q39: 0 | R39: 0 | S39: 0 | T39: 0 | U39: 0 | V39: 0 | W39: 0 | X39: 0 | Y39: 0 | Z39: － | AB39: 0 | AC39: 0 | AD39: 0 | AE39: 0
C40: 栗山町 | D40: 宿泊客数 | E40: 0 | F40: 1021 | G40: 0 | H40: 0 | I40: 0 | J40: 0 | K40: 0 | L40: 0 | M40: 0 | N40: 0 | O40: 0 | P40: 0 | Q40: 0 | R40: 0 | S40: 0 | T40: 0 | U40: 0 | V40: 0 | W40: 0 | X40: 1021 | Y40: 0 | Z40: － | AB40: -2104 | AC40: 2104 | AD40: 2104 | AE40: -2104
D41: 宿泊客延数 | E41: 0 | F41: 1021 | G41: 0 | H41: 0 | I41: 0 | J41: 0 | K41: 0 | L41: 0 | M41: 0 | N41: 0 | O41: 0 | P41: 0 | Q41: 0 | R41: 0 | S41: 0 | T41: 0 | U41: 0 | V41: 0 | W41: 0 | X41: 1021 | Y41: 0 | Z41: － | AB41: -2104 | AC41: 2104 | AD41: 2104 | AE41: -2104
C42: 月形町 | D42: 宿泊客数 | E42: 0 | F42: 0 | G42: 0 | H42: 0 | I42: 0 | J42: 0 | K42: 0 | L42: 0 | M42: 0 | N42: 0 | O42: 0 | P42: 0 | Q42: 0 | R42: 0 | S42: 0 | T42: 0 | U42: 0 | V42: 0 | W42: 0 | X42: 0 | Y42: 5 | Z42: 0 | AB42: -3 | AC42: 8 | AD42: 8 | AE42: -3
D43: 宿泊客延数 | E43: 0 | F43: 0 | G43: 0 | H43: 0 | I43: 0 | J43: 0 | K43: 0 | L43: 0 | M43: 0 | N43: 0 | O43: 0 | P43: 0 | Q43: 0 | R43: 0 | S43: 0 | T43: 0 | U43: 0 | V43: 0 | W43: 0 | X43: 0 | Y43: 5 | Z43: 0 | AB43: -3 | AC43: 8 | AD43: 8 | AE43: -3
C44: 浦臼町 | D44: 宿泊客数 | E44: 0 | F44: 0 | G44: 0 | H44: 0 | I44: 0 | J44: 0 | K44: 0 | L44: 0 | M44: 0 | N44: 0 | O44: 0 | P44: 0 | Q44: 0 | R44: 0 | S44: 0 | T44: 0 | U44: 0 | V44: 0 | W44: 0 | X44: 0 | Y44: 0 | Z44: － | AB44: 0 | AC44: 0 | AD44: 0 | AE44: 0
D45: 宿泊客延数 | E45: 0 | F45: 0 | G45: 0 | H45: 0 | I45: 0 | J45: 0 | K45: 0 | L45: 0 | M45: 0 | N45: 0 | O45: 0 | P45: 0 | Q45: 0 | R45: 0 | S45: 0 | T45: 0 | U45: 0 | V45: 0 | W45: 0 | X45: 0 | Y45: 0 | Z45: － | AB45: 0 | AC45: 0 | AD45: 0 | AE45: 0
C46: 新十津川町 | D46: 宿泊客数 | E46: 10 | F46: 6 | G46: 0 | H46: 0 | I46: 0 | J46: 0 | K46: 0 | L46: 0 | M46: 0 | N46: 0 | O46: 0 | P46: 0 | Q46: 1 | R46: 0 | S46: 0 | T46: 0 | U46: 0 | V46: 3 | W46: 6 | X46: 26 | Y46: 0 | Z46: － | AB46: -58 | AC46: 58 | AD46: 58 | AE46: -58
D47: 宿泊客延数 | E47: 10 | F47: 6 | G47: 0 | H47: 0 | I47: 0 | J47: 0 | K47: 0 | L47: 0 | M47: 0 | N47: 0 | O47: 0 | P47: 0 | Q47: 1 | R47: 0 | S47: 0 | T47: 0 | U47: 0 | V47: 3 | W47: 6 | X47: 26 | Y47: 0 | Z47: － | AB47: -62 | AC47: 62 | AD47: 62 | AE47: -62
C48: 妹背牛町 | D48: 宿泊客数 | E48: 0 | F48: 0 | G48: 0 | H48: 0 | I48: 0 | J48: 0 | K48: 0 | L48: 0 | M48: 0 | N48: 0 | O48: 0 | P48: 0 | Q48: 0 | R48: 0 | S48: 0 | T48: 0 | U48: 0 | V48: 0 | W48: 0 | X48: 0 | Y48: 0 | Z48: － | AB48: 0 | AC48: 0 | AD48: 0 | AE48: 0
D49: 宿泊客延数 | E49: 0 | F49: 0 | G49: 0 | H49: 0 | I49: 0 | J49: 0 | K49: 0 | L49: 0 | M49: 0 | N49: 0 | O49: 0 | P49: 0 | Q49: 0 | R49: 0 | S49: 0 | T49: 0 | U49: 0 | V49: 0 | W49: 0 | X49: 0 | Y49: 0 | Z49: － | AB49: 0 | AC49: 0 | AD49: 0 | AE49: 0
C50: 秩父別町 | D50: 宿泊客数 | E50: 0 | F50: 0 | G50: 0 | H50: 0 | I50: 0 | J50: 0 | K50: 28 | L50: 0 | M50: 0 | N50: 0 | O50: 0 | P50: 0 | Q50: 0 | R50: 0 | S50: 0 | T50: 0 | U50: 0 | V50: 0 | W50: 0 | X50: 28 | Y50: 2 | Z50: 1400 | AB50: 2 | AC50: 0 | AD50: 0 | AE50: 2
D51: 宿泊客延数 | E51: 0 | F51: 0 | G51: 0 | H51: 0 | I51: 0 | J51: 0 | K51: 28 | L51: 0 | M51: 0 | N51: 0 | O51: 0 | P51: 0 | Q51: 0 | R51: 0 | S51: 0 | T51: 0 | U51: 0 | V51: 0 | W51: 0 | X51: 28 | Y51: 2 | Z51: 1400 | AB51: 2 | AC51: 0 | AD51: 0 | AE51: 2
C52: 雨竜町 | D52: 宿泊客数 | E52: 0 | F52: 0 | G52: 0 | H52: 0 | I52: 0 | J52: 0 | K52: 0 | L52: 0 | M52: 0 | N52: 0 | O52: 0 | P52: 0 | Q52: 0 | R52: 0 | S52: 0 | T52: 0 | U52: 0 | V52: 0 | W52: 0 | X52: 0 | Y52: 0 | Z52: － | AB52: -4 | AC52: 4 | AD52: 7 | AE52: -7
D53: 宿泊客延数 | E53: 0 | F53: 0 | G53: 0 | H53: 0 | I53: 0 | J53: 0 | K53: 0 | L53: 0 | M53: 0 | N53: 0 | O53: 0 | P53: 0 | Q53: 0 | R53: 0 | S53: 0 | T53: 0 | U53: 0 | V53: 0 | W53: 0 | X53: 0 | Y53: 0 | Z53: － | AB53: -4 | AC53: 4 | AD53: 7 | AE53: -7
C54: 北竜町 | D54: 宿泊客数 | E54: 0 | F54: 0 | G54: 0 | H54: 0 | I54: 0 | J54: 0 | K54: 0 | L54: 0 | M54: 0 | N54: 0 | O54: 0 | P54: 0 | Q54: 0 | R54: 0 | S54: 0 | T54: 0 | U54: 0 | V54: 0 | W54: 0 | X54: 0 | Y54: 0 | Z54: － | AB54: 0 | AC54: 0 | AD54: 0 | AE54: 0
D55: 宿泊客延数 | E55: 0 | F55: 0 | G55: 0 | H55: 0 | I55: 0 | J55: 0 | K55: 0 | L55: 0 | M55: 0 | N55: 0 | O55: 0 | P55: 0 | Q55: 0 | R55: 0 | S55: 0 | T55: 0 | U55: 0 | V55: 0 | W55: 0 | X55: 0 | Y55: 0 | Z55: － | AB55: 0 | AC55: 0 | AD55: 0 | AE55: 0
C56: 沼田町 | D56: 宿泊客数 | E56: 0 | F56: 0 | G56: 0 | H56: 0 | I56: 0 | J56: 0 | K56: 0 | L56: 0 | M56: 0 | N56: 0 | O56: 0 | P56: 0 | Q56: 0 | R56: 0 | S56: 0 | T56: 0 | U56: 0 | V56: 0 | W56: 0 | X56: 0 | Y56: 0 | Z56: － | AB56: -25 | AC56: 25 | AD56: 25 | AE56: -25
D57: 宿泊客延数 | E57: 0 | F57: 0 | G57: 0 | H57: 0 | I57: 0 | J57: 0 | K57: 0 | L57: 0 | M57: 0 | N57: 0 | O57: 0 | P57: 0 | Q57: 0 | R57: 0 | S57: 0 | T57: 0 | U57: 0 | V57: 0 | W57: 0 | X57: 0 | Y57: 0 | Z57: － | AB57: -25 | AC57: 25 | AD57: 25 | AE57: -25
B58: 石狩振興局計 | D58: 宿泊客数 | E58: =E60+E62+E69+E71+E73+E75+E77+E79 -> 23757 | F58: =F60+F62+F69+F71+F73+F75+F77+F79 -> 95883 | G58: 66881 | H58: 23190 | I58: 17883 | J58: 5879 | K58: 9592 | L58: 615 | M58: 3270 | N58: 3579 | O58: 1887 | P58: 118 | Q58: 2387 | R58: 1060 | S58: 1215 | T58: 16234 | U58: 2374 | V58: 3588 | W58: 31274 | X58: =X60+X62+X69+X71+X73+X75+X77+X79 -> 310666 | Y58: =Y60+Y62+Y69+Y71+Y73+Y75+Y77+Y79 -> 11765 | Z58: 2640.594985 | AB58: -1174428 | AC58: 1186193 | AD58: 1186195 | AE58: -1174430
D59: 宿泊客延数 | E59: =E61+E63+E70+E72+E74+E76+E78+E80 -> 56832 | F59: 236090 | G59: 154664 | H59: 66229 | I59: 46825 | J59: 16997 | K59: 21742 | L59: 2486 | M59: 9149 | N59: 12608 | O59: 4016 | P59: 286 | Q59: 6739 | R59: 2933 | S59: 3542 | T59: 45737 | U59: 7659 | V59: 11156 | W59: 64116 | X59: =X61+X63+X70+X72+X74+X76+X78+X80 -> 769806 | Y59: =Y61+Y63+Y70+Y72+Y74+Y76+Y78+Y80 -> 25459 | Z59: 3023.708708 | AB59: -1375159 | AC59: 1400618 | AD59: 1400623 | AE59: -1375164
C60: 札幌市 | D60: 宿泊客数 | E60: 18663 | F60: 89548 | G60: 56183 | H60: 19171 | I60: 14041 | J60: 4895 | K60: 7135 | L60: 513 | M60: 2704 | N60: 3323 | O60: 1662 | P60: 92 | Q60: 2202 | R60: 893 | S60: 1108 | T60: 11805 | U60: 1952 | V60: 2992 | W60: 29672 | X60: 268554 | Y60: 11314 | Z60: 2373.643274 | AB60: -1097870 | AC60: 1109184 | AD60: 1109184 | AE60: -1097870
D61: 宿泊客延数 | E61: 50845 | F61: 226176 | G61: 141859 | H61: 61193 | I61: 42177 | J61: 15903 | K61: 18696 | L61: 2383 | M61: 8546 | N61: 12320 | O61: 3606 | P61: 244 | Q61: 6513 | R61: 2737 | S61: 3365 | T61: 39044 | U61: 6698 | V61: 10207 | W61: 61763 | X61: 714275 | Y61: 24608 | Z61: 2902.612971 | AB61: -1288481 | AC61: 1313089 | AD61: 1313089 | AE61: -1288481
C62: 江別市 | D62: 宿泊客数 | E62: 24 | F62: 0 | G62: 77 | H62: 0 | I62: 0 | J62: 0 | K62: 0 | L62: 0 | M62: 0 | N62: 0 | O62: 0 | P62: 0 | Q62: 0 | R62: 0 | S62: 0 | T62: 0 | U62: 0 | V62: 0 | W62: 5 | X62: 106 | Y62: 0 | Z62: － | AB62: -4 | AC62: 4 | AD62: 4 | AE62: -4
D63: 宿泊客延数 | E63: 30 | F63: 0 | G63: 77 | H63: 0 | I63: 0 | J63: 0 | K63: 0 | L63: 0 | M63: 0 | N63: 0 | O63: 0 | P63: 0 | Q63: 0 | R63: 0 | S63: 0 | T63: 0 | U63: 0 | V63: 0 | W63: 5 | X63: 112 | Y63: 0 | Z63: － | AB63: -4 | AC63: 4 | AD63: 4 | AE63: -4
AB64: 0 | AE64: 0
AB65: 0 | AE65: 0
A66: =A1 -> ４ 令和５年度（2023年度）上期 市町村別・国別訪日外国人宿泊者数 | AB66: 0 | AE66: 0
Z67: =Z2 -> 単位：宿泊客数→人、宿泊客延数→人泊、対前年比→％ | AB67: 0 | AE67: 0
A68: 圏 域 | B68: 振興局 | C68: 市町村名 | D68: 区 分 | E68: 中国 | F68: 韓国 | G68: 台湾 | H68: 香港 | I68: シンガポール | J68: マレーシア | K68: タイ | L68: インド | M68: インドネシア | N68: フィリピン | O68: ベトナム | P68: ロシア | Q68: イギリス | R68: フランス | S68: ドイツ | T68: アメリカ | U68: カナダ | V68: オーストラリア | W68: その他 | X68: 計 | Y68: =Y3 -> R4年度上期 | Z68: =Z3 -> 対前年比 | AC68: 上 期 計 | AD68: 計
A69: 道央 | B69: 石狩 | C69: 千歳市 | D69: 宿泊客数 | E69: 5022 | F69: 4814 | G69: 9974 | H69: 3748 | I69: 3820 | J69: 965 | K69: 2456 | L69: 102 | M69: 566 | N69: 256 | O69: 225 | P69: 26 | Q69: 177 | R69: 167 | S69: 104 | T69: 4388 | U69: 419 | V69: 592 | W69: 1532 | X69: 39353 | Y69: 363 | Z69: =IF(Y69=0,"－",X69/Y69*100) -> 10841.04683 | AB69: =Y69-AC69 -> -61184 | AC69: 61547 | AD69: 61547 | AE69: =Y69-AD69 -> -61184
D70: 宿泊客延数 | E70: 5886 | F70: 5755 | G70: 11613 | H70: 4561 | I70: 4610 | J70: 1062 | K70: 3045 | L70: 103 | M70: 603 | N70: 288 | O70: 410 | P70: 42 | Q70: 212 | R70: 196 | S70: 173 | T70: 6618 | U70: 955 | V70: 944 | W70: 2224 | X70: 49300 | Y70: 708 | Z70: 6963.276836 | AB70: -70633 | AC70: 71341 | AD70: 71341 | AE70: -70633
C71: 恵庭市 | D71: 宿泊客数 | E71: 10 | F71: 8 | G71: 0 | H71: 1 | I71: 0 | J71: 0 | K71: 1 | L71: 0 | M71: 0 | N71: 0 | O71: 0 | P71: 0 | Q71: 3 | R71: 0 | S71: 3 | T71: 0 | U71: 1 | V71: 0 | W71: 18 | X71: 45 | Y71: 8 | Z71: 562.5 | AB71: -18 | AC71: 26 | AD71: 26 | AE71: -18
D72: 宿泊客延数 | E72: 20 | F72: 14 | G72: 0 | H72: 1 | I72: 0 | J72: 0 | K72: 1 | L72: 0 | M72: 0 | N72: 0 | O72: 0 | P72: 0 | Q72: 6 | R72: 0 | S72: 4 | T72: 0 | U72: 1 | V72: 0 | W72: 60 | X72: 107 | Y72: 8 | Z72: 1337.5 | AB72: -30 | AC72: 38 | AD72: 38 | AE72: -30
C73: 北広島市 | D73: 宿泊客数 | E73: 9 | F73: 670 | G73: 459 | H73: 224 | I73: 12 | J73: 19 | K73: 0 | L73: 0 | M73: 0 | N73: 0 | O73: 0 | P73: 0 | Q73: 3 | R73: 0 | S73: 0 | T73: 38 | U73: 1 | V73: 1 | W73: 8 | X73: 1444 | Y73: 9 | Z73: 16044.44444 | AB73: -14783 | AC73: 14792 | AD73: 14792 | AE73: -14783
D74: 宿泊客延数 | E74: 22 | F74: 3290 | G74: 927 | H74: 428 | I74: 28 | J74: 32 | K74: 0 | L74: 0 | M74: 0 | N74: 0 | O74: 0 | P74: 0 | Q74: 6 | R74: 0 | S74: 0 | T74: 72 | U74: 4 | V74: 2 | W74: 25 | X74: 4836 | Y74: 44 | Z74: 10990.90909 | AB74: -15406 | AC74: 15450 | AD74: 15450 | AE74: -15406
C75: 石狩市 | D75: 宿泊客数 | E75: 19 | F75: 7 | G75: 27 | H75: 12 | I75: 8 | J75: 0 | K75: 0 | L75: 0 | M75: 0 | N75: 0 | O75: 0 | P75: 0 | Q75: 0 | R75: 0 | S75: 0 | T75: 0 | U75: 0 | V75: 0 | W75: 39 | X75: 112 | Y75: 69 | Z75: 162.3188406 | AB75: 69 | AC75: 0 | AD75: 0 | AE75: 69
D76: 宿泊客延数 | E76: 19 | F76: 7 | G76: 27 | H76: 12 | I76: 8 | J76: 0 | K76: 0 | L76: 0 | M76: 0 | N76: 0 | O76: 0 | P76: 0 | Q76: 0 | R76: 0 | S76: 0 | T76: 0 | U76: 0 | V76: 0 | W76: 39 | X76: 112 | Y76: 89 | Z76: 125.8426966 | AB76: 89 | AC76: 0 | AD76: 0 | AE76: 89
C77: 当別町 | D77: 宿泊客数 | E77: 5 | F77: 826 | G77: 144 | H77: 0 | I77: 0 | J77: 0 | K77: 0 | L77: 0 | M77: 0 | N77: 0 | O77: 0 | P77: 0 | Q77: 0 | R77: 0 | S77: 0 | T77: 2 | U77: 0 | V77: 0 | W77: 0 | X77: 977 | Y77: 0 | Z77: － | AB77: -595 | AC77: 595 | AD77: 597 | AE77: -597
D78: 宿泊客延数 | E78: 5 | F78: 838 | G78: 144 | H78: 0 | I78: 0 | J78: 0 | K78: 0 | L78: 0 | M78: 0 | N78: 0 | O78: 0 | P78: 0 | Q78: 0 | R78: 0 | S78: 0 | T78: 2 | U78: 0 | V78: 0 | W78: 0 | X78: 989 | Y78: 0 | Z78: － | AB78: -651 | AC78: 651 | AD78: 656 | AE78: -656
C79: 新篠津村 | D79: 宿泊客数 | E79: 5 | F79: 10 | G79: 17 | H79: 34 | I79: 2 | J79: 0 | K79: 0 | L79: 0 | M79: 0 | N79: 0 | O79: 0 | P79: 0 | Q79: 2 | R79: 0 | S79: 0 | T79: 1 | U79: 1 | V79: 3 | W79: 0 | X79: 75 | Y79: 2 | Z79: 3750 | AB79: -43 | AC79: 45 | AD79: 45 | AE79: -43
D80: 宿泊客延数 | E80: 5 | F80: 10 | G80: 17 | H80: 34 | I80: 2 | J80: 0 | K80: 0 | L80: 0 | M80: 0 | N80: 0 | O80: 0 | P80: 0 | Q80: 2 | R80: 0 | S80: 0 | T80: 1 | U80: 1 | V80: 3 | W80: 0 | X80: 75 | Y80: 2 | Z80: 3750 | AB80: -43 | AC80: 45 | AD80: 45 | AE80: -43
B81: 後志総合振興局計 | D81: 宿泊客数 | E81: =E83+E85+E87+E89+E91+E93+E95+E97+E99+E101+E103+E105+E107+E109+E111+E113+E115+E117+E119+E121 -> 10697 | F81: =F83+F85+F87+F89+F91+F93+F95+F97+F99+F101+F103+F105+F107+F109+F111+F113+F115+F117+F119+F121 -> 41823 | G81: 31690 | H81: 23182 | I81: 13497 | J81: 2747 | K81: 4822 | L81: 114 | M81: 960 | N81: 706 | O81: 434 | P81: 79 | Q81: 1127 | R81: 476 | S81: 286 | T81: 7563 | U81: 726 | V81: 3864 | W81: 6889 | X81: =X83+X85+X87+X89+X91+X93+X95+X97+X99+X101+X103+X105+X107+X109+X111+X113+X115+X117+X119+X121 -> 151682 | Y81: =Y83+Y85+Y87+Y89+Y91+Y93+Y95+Y97+Y99+Y101+Y103+Y105+Y107+Y109+Y111+Y113+Y115+Y117+Y119+Y121 -> 4403 | Z81: 3444.969339 | AB81: -185347 | AC81: 189750 | AD81: 189745 | AE81: -185342
D82: 宿泊客延数 | E82: =E84+E86+E88+E90+E92+E94+E96+E98+E100+E102+E104+E106+E108+E110+E112+E114+E116+E118+E120+E122 -> 15942.43902 | F82: 69499 | G82: 46154 | H82: 45833 | I82: 26955 | J82: 3843 | K82: 7991 | L82: 248 | M82: 2800 | N82: 2271 | O82: 545 | P82: 256 | Q82: 2393 | R82: 1071 | S82: 483 | T82: 13647 | U82: 1668 | V82: 9269 | W82: 17741 | X82: =X84+X86+X88+X90+X92+X94+X96+X98+X100+X102+X104+X106+X108+X110+X112+X114+X116+X118+X120+X122 -> 268609.439 | Y82: =Y84+Y86+Y88+Y90+Y92+Y94+Y96+Y98+Y100+Y102+Y104+Y106+Y108+Y110+Y112+Y114+Y116+Y118+Y120+Y122 -> 9856 | Z82: 2725.339276 | AB82: -253350 | AC82: 263206 | AD82: 263202 | AE82: -253346
C83: 小樽市 | D83: 宿泊客数 | E83: 5528 | F83: 25298 | G83: 18233 | H83: 13012 | I83: 8998 | J83: 1794 | K83: 2371 | L83: 66 | M83: 420 | N83: 218 | O83: 104 | P83: 68 | Q83: 527 | R83: 197 | S83: 163 | T83: 3702 | U83: 508 | V83: 1006 | W83: 2378 | X83: 84591 | Y83: 1195 | Z83: 7078.74477 | AB83: -80565 | AC83: 81760 | AD83: 81760 | AE83: -80565
D84: 宿泊客延数 | E84: 6936 | F84: 30485 | G84: 22294 | H84: 16592 | I84: 11375 | J84: 2277 | K84: 2868 | L84: 82 | M84: 587 | N84: 311 | O84: 120 | P84: 112 | Q84: 747 | R84: 380 | S84: 268 | T84: 5037 | U84: 684 | V84: 1315 | W84: 2930 | X84: 105400 | Y84: 1556 | Z84: 6773.77892 | AB84: -90505 | AC84: 92061 | AD84: 92061 | AE84: -90505
C85: 島牧村 | D85: 宿泊客数 | E85: 2 | F85: 2 | G85: 1 | H85: 0 | I85: 0 | J85: 0 | K85: 0 | L85: 0 | M85: 0 | N85: 0 | O85: 0 | P85: 0 | Q85: 0 | R85: 0 | S85: 0 | T85: 11 | U85: 0 | V85: 0 | W85: 0 | X85: 16 | Y85: 0 | Z85: － | AB85: -10 | AC85: 10 | AD85: 10 | AE85: -10
D86: 宿泊客延数 | E86: 2 | F86: 2 | G86: 1 | H86: 0 | I86: 0 | J86: 0 | K86: 0 | L86: 0 | M86: 0 | N86: 0 | O86: 0 | P86: 0 | Q86: 0 | R86: 0 | S86: 0 | T86: 11 | U86: 0 | V86: 0 | W86: 0 | X86: 16 | Y86: 0 | Z86: － | AB86: -10 | AC86: 10 | AD86: 10 | AE86: -10
C87: 寿都町 | D87: 宿泊客数 | E87: 0 | F87: 0 | G87: 0 | H87: 0 | I87: 0 | J87: 0 | K87: 0 | L87: 0 | M87: 0 | N87: 0 | O87: 0 | P87: 0 | Q87: 0 | R87: 0 | S87: 0 | T87: 0 | U87: 0 | V87: 0 | W87: 0 | X87: 0 | Y87: 0 | Z87: － | AB87: 0 | AC87: 0 | AD87: 0 | AE87: 0
D88: 宿泊客延数 | E88: 0 | F88: 0 | G88: 0 | H88: 0 | I88: 0 | J88: 0 | K88: 0 | L88: 0 | M88: 0 | N88: 0 | O88: 0 | P88: 0 | Q88: 0 | R88: 0 | S88: 0 | T88: 0 | U88: 0 | V88: 0 | W88: 0 | X88: 0 | Y88: 0 | Z88: － | AB88: 0 | AC88: 0 | AD88: 0 | AE88: 0
C89: 黒松内町 | D89: 宿泊客数 | E89: 28 | F89: 0 | G89: 46 | H89: 10 | I89: 15 | J89: 1 | K89: 0 | L89: 1 | M89: 0 | N89: 0 | O89: 0 | P89: 0 | Q89: 10 | R89: 1 | S89: 0 | T89: 10 | U89: 5 | V89: 0 | W89: 3 | X89: 130 | Y89: 10 | Z89: 1300 | AB89: -81 | AC89: 91 | AD89: 91 | AE89: -81
D90: 宿泊客延数 | E90: 69 | F90: 0 | G90: 461 | H90: 20 | I90: 90 | J90: 1 | K90: 0 | L90: 2 | M90: 0 | N90: 0 | O90: 0 | P90: 0 | Q90: 182 | R90: 2 | S90: 0 | T90: 13 | U90: 7 | V90: 0 | W90: 12 | X90: 859 | Y90: 10 | Z90: 8590 | AB90: -442 | AC90: 452 | AD90: 452 | AE90: -442
C91: 蘭越町 | D91: 宿泊客数 | E91: 13 | F91: 2 | G91: 10 | H91: 9 | I91: 13 | J91: 0 | K91: 6 | L91: 0 | M91: 15 | N91: 0 | O91: 2 | P91: 0 | Q91: 6 | R91: 5 | S91: 1 | T91: 21 | U91: 0 | V91: 14 | W91: 23 | X91: 140 | Y91: 0 | Z91: － | AB91: -97 | AC91: 97 | AD91: 97 | AE91: -97
D92: 宿泊客延数 | E92: 6 | F92: 4 | G92: 4 | H92: 2 | I92: 2 | J92: 0 | K92: 8 | L92: 0 | M92: 0 | N92: 0 | O92: 4 | P92: 0 | Q92: 0 | R92: 2 | S92: 0 | T92: 12 | U92: 0 | V92: 0 | W92: 2 | X92: 46 | Y92: 0 | Z92: － | AB92: -100 | AC92: 100 | AD92: 100 | AE92: -100
C93: ニセコ町 | D93: 宿泊客数 | E93: 3922 | F93: 6516 | G93: 4530 | H93: 3937 | I93: 1228 | J93: 0 | K93: 1468 | L93: 0 | M93: 0 | N93: 0 | O93: 194 | P93: 0 | Q93: 386 | R93: 98 | S93: 98 | T93: 2285 | U93: 0 | V93: 1552 | W93: 369 | X93: 26583 | Y93: 193 | Z93: 13773.57513 | AB93: -39633 | AC93: 39826 | AD93: 39826 | AE93: -39633
D94: 宿泊客延数 | E94: 5001.439024 | F94: 8242 | G94: 6069 | H94: 6448 | I94: 1747 | J94: 0 | K94: 1935 | L94: 0 | M94: 0 | N94: 0 | O94: 286 | P94: 0 | Q94: 573 | R94: 143 | S94: 143 | T94: 3452 | U94: 0 | V94: 2290 | W94: 506 | X94: 36835.43902 | Y94: 220 | Z94: 16743.38137 | AB94: -55389 | AC94: 55609 | AD94: 55609 | AE94: -55389
C95: 真狩村 | D95: 宿泊客数 | E95: 0 | F95: 7 | G95: 45 | H95: 3 | I95: 5 | J95: 0 | K95: 0 | L95: 0 | M95: 12 | N95: 0 | O95: 0 | P95: 0 | Q95: 0 | R95: 0 | S95: 0 | T95: 1 | U95: 0 | V95: 2 | W95: 0 | X95: 75 | Y95: 17 | Z95: 441.1764706 | AB95: -25 | AC95: 42 | AD95: 42 | AE95: -25
D96: 宿泊客延数 | E96: 0 | F96: 7 | G96: 48 | H96: 74 | I96: 5 | J96: 0 | K96: 0 | L96: 0 | M96: 366 | N96: 0 | O96: 0 | P96: 0 | Q96: 0 | R96: 0 | S96: 0 | T96: 2 | U96: 0 | V96: 2 | W96: 0 | X96: 504 | Y96: 387 | Z96: 130.2325581 | AB96: 305 | AC96: 82 | AD96: 82 | AE96: 305
C97: 留寿都村 | D97: 宿泊客数 | E97: 595 | F97: 8760 | G97: 6201 | H97: 1137 | I97: 372 | J97: 755 | K97: 216 | L97: 16 | M97: 71 | N97: 30 | O97: 133 | P97: 0 | Q97: 15 | R97: 8 | S97: 0 | T97: 513 | U97: 14 | V97: 19 | W97: 906 | X97: 19761 | Y97: 1344 | Z97: 1470.3125 | AB97: -19681 | AC97: 21025 | AD97: 21025 | AE97: -19681
D98: 宿泊客延数 | E98: 1033 | F98: 26771 | G98: 7805 | H98: 1440 | I98: 559 | J98: 769 | K98: 313 | L98: 40 | M98: 77 | N98: 80 | O98: 133 | P98: 0 | Q98: 31 | R98: 20 | S98: 0 | T98: 994 | U98: 28 | V98: 46 | W98: 1344 | X98: 41483 | Y98: 3339 | Z98: 1242.377957 | AB98: -34153 | AC98: 37492 | AD98: 37492 | AE98: -34153
C99: 喜茂別町 | D99: 宿泊客数 | E99: 0 | F99: 0 | G99: 0 | H99: 0 | I99: 0 | J99: 0 | K99: 0 | L99: 0 | M99: 0 | N99: 0 | O99: 0 | P99: 0 | Q99: 0 | R99: 0 | S99: 0 | T99: 0 | U99: 0 | V99: 0 | W99: 0 | X99: 0 | Y99: 0 | Z99: － | AB99: 0 | AC99: 0 | AD99: 0 | AE99: 0
D100: 宿泊客延数 | E100: 0 | F100: 0 | G100: 0 | H100: 0 | I100: 0 | J100: 0 | K100: 0 | L100: 0 | M100: 0 | N100: 0 | O100: 0 | P100: 0 | Q100: 0 | R100: 0 | S100: 0 | T100: 0 | U100: 0 | V100: 0 | W100: 0 | X100: 0 | Y100: 0 | Z100: － | AB100: 0 | AC100: 0 | AD100: 0 | AE100: 0
C101: 京極町 | D101: 宿泊客数 | E101: 0 | F101: 0 | G101: 0 | H101: 0 | I101: 0 | J101: 0 | K101: 0 | L101: 0 | M101: 0 | N101: 0 | O101: 0 | P101: 0 | Q101: 0 | R101: 0 | S101: 0 | T101: 0 | U101: 0 | V101: 0 | W101: 0 | X101: 0 | Y101: 0 | Z101: － | AB101: 0 | AC101: 0 | AD101: 0 | AE101: 0
D102: 宿泊客延数 | E102: 0 | F102: 0 | G102: 0 | H102: 0 | I102: 0 | J102: 0 | K102: 0 | L102: 0 | M102: 0 | N102: 0 | O102: 0 | P102: 0 | Q102: 0 | R102: 0 | S102: 0 | T102: 0 | U102: 0 | V102: 0 | W102: 0 | X102: 0 | Y102: 0 | Z102: － | AB102: 0 | AC102: 0 | AD102: 0 | AE102: 0
C103: 倶知安町 | D103: 宿泊客数 | E103: 580 | F103: 953 | G103: 2442 | H103: 4841 | I103: 2819 | J103: 179 | K103: 715 | L103: 31 | M103: 442 | N103: 458 | O103: 0 | P103: 0 | Q103: 163 | R103: 137 | S103: 13 | T103: 970 | U103: 189 | V103: 1265 | W103: 3107 | X103: 19304 | Y103: 1618 | Z103: 1193.077874 | AB103: -14864 | AC103: 16482 | AD103: 16482 | AE103: -14864
D104: 宿泊客延数 | E104: 2848 | F104: 3488 | G104: 9286 | H104: 21022 | I104: 13126 | J104: 778 | K104: 2821 | L104: 124 | M104: 1770 | N104: 1880 | O104: 0 | P104: 0 | Q104: 836 | R104: 494 | S104: 61 | T104: 4043 | U104: 929 | V104: 5610 | W104: 12793 | X104: 81909 | Y104: 4310 | Z104: 1900.440835 | AB104: -37528 | AC104: 41838 | AD104: 41838 | AE104: -37528
C105: 共和町 | D105: 宿泊客数 | E105: 0 | F105: 0 | G105: 0 | H105: 0 | I105: 0 | J105: 0 | K105: 0 | L105: 0 | M105: 0 | N105: 0 | O105: 0 | P105: 0 | Q105: 0 | R105: 0 | S105: 0 | T105: 0 | U105: 0 | V105: 0 | W105: 0 | X105: 0 | Y105: 0 | Z105: － | AB105: 0 | AC105: 0 | AD105: 0 | AE105: 0
D106: 宿泊客延数 | E106: 0 | F106: 0 | G106: 0 | H106: 0 | I106: 0 | J106: 0 | K106: 0 | L106: 0 | M106: 0 | N106: 0 | O106: 0 | P106: 0 | Q106: 0 | R106: 0 | S106: 0 | T106: 0 | U106: 0 | V106: 0 | W106: 0 | X106: 0 | Y106: 0 | Z106: － | AB106: 0 | AC106: 0 | AD106: 0 | AE106: 0
C107: 岩内町 | D107: 宿泊客数 | E107: 0 | F107: 0 | G107: 0 | H107: 0 | I107: 0 | J107: 0 | K107: 0 | L107: 0 | M107: 0 | N107: 0 | O107: 0 | P107: 0 | Q107: 0 | R107: 0 | S107: 0 | T107: 0 | U107: 0 | V107: 0 | W107: 67 | X107: 67 | Y107: 0 | Z107: － | AB107: -81 | AC107: 81 | AD107: 81 | AE107: -81
D108: 宿泊客延数 | E108: 0 | F108: 0 | G108: 0 | H108: 0 | I108: 0 | J108: 0 | K108: 0 | L108: 0 | M108: 0 | N108: 0 | O108: 0 | P108: 0 | Q108: 0 | R108: 0 | S108: 0 | T108: 0 | U108: 0 | V108: 0 | W108: 67 | X108: 67 | Y108: 0 | Z108: － | AB108: -102 | AC108: 102 | AD108: 102 | AE108: -102
C109: 泊村 | D109: 宿泊客数 | E109: 0 | F109: 0 | G109: 0 | H109: 0 | I109: 0 | J109: 0 | K109: 0 | L109: 0 | M109: 0 | N109: 0 | O109: 0 | P109: 0 | Q109: 0 | R109: 0 | S109: 0 | T109: 0 | U109: 0 | V109: 0 | W109: 0 | X109: 0 | Y109: 0 | Z109: － | AB109: 0 | AC109: 0 | AD109: 0 | AE109: 0
D110: 宿泊客延数 | E110: 0 | F110: 0 | G110: 0 | H110: 0 | I110: 0 | J110: 0 | K110: 0 | L110: 0 | M110: 0 | N110: 0 | O110: 0 | P110: 0 | Q110: 0 | R110: 0 | S110: 0 | T110: 0 | U110: 0 | V110: 0 | W110: 0 | X110: 0 | Y110: 0 | Z110: － | AB110: 0 | AC110: 0 | AD110: 0 | AE110: 0
C111: 神恵内村 | D111: 宿泊客数 | E111: 0 | F111: 77 | G111: 47 | H111: 40 | I111: 0 | J111: 0 | K111: 0 | L111: 0 | M111: 0 | N111: 0 | O111: 0 | P111: 0 | Q111: 11 | R111: 13 | S111: 4 | T111: 0 | U111: 0 | V111: 6 | W111: 15 | X111: 213 | Y111: 9 | Z111: 2366.666667 | AB111: 0 | AC111: 9 | AD111: 0 | AE111: 9
D112: 宿泊客延数 | E112: 0 | F112: 77 | G112: 47 | H112: 40 | I112: 0 | J112: 0 | K112: 0 | L112: 0 | M112: 0 | N112: 0 | O112: 0 | P112: 0 | Q112: 11 | R112: 13 | S112: 4 | T112: 0 | U112: 0 | V112: 6 | W112: 15 | X112: 213 | Y112: 9 | Z112: 2366.666667 | AB112: 0 | AC112: 9 | AD112: 0 | AE112: 9
C113: 積丹町 | D113: 宿泊客数 | E113: 2 | F113: 32 | G113: 100 | H113: 174 | I113: 27 | J113: 18 | K113: 45 | L113: 0 | M113: 0 | N113: 0 | O113: 0 | P113: 0 | Q113: 4 | R113: 15 | S113: 5 | T113: 16 | U113: 2 | V113: 0 | W113: 4 | X113: 444 | Y113: 4 | Z113: 11100 | AB113: -250 | AC113: 254 | AD113: 258 | AE113: -254
D114: 宿泊客延数 | E114: 2 | F114: 32 | G114: 100 | H114: 174 | I114: 27 | J114: 18 | K114: 45 | L114: 0 | M114: 0 | N114: 0 | O114: 0 | P114: 0 | Q114: 4 | R114: 15 | S114: 5 | T114: 16 | U114: 2 | V114: 0 | W114: 4 | X114: 444 | Y114: 4 | Z114: 11100 | AB114: -298 | AC114: 302 | AD114: 307 | AE114: -303
C115: 古平町 | D115: 宿泊客数 | E115: 0 | F115: 0 | G115: 0 | H115: 0 | I115: 0 | J115: 0 | K115: 0 | L115: 0 | M115: 0 | N115: 0 | O115: 0 | P115: 0 | Q115: 0 | R115: 0 | S115: 0 | T115: 0 | U115: 0 | V115: 0 | W115: 0 | X115: 0 | Y115: 0 | Z115: － | AB115: 0 | AC115: 0 | AD115: 0 | AE115: 0
D116: 宿泊客延数 | E116: 0 | F116: 0 | G116: 0 | H116: 0 | I116: 0 | J116: 0 | K116: 0 | L116: 0 | M116: 0 | N116: 0 | O116: 0 | P116: 0 | Q116: 0 | R116: 0 | S116: 0 | T116: 0 | U116: 0 | V116: 0 | W116: 0 | X116: 0 | Y116: 0 | Z116: － | AB116: 0 | AC116: 0 | AD116: 0 | AE116: 0
C117: 仁木町 | D117: 宿泊客数 | E117: 0 | F117: 0 | G117: 0 | H117: 0 | I117: 0 | J117: 0 | K117: 0 | L117: 0 | M117: 0 | N117: 0 | O117: 0 | P117: 0 | Q117: 0 | R117: 0 | S117: 2 | T117: 0 | U117: 0 | V117: 0 | W117: 2 | X117: 4 | Y117: 0 | Z117: － | AB117: -41 | AC117: 41 | AD117: 41 | AE117: -41
D118: 宿泊客延数 | E118: 0 | F118: 0 | G118: 0 | H118: 0 | I118: 0 | J118: 0 | K118: 0 | L118: 0 | M118: 0 | N118: 0 | O118: 0 | P118: 0 | Q118: 0 | R118: 0 | S118: 2 | T118: 0 | U118: 0 | V118: 0 | W118: 2 | X118: 4 | Y118: 0 | Z118: － | AB118: -51 | AC118: 51 | AD118: 51 | AE118: -51
C119: 余市町 | D119: 宿泊客数 | E119: 27 | F119: 176 | G119: 35 | H119: 19 | I119: 20 | J119: 0 | K119: 1 | L119: 0 | M119: 0 | N119: 0 | O119: 1 | P119: 11 | Q119: 5 | R119: 2 | S119: 0 | T119: 34 | U119: 8 | V119: 0 | W119: 15 | X119: 354 | Y119: 13 | Z119: 2723.076923 | AB119: -1251 | AC119: 1264 | AD119: 1264 | AE119: -1251
D120: 宿泊客延数 | E120: 45 | F120: 391 | G120: 39 | H120: 21 | I120: 24 | J120: 0 | K120: 1 | L120: 0 | M120: 0 | N120: 0 | O120: 2 | P120: 144 | Q120: 9 | R120: 2 | S120: 0 | T120: 67 | U120: 18 | V120: 0 | W120: 66 | X120: 829 | Y120: 21 | Z120: 3947.619048 | AB120: -1656 | AC120: 1677 | AD120: 1677 | AE120: -1656
C121: 赤井川村 | D121: 宿泊客数 | E121: 0 | F121: 0 | G121: 0 | H121: 0 | I121: 0 | J121: 0 | K121: 0 | L121: 0 | M121: 0 | N121: 0 | O121: 0 | P121: 0 | Q121: 0 | R121: 0 | S121: 0 | T121: 0 | U121: 0 | V121: 0 | W121: 0 | X121: 0 | Y121: 0 | Z121: － | AB121: -28768 | AC121: 28768 | AD121: 28768 | AE121: -28768
D122: 宿泊客延数 | E122: 0 | F122: 0 | G122: 0 | H122: 0 | I122: 0 | J122: 0 | K122: 0 | L122: 0 | M122: 0 | N122: 0 | O122: 0 | P122: 0 | Q122: 0 | R122: 0 | S122: 0 | T122: 0 | U122: 0 | V122: 0 | W122: 0 | X122: 0 | Y122: 0 | Z122: － | AB122: -33421 | AC122: 33421 | AD122: 33421 | AE122: -33421
B123: 胆振総合振興局計 | D123: 宿泊客数 | E123: =E125+E127+E134+E136+E138+E140+E142+E144+E146+E148+E150 -> 11947 | F123: =F125+F127+F134+F136+F138+F140+F142+F144+F146+F148+F150 -> 104193 | G123: 115614 | H123: 28975 | I123: 15917 | J123: 4766 | K123: 4129 | L123: 48 | M123: 1345 | N123: 748 | O123: 525 | P123: 116 | Q123: 955 | R123: 533 | S123: 749 | T123: 7073 | U123: 1078 | V123: 2410 | W123: 40821 | X123: =X125+X127+X134+X136+X138+X140+X142+X144+X146+X148+X150 -> 341942 | Y123: =Y125+Y127+Y134+Y136+Y138+Y140+Y142+Y144+Y146+Y148+Y150 -> 3240 | Z123: 10553.76543 | AB123: -468276 | AC123: 471516 | AD123: 471478 | AE123: -468238
D124: 宿泊客延数 | E124: =E126+E128+E135+E137+E139+E141+E143+E145+E147+E149+E151 -> 13482 | F124: 107969 | G124: 119546 | H124: 30510 | I124: 17053 | J124: 5000 | K124: 4335 | L124: 48 | M124: 1477 | N124: 813 | O124: 597 | P124: 118 | Q124: 1018 | R124: 607 | S124: 823 | T124: 7765 | U124: 1142 | V124: 2658 | W124: 41269 | X124: =X126+X128+X135+X137+X139+X141+X143+X145+X147+X149+X151 -> 356230 | Y124: =Y126+Y128+Y135+Y137+Y139+Y141+Y143+Y145+Y147+Y149+Y151 -> 3645 | Z124: 9773.113855 | AB124: -484117 | AC124: 487762 | AD124: 487717 | AE124: -484072
C125: 室蘭市 | D125: 宿泊客数 | E125: 1569 | F125: 906 | G125: 1299 | H125: 183 | I125: 262 | J125: 144 | K125: 123 | L125: 1 | M125: 148 | N125: 99 | O125: 63 | P125: 1 | Q125: 24 | R125: 13 | S125: 30 | T125: 216 | U125: 31 | V125: 97 | W125: 494 | X125: 5703 | Y125: 196 | Z125: 2909.693878 | AB125: -4223 | AC125: 4419 | AD125: 4419 | AE125: -4223
D126: 宿泊客延数 | E126: 1957 | F126: 1194 | G126: 1543 | H126: 258 | I126: 349 | J126: 224 | K126: 155 | L126: 1 | M126: 248 | N126: 130 | O126: 119 | P126: 1 | Q126: 33 | R126: 15 | S126: 40 | T126: 288 | U126: 41 | V126: 128 | W126: 515 | X126: 7239 | Y126: 204 | Z126: 3548.529412 | AB126: -4824 | AC126: 5028 | AD126: 5028 | AE126: -4824
C127: 苫小牧市 | D127: 宿泊客数 | E127: 800 | F127: 845 | G127: 2025 | H127: 393 | I127: 183 | J127: 115 | K127: 76 | L127: 2 | M127: 8 | N127: 77 | O127: 14 | P127: 10 | Q127: 90 | R127: 40 | S127: 106 | T127: 129 | U127: 17 | V127: 64 | W127: 319 | X127: 5313 | Y127: 229 | Z127: 2320.087336 | AB127: -15566 | AC127: 15795 | AD127: 15795 | AE127: -15566
D128: 宿泊客延数 | E128: 1286 | F128: 1914 | G128: 3263 | H128: 600 | I128: 286 | J128: 137 | K128: 118 | L128: 2 | M128: 14 | N128: 92 | O128: 26 | P128: 10 | Q128: 108 | R128: 61 | S128: 117 | T128: 255 | U128: 29 | V128: 80 | W128: 381 | X128: 8779 | Y128: 562 | Z128: 1562.099644 | AB128: -15907 | AC128: 16469 | AD128: 16469 | AE128: -15907
AB129: 0 | AE129: 0
AB130: 0 | AE130: 0
A131: =A1 -> ４ 令和５年度（2023年度）上期 市町村別・国別訪日外国人宿泊者数 | AB131: 0 | AE131: 0
Z132: =Z67 -> 単位：宿泊客数→人、宿泊客延数→人泊、対前年比→％ | AB132: 0 | AE132: 0
A133: 圏 域 | B133: 振興局 | C133: 市町村名 | D133: 区 分 | E133: 中国 | F133: 韓国 | G133: 台湾 | H133: 香港 | I133: シンガポール | J133: マレーシア | K133: タイ | L133: インド | M133: インドネシア | N133: フィリピン | O133: ベトナム | P133: ロシア | Q133: イギリス | R133: フランス | S133: ドイツ | T133: アメリカ | U133: カナダ | V133: オーストラリア | W133: その他 | X133: 計 | Y133: =Y68 -> R4年度上期 | Z133: =Z68 -> 対前年比 | AB133: =Y133-AC133 ->  | AC133: 上 期 計 | AD133: 計 | AE133: =Y133-AD133 -> 
A134: 道央 | B134: 胆振 | C134: 登別市 | D134: 宿泊客数 | E134: 5012 | F134: 59810 | G134: 49354 | H134: 13411 | I134: 7502 | J134: 3016 | K134: 1953 | L134: 45 | M134: 646 | N134: 287 | O134: 355 | P134: 37 | Q134: 568 | R134: 352 | S134: 353 | T134: 5321 | U134: 739 | V134: 1588 | W134: 4593 | X134: 154942 | Y134: 1365 | Z134: =IF(Y134=0,"－",X134/Y134*100) -> 11351.06227 | AB134: -228063 | AC134: 229428 | AD134: 229428 | AE134: -228063
D135: 宿泊客延数 | E135: 5071 | F135: 61100 | G135: 50432 | H135: 13804 | I135: 7657 | J135: 3069 | K135: 1967 | L135: 45 | M135: 655 | N135: 287 | O135: 355 | P135: 37 | Q135: 571 | R135: 372 | S135: 362 | T135: 5540 | U135: 745 | V135: 1663 | W135: 4648 | X135: 158380 | Y135: 1376 | Z135: 11510.17442 | AB135: -233228 | AC135: 234604 | AD135: 234604 | AE135: -233228
C136: 伊達市 | D136: 宿泊客数 | E136: 102 | F136: 4937 | G136: 3653 | H136: 4974 | I136: 95 | J136: 0 | K136: 4 | L136: 0 | M136: 0 | N136: 0 | O136: 0 | P136: 0 | Q136: 0 | R136: 0 | S136: 0 | T136: 1 | U136: 2 | V136: 0 | W136: 6 | X136: 13774 | Y136: 311 | Z136: 4428.938907 | AB136: -19393 | AC136: 19704 | AD136: 19704 | AE136: -19393
D137: 宿泊客延数 | E137: 102 | F137: 4937 | G137: 3653 | H137: 4974 | I137: 95 | J137: 0 | K137: 4 | L137: 0 | M137: 0 | N137: 0 | O137: 0 | P137: 0 | Q137: 0 | R137: 0 | S137: 0 | T137: 1 | U137: 4 | V137: 0 | W137: 30 | X137: 13800 | Y137: 321 | Z137: 4299.065421 | AB137: -21128 | AC137: 21449 | AD137: 21449 | AE137: -21128
C138: 豊浦町 | D138: 宿泊客数 | E138: 7 | F138: 26 | G138: 75 | H138: 31 | I138: 35 | J138: 0 | K138: 3 | L138: 0 | M138: 0 | N138: 2 | O138: 0 | P138: 0 | Q138: 0 | R138: 4 | S138: 0 | T138: 10 | U138: 2 | V138: 1 | W138: 3 | X138: 199 | Y138: 3 | Z138: 6633.333333 | AB138: -38 | AC138: 41 | AD138: 30 | AE138: -27
D139: 宿泊客延数 | E139: 9 | F139: 26 | G139: 84 | H139: 38 | I139: 41 | J139: 0 | K139: 3 | L139: 0 | M139: 0 | N139: 4 | O139: 0 | P139: 0 | Q139: 0 | R139: 6 | S139: 0 | T139: 10 | U139: 2 | V139: 1 | W139: 3 | X139: 227 | Y139: 3 | Z139: 7566.666667 | AB139: -38 | AC139: 41 | AD139: 30 | AE139: -27
C140: 壮瞥町 | D140: 宿泊客数 | E140: 323 | F140: 14178 | G140: 10993 | H140: 931 | I140: 317 | J140: 295 | K140: 288 | L140: 0 | M140: 98 | N140: 106 | O140: 0 | P140: 0 | Q140: 8 | R140: 13 | S140: 12 | T140: 351 | U140: 14 | V140: 28 | W140: 8390 | X140: 36345 | Y140: 16 | Z140: 227156.25 | AB140: -54090 | AC140: 54106 | AD140: 54106 | AE140: -54090
D141: 宿泊客延数 | E141: 429 | F141: 14235 | G141: 11099 | H141: 1049 | I141: 348 | J141: 295 | K141: 288 | L141: 0 | M141: 98 | N141: 106 | O141: 0 | P141: 0 | Q141: 8 | R141: 13 | S141: 12 | T141: 425 | U141: 14 | V141: 34 | W141: 8434 | X141: 36887 | Y141: 16 | Z141: 230543.75 | AB141: -55665 | AC141: 55681 | AD141: 55681 | AE141: -55665
C142: 白老町 | D142: 宿泊客数 | E142: 108 | F142: 180 | G142: 138 | H142: 92 | I142: 176 | J142: 35 | K142: 102 | L142: 0 | M142: 58 | N142: 0 | O142: 0 | P142: 0 | Q142: 2 | R142: 3 | S142: 20 | T142: 157 | U142: 6 | V142: 75 | W142: 4533 | X142: 5685 | Y142: 112 | Z142: 5075.892857 | AB142: -4508 | AC142: 4620 | AD142: 4620 | AE142: -4508
D143: 宿泊客延数 | E143: 108 | F143: 180 | G143: 138 | H143: 92 | I143: 176 | J143: 35 | K143: 102 | L143: 0 | M143: 58 | N143: 0 | O143: 0 | P143: 0 | Q143: 2 | R143: 3 | S143: 20 | T143: 157 | U143: 6 | V143: 75 | W143: 4533 | X143: 5685 | Y143: 112 | Z143: 5075.892857 | AB143: -4508 | AC143: 4620 | AD143: 4620 | AE143: -4508
C144: 厚真町 | D144: 宿泊客数 | E144: 0 | F144: 0 | G144: 0 | H144: 0 | I144: 0 | J144: 0 | K144: 0 | L144: 0 | M144: 0 | N144: 0 | O144: 0 | P144: 0 | Q144: 0 | R144: 0 | S144: 0 | T144: 0 | U144: 0 | V144: 0 | W144: 0 | X144: 0 | Y144: 0 | Z144: － | AB144: 0 | AC144: 0 | AD144: 0 | AE144: 0
D145: 宿泊客延数 | E145: 0 | F145: 0 | G145: 0 | H145: 0 | I145: 0 | J145: 0 | K145: 0 | L145: 0 | M145: 0 | N145: 0 | O145: 0 | P145: 0 | Q145: 0 | R145: 0 | S145: 0 | T145: 0 | U145: 0 | V145: 0 | W145: 0 | X145: 0 | Y145: 0 | Z145: － | AB145: 0 | AC145: 0 | AD145: 0 | AE145: 0
C146: 洞爺湖町 | D146: 宿泊客数 | E146: 4024 | F146: 23306 | G146: 48077 | H146: 8955 | I146: 7347 | J146: 1160 | K146: 1580 | L146: 0 | M146: 387 | N146: 177 | O146: 89 | P146: 68 | Q146: 262 | R146: 108 | S146: 226 | T146: 888 | U146: 267 | V146: 556 | W146: 22481 | X146: 119958 | Y146: 1008 | Z146: 11900.59524 | AB146: -142359 | AC146: 143367 | AD146: 143340 | AE146: -142332
D147: 宿泊客延数 | E147: 4518 | F147: 24378 | G147: 49334 | H147: 9690 | I147: 8101 | J147: 1239 | K147: 1698 | L147: 0 | M147: 404 | N147: 194 | O147: 93 | P147: 70 | Q147: 295 | R147: 137 | S147: 270 | T147: 1089 | U147: 301 | V147: 676 | W147: 22723 | X147: 125210 | Y147: 1051 | Z147: 11913.41579 | AB147: -148777 | AC147: 149828 | AD147: 149794 | AE147: -148743
C148: 安平町 | D148: 宿泊客数 | E148: 2 | F148: 0 | G148: 0 | H148: 0 | I148: 0 | J148: 0 | K148: 0 | L148: 0 | M148: 0 | N148: 0 | O148: 4 | P148: 0 | Q148: 1 | R148: 0 | S148: 0 | T148: 0 | U148: 0 | V148: 0 | W148: 0 | X148: 7 | Y148: 0 | Z148: － | AB148: -15 | AC148: 15 | AD148: 15 | AE148: -15
D149: 宿泊客延数 | E149: 2 | F149: 0 | G149: 0 | H149: 0 | I149: 0 | J149: 0 | K149: 0 | L149: 0 | M149: 0 | N149: 0 | O149: 4 | P149: 0 | Q149: 1 | R149: 0 | S149: 0 | T149: 0 | U149: 0 | V149: 0 | W149: 0 | X149: 7 | Y149: 0 | Z149: － | AB149: -15 | AC149: 15 | AD149: 15 | AE149: -15
C150: むかわ町 | D150: 宿泊客数 | E150: 0 | F150: 5 | G150: 0 | H150: 5 | I150: 0 | J150: 1 | K150: 0 | L150: 0 | M150: 0 | N150: 0 | O150: 0 | P150: 0 | Q150: 0 | R150: 0 | S150: 2 | T150: 0 | U150: 0 | V150: 1 | W150: 2 | X150: 16 | Y150: 0 | Z150: － | AB150: -21 | AC150: 21 | AD150: 21 | AE150: -21
D151: 宿泊客延数 | E151: 0 | F151: 5 | G151: 0 | H151: 5 | I151: 0 | J151: 1 | K151: 0 | L151: 0 | M151: 0 | N151: 0 | O151: 0 | P151: 0 | Q151: 0 | R151: 0 | S151: 2 | T151: 0 | U151: 0 | V151: 1 | W151: 2 | X151: 16 | Y151: 0 | Z151: － | AB151: -27 | AC151: 27 | AD151: 27 | AE151: -27
B152: 日高振興局計 | D152: 宿泊客数 | E152: =E154+E156+E158+E160+E162+E164+E166 -> 206 | F152: =F154+F156+F158+F160+F162+F164+F166 -> 102 | G152: 105 | H152: 82 | I152: 32 | J152: 7 | K152: 8 | L152: 12 | M152: 4 | N152: 1 | O152: 10 | P152: 1 | Q152: 10 | R152: 16 | S152: 2 | T152: 33 | U152: 6 | V152: 21 | W152: 91 | X152: =X154+X156+X158+X160+X162+X164+X166 -> 749 | Y152: =Y154+Y156+Y158+Y160+Y162+Y164+Y166 -> 61 | Z152: 1227.868852 | AB152: -702 | AC152: 763 | AD152: 765 | AE152: -704
D153: 宿泊客延数 | E153: =E155+E157+E159+E161+E163+E165+E167 -> 524 | F153: 162 | G153: 124 | H153: 92 | I153: 32 | J153: 9 | K153: 8 | L153: 19 | M153: 7 | N153: 1 | O153: 10 | P153: 1 | Q153: 14 | R153: 16 | S153: 2 | T153: 40 | U153: 6 | V153: 31 | W153: 143 | X153: =X155+X157+X159+X161+X163+X165+X167 -> 1241 | Y153: =Y155+Y157+Y159+Y161+Y163+Y165+Y167 -> 100 | Z153: 1241 | AB153: -1040 | AC153: 1140 | AD153: 1142 | AE153: -1042
C154: 日高町 | D154: 宿泊客数 | E154: 49 | F154: 3 | G154: 5 | H154: 2 | I154: 0 | J154: 1 | K154: 0 | L154: 5 | M154: 3 | N154: 0 | O154: 0 | P154: 0 | Q154: 4 | R154: 0 | S154: 0 | T154: 5 | U154: 4 | V154: 1 | W154: 41 | X154: 123 | Y154: 0 | Z154: － | AB154: -81 | AC154: 81 | AD154: 81 | AE154: -81
D155: 宿泊客延数 | E155: 331 | F155: 3 | G155: 5 | H155: 8 | I155: 0 | J155: 2 | K155: 0 | L155: 10 | M155: 6 | N155: 0 | O155: 0 | P155: 0 | Q155: 8 | R155: 0 | S155: 0 | T155: 5 | U155: 4 | V155: 2 | W155: 82 | X155: 466 | Y155: 0 | Z155: － | AB155: -229 | AC155: 229 | AD155: 229 | AE155: -229
C156: 平取町 | D156: 宿泊客数 | E156: 0 | F156: 0 | G156: 0 | H156: 0 | I156: 0 | J156: 0 | K156: 0 | L156: 0 | M156: 0 | N156: 0 | O156: 0 | P156: 0 | Q156: 0 | R156: 0 | S156: 0 | T156: 0 | U156: 0 | V156: 0 | W156: 0 | X156: 0 | Y156: 0 | Z156: － | AB156: 0 | AC156: 0 | AD156: 0 | AE156: 0
D157: 宿泊客延数 | E157: 0 | F157: 0 | G157: 0 | H157: 0 | I157: 0 | J157: 0 | K157: 0 | L157: 0 | M157: 0 | N157: 0 | O157: 0 | P157: 0 | Q157: 0 | R157: 0 | S157: 0 | T157: 0 | U157: 0 | V157: 0 | W157: 0 | X157: 0 | Y157: 0 | Z157: － | AB157: 0 | AC157: 0 | AD157: 0 | AE157: 0
C158: 新冠町 | D158: 宿泊客数 | E158: 0 | F158: 38 | G158: 21 | H158: 0 | I158: 0 | J158: 0 | K158: 0 | L158: 0 | M158: 0 | N158: 0 | O158: 0 | P158: 0 | Q158: 0 | R158: 0 | S158: 0 | T158: 1 | U158: 0 | V158: 0 | W158: 0 | X158: 60 | Y158: 0 | Z158: － | AB158: -69 | AC158: 69 | AD158: 69 | AE158: -69
D159: 宿泊客延数 | E159: 0 | F159: 76 | G159: 40 | H159: 0 | I159: 0 | J159: 0 | K159: 0 | L159: 0 | M159: 0 | N159: 0 | O159: 0 | P159: 0 | Q159: 0 | R159: 0 | S159: 0 | T159: 1 | U159: 0 | V159: 0 | W159: 0 | X159: 117 | Y159: 0 | Z159: － | AB159: -71 | AC159: 71 | AD159: 71 | AE159: -71
C160: 浦河町 | D160: 宿泊客数 | E160: 73 | F160: 37 | G160: 51 | H160: 1 | I160: 14 | J160: 3 | K160: 2 | L160: 6 | M160: 1 | N160: 1 | O160: 7 | P160: 1 | Q160: 3 | R160: 13 | S160: 0 | T160: 17 | U160: 2 | V160: 13 | W160: 16 | X160: 261 | Y160: 23 | Z160: 1134.782609 | AB160: -160 | AC160: 183 | AD160: 185 | AE160: -162
D161: 宿泊客延数 | E161: 98 | F161: 59 | G161: 51 | H161: 1 | I161: 14 | J161: 4 | K161: 2 | L161: 8 | M161: 1 | N161: 1 | O161: 7 | P161: 1 | Q161: 3 | R161: 13 | S161: 0 | T161: 20 | U161: 2 | V161: 22 | W161: 27 | X161: 334 | Y161: 41 | Z161: 814.6341463 | AB161: -215 | AC161: 256 | AD161: 258 | AE161: -217
C162: 様似町 | D162: 宿泊客数 | E162: 25 | F162: 13 | G162: 10 | H162: 4 | I162: 0 | J162: 0 | K162: 0 | L162: 0 | M162: 0 | N162: 0 | O162: 0 | P162: 0 | Q162: 0 | R162: 0 | S162: 0 | T162: 2 | U162: 0 | V162: 0 | W162: 0 | X162: 54 | Y162: 0 | Z162: － | AB162: -7 | AC162: 7 | AD162: 7 | AE162: -7
D163: 宿泊客延数 | E163: 36 | F163: 13 | G163: 10 | H163: 8 | I163: 0 | J163: 0 | K163: 0 | L163: 0 | M163: 0 | N163: 0 | O163: 0 | P163: 0 | Q163: 0 | R163: 0 | S163: 0 | T163: 6 | U163: 0 | V163: 0 | W163: 0 | X163: 73 | Y163: 0 | Z163: － | AB163: -34 | AC163: 34 | AD163: 34 | AE163: -34
C164: えりも町 | D164: 宿泊客数 | E164: 0 | F164: 0 | G164: 4 | H164: 0 | I164: 0 | J164: 0 | K164: 0 | L164: 0 | M164: 0 | N164: 0 | O164: 0 | P164: 0 | Q164: 1 | R164: 0 | S164: 0 | T164: 0 | U164: 0 | V164: 0 | W164: 0 | X164: 5 | Y164: 0 | Z164: － | AB164: -6 | AC164: 6 | AD164: 6 | AE164: -6
D165: 宿泊客延数 | E165: 0 | F165: 0 | G165: 4 | H165: 0 | I165: 0 | J165: 0 | K165: 0 | L165: 0 | M165: 0 | N165: 0 | O165: 0 | P165: 0 | Q165: 1 | R165: 0 | S165: 0 | T165: 0 | U165: 0 | V165: 0 | W165: 0 | X165: 5 | Y165: 0 | Z165: － | AB165: -9 | AC165: 9 | AD165: 9 | AE165: -9
C166: 新ひだか町 | D166: 宿泊客数 | E166: 59 | F166: 11 | G166: 14 | H166: 75 | I166: 18 | J166: 3 | K166: 6 | L166: 1 | M166: 0 | N166: 0 | O166: 3 | P166: 0 | Q166: 2 | R166: 3 | S166: 2 | T166: 8 | U166: 0 | V166: 7 | W166: 34 | X166: 246 | Y166: 38 | Z166: 647.3684211 | AB166: -379 | AC166: 417 | AD166: 417 | AE166: -379
D167: 宿泊客延数 | E167: 59 | F167: 11 | G167: 14 | H167: 75 | I167: 18 | J167: 3 | K167: 6 | L167: 1 | M167: 0 | N167: 0 | O167: 3 | P167: 0 | Q167: 2 | R167: 3 | S167: 2 | T167: 8 | U167: 0 | V167: 7 | W167: 34 | X167: 246 | Y167: 59 | Z167: 416.9491525 | AB167: -482 | AC167: 541 | AD167: 541 | AE167: -482
A168: 道南圏域計 | D168: 宿泊客数 | E168: =E170+E199 -> 8291 | F168: =F170+F199 -> 10305 | G168: 87432 | H168: 13423 | I168: 11308 | J168: 1896 | K168: 4782 | L168: 163 | M168: 1459 | N168: 1271 | O168: 323 | P168: 78 | Q168: 1101 | R168: 850 | S168: 1247 | T168: 7510 | U168: 1257 | V168: 2939 | W168: 7030 | X168: =X170+X199 -> 162665 | Y168: =Y170+Y199 -> 4185 | Z168: 3886.857826 | AB168: -229790 | AC168: 233975 | AD168: 233976 | AE168: -229791
D169: 宿泊客延数 | E169: =E171+E200 -> 13341 | F169: 14336 | G169: 95204 | H169: 17473 | I169: 14886 | J169: 2973 | K169: 7320 | L169: 209 | M169: 2053 | N169: 2276 | O169: 658 | P169: 92 | Q169: 2399 | R169: 1631 | S169: 1952 | T169: 12923 | U169: 2223 | V169: 5268 | W169: 12327 | X169: =X171+X200 -> 209544 | Y169: =Y171+Y200 -> 6572 | Z169: 3188.435788 | AB169: -236547 | AC169: 243119 | AD169: 243127 | AE169: -236555
B170: 渡島総合振興局計 | D170: 宿泊客数 | E170: =E172+E174+E176+E178+E180+E182+E184+E186+E188+E190+E192 -> 8253 | F170: =F172+F174+F176+F178+F180+F182+F184+F186+F188+F190+F192 -> 10285 | G170: 87377 | H170: 13402 | I170: 11301 | J170: 1896 | K170: 4780 | L170: 163 | M170: 1459 | N170: 1270 | O170: 314 | P170: 78 | Q170: 1099 | R170: 846 | S170: 1246 | T170: 7481 | U170: 1257 | V170: 2933 | W170: 6922 | X170: =X172+X174+X176+X178+X180+X182+X184+X186+X188+X190+X192 -> 162362 | Y170: =Y172+Y174+Y176+Y178+Y180+Y182+Y184+Y186+Y188+Y190+Y192 -> 4153 | Z170: 3909.511197 | AB170: -229602 | AC170: 233755 | AD170: 233759 | AE170: -229606
D171: 宿泊客延数 | E171: =E173+E175+E177+E179+E181+E183+E185+E187+E189+E191+E193 -> 13147 | F171: 14258 | G171: 95131 | H171: 17447 | I171: 14879 | J171: 2973 | K171: 7318 | L171: 209 | M171: 2053 | N171: 2274 | O171: 473 | P171: 92 | Q171: 2394 | R171: 1607 | S171: 1949 | T171: 12878 | U171: 2223 | V171: 5262 | W171: 12130 | X171: =X173+X175+X177+X179+X181+X183+X185+X187+X189+X191+X193 -> 208697 | Y171: =Y173+Y175+Y177+Y179+Y181+Y183+Y185+Y187+Y189+Y191+Y193 -> 6494 | Z171: 3213.68956 | AB171: -236324 | AC171: 242818 | AD171: 242826 | AE171: -236332
C172: 函館市 | D172: 宿泊客数 | E172: 7846 | F172: 9641 | G172: 77917 | H172: 12649 | I172: 10857 | J172: 1708 | K172: 4576 | L172: 135 | M172: 1305 | N172: 1234 | O172: 206 | P172: 64 | Q172: 996 | R172: 778 | S172: 1123 | T172: 6838 | U172: 1181 | V172: 2600 | W172: 5910 | X172: 147564 | Y172: 3916 | Z172: 3768.232891 | AB172: -196149 | AC172: 200065 | AD172: 200065 | AE172: -196149
D173: 宿泊客延数 | E173: 12344 | F173: 13441 | G173: 82474 | H173: 16693 | I173: 14081 | J173: 2648 | K173: 6934 | L173: 155 | M173: 1728 | N173: 2208 | O173: 247 | P173: 77 | Q173: 2227 | R173: 1486 | S173: 1744 | T173: 11808 | U173: 2054 | V173: 4784 | W173: 10044 | X173: 187177 | Y173: 6002 | Z173: 3118.577141 | AB173: -202903 | AC173: 208905 | AD173: 208909 | AE173: -202907
C174: 北斗市 | D174: 宿泊客数 | E174: 261 | F174: 114 | G174: 2113 | H174: 0 | I174: 233 | J174: 91 | K174: 119 | L174: 16 | M174: 112 | N174: 19 | O174: 80 | P174: 2 | Q174: 42 | R174: 29 | S174: 45 | T174: 246 | U174: 43 | V174: 76 | W174: 701 | X174: 4342 | Y174: 185 | Z174: 2347.027027 | AB174: -8383 | AC174: 8568 | AD174: 8568 | AE174: -8383
D175: 宿泊客延数 | E175: 657 | F175: 284 | G175: 5285 | H175: 0 | I175: 586 | J175: 228 | K175: 299 | L175: 42 | M175: 283 | N175: 46 | O175: 198 | P175: 3 | Q175: 106 | R175: 72 | S175: 115 | T175: 617 | U175: 111 | V175: 194 | W175: 1753 | X175: 10879 | Y175: 440 | Z175: 2472.5 | AB175: -8128 | AC175: 8568 | AD175: 8568 | AE175: -8128
C176: 松前町 | D176: 宿泊客数 | E176: 2 | F176: 3 | G176: 14 | H176: 13 | I176: 4 | J176: 4 | K176: 2 | L176: 0 | M176: 0 | N176: 0 | O176: 0 | P176: 0 | Q176: 2 | R176: 0 | S176: 1 | T176: 14 | U176: 0 | V176: 1 | W176: 0 | X176: 60 | Y176: 9 | Z176: 666.6666667 | AB176: -31 | AC176: 40 | AD176: 40 | AE176: -31
D177: 宿泊客延数 | E177: 2 | F177: 3 | G177: 14 | H177: 13 | I177: 4 | J177: 4 | K177: 2 | L177: 0 | M177: 0 | N177: 0 | O177: 0 | P177: 0 | Q177: 2 | R177: 0 | S177: 1 | T177: 14 | U177: 0 | V177: 1 | W177: 0 | X177: 60 | Y177: 9 | Z177: 666.6666667 | AB177: -31 | AC177: 40 | AD177: 40 | AE177: -31
C178: 福島町 | D178: 宿泊客数 | E178: 0 | F178: 0 | G178: 0 | H178: 0 | I178: 0 | J178: 0 | K178: 0 | L178: 0 | M178: 0 | N178: 0 | O178: 0 | P178: 0 | Q178: 0 | R178: 0 | S178: 0 | T178: 0 | U178: 0 | V178: 0 | W178: 0 | X178: 0 | Y178: 0 | Z178: － | AB178: 0 | AC178: 0 | AD178: 0 | AE178: 0
D179: 宿泊客延数 | E179: 0 | F179: 0 | G179: 0 | H179: 0 | I179: 0 | J179: 0 | K179: 0 | L179: 0 | M179: 0 | N179: 0 | O179: 0 | P179: 0 | Q179: 0 | R179: 0 | S179: 0 | T179: 0 | U179: 0 | V179: 0 | W179: 0 | X179: 0 | Y179: 0 | Z179: － | AB179: 0 | AC179: 0 | AD179: 0 | AE179: 0
C180: 知内町 | D180: 宿泊客数 | E180: 6 | F180: 0 | G180: 0 | H180: 0 | I180: 0 | J180: 0 | K180: 0 | L180: 0 | M180: 0 | N180: 0 | O180: 0 | P180: 0 | Q180: 0 | R180: 0 | S180: 0 | T180: 5 | U180: 0 | V180: 0 | W180: 0 | X180: 11 | Y180: 0 | Z180: － | AB180: 0 | AC180: 0 | AD180: 4 | AE180: -4
D181: 宿泊客延数 | E181: 6 | F181: 0 | G181: 0 | H181: 0 | I181: 0 | J181: 0 | K181: 0 | L181: 0 | M181: 0 | N181: 0 | O181: 0 | P181: 0 | Q181: 0 | R181: 0 | S181: 0 | T181: 5 | U181: 0 | V181: 0 | W181: 0 | X181: 11 | Y181: 0 | Z181: － | AB181: 0 | AC181: 0 | AD181: 4 | AE181: -4
C182: 木古内町 | D182: 宿泊客数 | E182: 0 | F182: 0 | G182: 0 | H182: 0 | I182: 0 | J182: 0 | K182: 0 | L182: 0 | M182: 0 | N182: 0 | O182: 0 | P182: 0 | Q182: 0 | R182: 0 | S182: 0 | T182: 0 | U182: 0 | V182: 0 | W182: 0 | X182: 0 | Y182: 0 | Z182: － | AB182: 0 | AC182: 0 | AD182: 0 | AE182: 0
D183: 宿泊客延数 | E183: 0 | F183: 0 | G183: 0 | H183: 0 | I183: 0 | J183: 0 | K183: 0 | L183: 0 | M183: 0 | N183: 0 | O183: 0 | P183: 0 | Q183: 0 | R183: 0 | S183: 0 | T183: 0 | U183: 0 | V183: 0 | W183: 0 | X183: 0 | Y183: 0 | Z183: － | AB183: 0 | AC183: 0 | AD183: 0 | AE183: 0
C184: 七飯町 | D184: 宿泊客数 | E184: 129 | F184: 493 | G184: 6966 | H184: 661 | I184: 157 | J184: 53 | K184: 48 | L184: 8 | M184: 41 | N184: 16 | O184: 0 | P184: 0 | Q184: 54 | R184: 32 | S184: 55 | T184: 346 | U184: 27 | V184: 239 | W184: 232 | X184: 9557 | Y184: 34 | Z184: 28108.82353 | AB184: -15768 | AC184: 15802 | AD184: 15802 | AE184: -15768
D185: 宿泊客延数 | E185: 129 | F185: 493 | G185: 6966 | H185: 661 | I185: 157 | J185: 53 | K185: 48 | L185: 8 | M185: 41 | N185: 16 | O185: 0 | P185: 0 | Q185: 54 | R185: 32 | S185: 55 | T185: 346 | U185: 27 | V185: 239 | W185: 232 | X185: 9557 | Y185: 34 | Z185: 28108.82353 | AB185: -15829 | AC185: 15863 | AD185: 15863 | AE185: -15829
C186: 鹿部町 | D186: 宿泊客数 | E186: 0 | F186: 2 | G186: 0 | H186: 0 | I186: 0 | J186: 0 | K186: 0 | L186: 0 | M186: 0 | N186: 0 | O186: 0 | P186: 0 | Q186: 0 | R186: 0 | S186: 0 | T186: 0 | U186: 0 | V186: 0 | W186: 0 | X186: 2 | Y186: 0 | Z186: － | AB186: -4783 | AC186: 4783 | AD186: 4783 | AE186: -4783
D187: 宿泊客延数 | E187: 0 | F187: 2 | G187: 0 | H187: 0 | I187: 0 | J187: 0 | K187: 0 | L187: 0 | M187: 0 | N187: 0 | O187: 0 | P187: 0 | Q187: 0 | R187: 0 | S187: 0 | T187: 0 | U187: 0 | V187: 0 | W187: 0 | X187: 2 | Y187: 0 | Z187: － | AB187: -4941 | AC187: 4941 | AD187: 4941 | AE187: -4941
C188: 森町 | D188: 宿泊客数 | E188: 0 | F188: 12 | G188: 293 | H188: 57 | I188: 45 | J188: 34 | K188: 35 | L188: 0 | M188: 0 | N188: 0 | O188: 28 | P188: 12 | Q188: 2 | R188: 0 | S188: 0 | T188: 9 | U188: 0 | V188: 6 | W188: 40 | X188: 573 | Y188: 9 | Z188: 6366.666667 | AB188: -4302 | AC188: 4311 | AD188: 4311 | AE188: -4302
D189: 宿泊客延数 | E189: 0 | F189: 12 | G189: 293 | H189: 57 | I189: 45 | J189: 34 | K189: 35 | L189: 0 | M189: 0 | N189: 0 | O189: 28 | P189: 12 | Q189: 2 | R189: 0 | S189: 0 | T189: 9 | U189: 0 | V189: 6 | W189: 40 | X189: 573 | Y189: 9 | Z189: 6366.666667 | AB189: -4302 | AC189: 4311 | AD189: 4311 | AE189: -4302
C190: 八雲町 | D190: 宿泊客数 | E190: 9 | F190: 20 | G190: 74 | H190: 22 | I190: 5 | J190: 6 | K190: 0 | L190: 4 | M190: 1 | N190: 1 | O190: 0 | P190: 0 | Q190: 3 | R190: 7 | S190: 22 | T190: 23 | U190: 6 | V190: 11 | W190: 39 | X190: 253 | Y190: 0 | Z190: － | AB190: -186 | AC190: 186 | AD190: 186 | AE190: -186
D191: 宿泊客延数 | E191: 9 | F191: 23 | G191: 99 | H191: 23 | I191: 6 | J191: 6 | K191: 0 | L191: 4 | M191: 1 | N191: 4 | O191: 0 | P191: 0 | Q191: 3 | R191: 17 | S191: 34 | T191: 79 | U191: 31 | V191: 38 | W191: 61 | X191: 438 | Y191: 0 | Z191: － | AB191: -190 | AC191: 190 | AD191: 190 | AE191: -190
C192: 長万部町 | D192: 宿泊客数 | E192: 0 | F192: 0 | G192: 0 | H192: 0 | I192: 0 | J192: 0 | K192: 0 | L192: 0 | M192: 0 | N192: 0 | O192: 0 | P192: 0 | Q192: 0 | R192: 0 | S192: 0 | T192: 0 | U192: 0 | V192: 0 | W192: 0 | X192: 0 | Y192: 0 | Z192: － | AB192: 0 | AC192: 0 | AD192: 0 | AE192: 0
D193: 宿泊客延数 | E193: 0 | F193: 0 | G193: 0 | H193: 0 | I193: 0 | J193: 0 | K193: 0 | L193: 0 | M193: 0 | N193: 0 | O193: 0 | P193: 0 | Q193: 0 | R193: 0 | S193: 0 | T193: 0 | U193: 0 | V193: 0 | W193: 0 | X193: 0 | Y193: 0 | Z193: － | AB193: 0 | AC193: 0 | AD193: 0 | AE193: 0
AB194: 0 | AE194: 0
AB195: 0 | AE195: 0
A196: =A1 -> ４ 令和５年度（2023年度）上期 市町村別・国別訪日外国人宿泊者数 | AB196: 0 | AE196: 0
Z197: =Z132 -> 単位：宿泊客数→人、宿泊客延数→人泊、対前年比→％ | AB197: =Y197-AC197 -> 0 | AE197: =Y197-AD197 -> 0
A198: 圏 域 | B198: 振興局 | C198: 市町村名 | D198: 区 分 | E198: 中国 | F198: 韓国 | G198: 台湾 | H198: 香港 | I198: シンガポール | J198: マレーシア | K198: タイ | L198: インド | M198: インドネシア | N198: フィリピン | O198: ベトナム | P198: ロシア | Q198: イギリス | R198: フランス | S198: ドイツ | T198: アメリカ | U198: カナダ | V198: オーストラリア | W198: その他 | X198: 計 | Y198: =Y133 -> R4年度上期 | Z198: =Z133 -> 対前年比 | AC198: 上 期 計 | AD198: 計
A199: 道南 | B199: 檜山振興局計 | D199: 宿泊客数 | E199: =E201+E203+E205+E207+E209+E211+E213 -> 38 | F199: 20 | G199: 55 | H199: 21 | I199: 7 | J199: 0 | K199: 2 | L199: 0 | M199: 0 | N199: 1 | O199: 9 | P199: 0 | Q199: 2 | R199: 4 | S199: 1 | T199: 29 | U199: 0 | V199: 6 | W199: 108 | X199: 303 | Y199: =Y201+Y203+Y205+Y207+Y209+Y211+Y213 -> 32 | Z199: =IF(Y199=0,"－",X199/Y199*100) -> 946.875 | AB199: -188 | AC199: 220 | AD199: 217 | AE199: -185
D200: 宿泊客延数 | E200: 194 | F200: 78 | G200: 73 | H200: 26 | I200: 7 | J200: 0 | K200: 2 | L200: 0 | M200: 0 | N200: 2 | O200: 185 | P200: 0 | Q200: 5 | R200: 24 | S200: 3 | T200: 45 | U200: 0 | V200: 6 | W200: 197 | X200: 847 | Y200: =Y202+Y204+Y206+Y208+Y210+Y212+Y214 -> 78 | Z200: 1085.897436 | AB200: -223 | AC200: 301 | AD200: 301 | AE200: -223
... 233 more rows
